Workbook

Sheet データ貼付 (hidden)
A1: 競技会名 | B1: 競技場 | C1: 競技実施月日 | D1: クラス | E1: 種目 | F1: 選手／チーム | G1: 記録 | H1: ラウンド | I1: 所属 | J1: 学年 | K1: 風速
A2: 選手権 | B2: 北見 | C2: 2019-05-11 | D2: 中学女子 | E2: ｼﾞｬﾍﾞﾘｯｸｽﾛｰ | F2: 伊藤椿 | G2: 1619 | H2: 決 | I2: 湧別中 | J2: 2 | M2: =E2&F2 -> ｼﾞｬﾍﾞﾘｯｸｽﾛｰ伊藤椿 | N2: 1
A3: 記録会３戦 | B3: 網走 | C3: 2019-07-14 | D3: 中学女子 | E3: ｼﾞｬﾍﾞﾘｯｸｽﾛｰ | F3: 伊藤優果 | G3: 1235 | H3: 決 | I3: 北見北光中 | J3: 1 | M3: ｼﾞｬﾍﾞﾘｯｸｽﾛｰ伊藤優果 | N3: =IF(M3=#REF!,0,1) -> 
A4: 秋季陸上 | B4: 網走 | C4: 2019-09-07 | D4: 中学女子 | E4: ｼﾞｬﾍﾞﾘｯｸｽﾛｰ | F4: 伊藤凛音 | G4: 2597 | H4: 決 | I4: 北見南中 | J4: 1 | M4: ｼﾞｬﾍﾞﾘｯｸｽﾛｰ伊藤凛音 | N4: =IF(M4=M3,0,1) -> 1
A5: 記録会４戦 | B5: 北見 | C5: 2019-08-04 | D5: 中学男子 | E5: ｼﾞｬﾍﾞﾘｯｸｽﾛｰ | F5: 稲垣璃久 | G5: 3074 | H5: 決 | I5: 北見北中 | J5: 2 | M5: ｼﾞｬﾍﾞﾘｯｸｽﾛｰ稲垣璃久 | N5: =IF(M5=#REF!,0,1) -> 
A6: フィールド記録会 | B6: 網走 | C6: 2019-06-08 | D6: 中学男子 | E6: ｼﾞｬﾍﾞﾘｯｸｽﾛｰ | F6: 遠藤寿 | G6: 4050 | H6: 決 | I6: 網走第二中 | J6: 3 | M6: ｼﾞｬﾍﾞﾘｯｸｽﾛｰ遠藤寿 | N6: =IF(M6=#REF!,0,1) -> 
A7: 中学新人 | B7: 網走 | C7: 2019-08-23 | D7: 中学男子 | E7: ｼﾞｬﾍﾞﾘｯｸｽﾛｰ | F7: 遠藤潤人 | G7: 3098 | H7: 決 | I7: 北見北光中 | J7: 2 | M7: ｼﾞｬﾍﾞﾘｯｸｽﾛｰ遠藤潤人 | N7: 1
A8: 記録会３戦 | B8: 網走 | C8: 2019-07-14 | D8: 中学女子 | E8: ｼﾞｬﾍﾞﾘｯｸｽﾛｰ | F8: 横山藍梨 | G8: 1813 | H8: 決 | I8: 北見北光中 | J8: 1 | M8: ｼﾞｬﾍﾞﾘｯｸｽﾛｰ横山藍梨 | N8: =IF(M8=#REF!,0,1) -> 
A9: 通信陸上 | B9: 網走 | C9: 2019-06-28 | D9: 中学男子 | E9: ｼﾞｬﾍﾞﾘｯｸｽﾛｰ | F9: 関澤陸 | G9: 2361 | H9: 決 | I9: 北見光西中 | J9: 3 | M9: ｼﾞｬﾍﾞﾘｯｸｽﾛｰ関澤陸 | N9: 1
A10: フィールド記録会 | B10: 網走 | C10: 2019-06-08 | D10: 中学女子 | E10: ｼﾞｬﾍﾞﾘｯｸｽﾛｰ | F10: 岩越茜莉 | G10: 2559 | H10: 決 | I10: 雄武中 | J10: 3 | M10: ｼﾞｬﾍﾞﾘｯｸｽﾛｰ岩越茜莉 | N10: 1
A11: フィールド記録会 | B11: 網走 | C11: 2019-06-08 | D11: 中学女子 | E11: ｼﾞｬﾍﾞﾘｯｸｽﾛｰ | F11: 菊池優璃 | G11: 2404 | H11: 決 | I11: 網走第四中 | J11: 2 | M11: ｼﾞｬﾍﾞﾘｯｸｽﾛｰ菊池優璃 | N11: 1
A12: 秋季陸上 | B12: 網走 | C12: 2019-09-07 | D12: 中学女子 | E12: ｼﾞｬﾍﾞﾘｯｸｽﾛｰ | F12: 吉鷹陽菜 | G12: 2337 | H12: 決 | I12: 北見光西中 | J12: 2 | M12: ｼﾞｬﾍﾞﾘｯｸｽﾛｰ吉鷹陽菜 | N12: 1
A13: 通信陸上 | B13: 網走 | C13: 2019-06-28 | D13: 中学男子 | E13: ｼﾞｬﾍﾞﾘｯｸｽﾛｰ | F13: 栗原明慎 | G13: 2580 | H13: 決 | I13: 北見北光中 | J13: 1 | M13: ｼﾞｬﾍﾞﾘｯｸｽﾛｰ栗原明慎 | N13: =IF(M13=#REF!,0,1) -> 
A14: 秋季陸上 | B14: 網走 | C14: 2019-09-07 | D14: 中学女子 | E14: ｼﾞｬﾍﾞﾘｯｸｽﾛｰ | F14: 穴澤日菜 | G14: 2769 | H14: 決 | I14: 北見南中 | J14: 1 | M14: ｼﾞｬﾍﾞﾘｯｸｽﾛｰ穴澤日菜 | N14: 1
A15: 通信陸上 | B15: 網走 | C15: 2019-06-28 | D15: 中学男子 | E15: ｼﾞｬﾍﾞﾘｯｸｽﾛｰ | F15: 工藤之雅 | G15: 2904 | H15: 決 | I15: 北見北中 | J15: 2 | M15: ｼﾞｬﾍﾞﾘｯｸｽﾛｰ工藤之雅 | N15: 1
A16: 記録会４戦 | B16: 北見 | C16: 2019-08-04 | D16: 中学男子 | E16: ｼﾞｬﾍﾞﾘｯｸｽﾛｰ | F16: 黒田悠羽 | G16: 2974 | H16: 決 | I16: 北見常呂中 | J16: 1 | M16: ｼﾞｬﾍﾞﾘｯｸｽﾛｰ黒田悠羽 | N16: 1
A17: 秋季陸上 | B17: 網走 | C17: 2019-09-07 | D17: 中学男子 | E17: ｼﾞｬﾍﾞﾘｯｸｽﾛｰ | F17: 佐藤広大 | G17: 2183 | H17: 決 | I17: 遠軽中 | J17: 2 | M17: ｼﾞｬﾍﾞﾘｯｸｽﾛｰ佐藤広大 | N17: 1
A18: 通信陸上 | B18: 網走 | C18: 2019-06-28 | D18: 中学男子 | E18: ｼﾞｬﾍﾞﾘｯｸｽﾛｰ | F18: 佐藤大悟 | G18: 2402 | H18: 決 | I18: 北見光西中 | J18: 1 | M18: ｼﾞｬﾍﾞﾘｯｸｽﾛｰ佐藤大悟 | N18: =IF(M18=#REF!,0,1) -> 
A19: 通信陸上 | B19: 網走 | C19: 2019-06-28 | D19: 中学男子 | E19: ｼﾞｬﾍﾞﾘｯｸｽﾛｰ | F19: 三原立暉 | G19: 937 | H19: 決 | I19: 網走第一中 | J19: 1 | M19: ｼﾞｬﾍﾞﾘｯｸｽﾛｰ三原立暉 | N19: 1
A20: 秋季陸上 | B20: 網走 | C20: 2019-09-07 | D20: 中学女子 | E20: ｼﾞｬﾍﾞﾘｯｸｽﾛｰ | F20: 三塚ありさ | G20: 2392 | H20: 決 | I20: 網走第四中 | J20: 1 | M20: ｼﾞｬﾍﾞﾘｯｸｽﾛｰ三塚ありさ | N20: 1
A21: 選手権 | B21: 北見 | C21: 2019-05-11 | D21: 中学男子 | E21: ｼﾞｬﾍﾞﾘｯｸｽﾛｰ | F21: 三塚知輝 | G21: 3648 | H21: 決 | I21: 網走第四中 | J21: 3 | M21: ｼﾞｬﾍﾞﾘｯｸｽﾛｰ三塚知輝 | N21: =IF(M21=#REF!,0,1) -> 
A22: 中学新人 | B22: 網走 | C22: 2019-08-23 | D22: 中学女子 | E22: ｼﾞｬﾍﾞﾘｯｸｽﾛｰ | F22: 山村奈々 | G22: 1058 | H22: 決 | I22: 北見北光中 | J22: 1 | M22: ｼﾞｬﾍﾞﾘｯｸｽﾛｰ山村奈々 | N22: 1
A23: 通信陸上 | B23: 網走 | C23: 2019-06-28 | D23: 中学男子 | E23: ｼﾞｬﾍﾞﾘｯｸｽﾛｰ | F23: 山本遥 | G23: 3675 | H23: 決 | I23: 北見南中 | J23: 2 | M23: ｼﾞｬﾍﾞﾘｯｸｽﾛｰ山本遥 | N23: 1
A24: 記録会４戦 | B24: 北見 | C24: 2019-08-04 | D24: 中学男子 | E24: ｼﾞｬﾍﾞﾘｯｸｽﾛｰ | F24: 山﨑大翔 | G24: 1740 | H24: 決 | I24: 北見北光中 | J24: 1 | M24: ｼﾞｬﾍﾞﾘｯｸｽﾛｰ山﨑大翔 | N24: 1
A25: 選手権 | B25: 北見 | C25: 2019-05-11 | D25: 中学男子 | E25: ｼﾞｬﾍﾞﾘｯｸｽﾛｰ | F25: 山﨑歩来夢 | G25: 1760 | H25: 決 | I25: 雄武中 | J25: 2 | M25: ｼﾞｬﾍﾞﾘｯｸｽﾛｰ山﨑歩来夢 | N25: 1
A26: 通信陸上 | B26: 網走 | C26: 2019-06-28 | D26: 中学男子 | E26: ｼﾞｬﾍﾞﾘｯｸｽﾛｰ | F26: 四ツ倉快 | G26: 4235 | H26: 決 | I26: 網走第四中 | J26: 3 | M26: ｼﾞｬﾍﾞﾘｯｸｽﾛｰ四ツ倉快 | N26: =IF(M26=#REF!,0,1) -> 
A27: フィールド記録会 | B27: 網走 | C27: 2019-06-08 | D27: 中学男子 | E27: ｼﾞｬﾍﾞﾘｯｸｽﾛｰ | F27: 酒井柊優 | G27: 3354 | H27: 決 | I27: 北見東陵中 | J27: 1 | M27: ｼﾞｬﾍﾞﾘｯｸｽﾛｰ酒井柊優 | N27: 1
A28: 秋季陸上 | B28: 網走 | C28: 2019-09-07 | D28: 中学男子 | E28: ｼﾞｬﾍﾞﾘｯｸｽﾛｰ | F28: 出倉蓮音 | G28: 3745 | H28: 決 | I28: 湧別中 | J28: 2 | M28: ｼﾞｬﾍﾞﾘｯｸｽﾛｰ出倉蓮音 | N28: 1
A29: 選手権 | B29: 北見 | C29: 2019-05-11 | D29: 中学男子 | E29: ｼﾞｬﾍﾞﾘｯｸｽﾛｰ | F29: 楯身優 | G29: 2043 | H29: 決 | I29: 北見北中 | J29: 2 | M29: ｼﾞｬﾍﾞﾘｯｸｽﾛｰ楯身優 | N29: =IF(M29=#REF!,0,1) -> 
A30: 秋季陸上 | B30: 網走 | C30: 2019-09-07 | D30: 中学男子 | E30: ｼﾞｬﾍﾞﾘｯｸｽﾛｰ | F30: 小原拓真 | G30: 5018 | H30: 決 | I30: 北見常呂中 | J30: 2 | M30: ｼﾞｬﾍﾞﾘｯｸｽﾛｰ小原拓真 | N30: 1
A31: 通信陸上 | B31: 網走 | C31: 2019-06-29 | D31: 中学女子 | E31: ｼﾞｬﾍﾞﾘｯｸｽﾛｰ | F31: 小川璃子 | G31: 1686 | H31: 決 | I31: 網走第三中 | J31: 3 | M31: ｼﾞｬﾍﾞﾘｯｸｽﾛｰ小川璃子 | N31: =IF(M31=#REF!,0,1) -> 
A32: 中学新人 | B32: 網走 | C32: 2019-08-23 | D32: 中学男子 | E32: ｼﾞｬﾍﾞﾘｯｸｽﾛｰ | F32: 小林樹生 | G32: 1694 | H32: 決 | I32: 雄武中 | J32: 1 | M32: ｼﾞｬﾍﾞﾘｯｸｽﾛｰ小林樹生 | N32: 1
A33: 通信陸上 | B33: 網走 | C33: 2019-06-28 | D33: 中学男子 | E33: ｼﾞｬﾍﾞﾘｯｸｽﾛｰ | F33: 松田陽向太 | G33: 1709 | H33: 決 | I33: 北見東陵中 | J33: 1 | M33: ｼﾞｬﾍﾞﾘｯｸｽﾛｰ松田陽向太 | N33: 1
A34: 中学新人 | B34: 網走 | C34: 2019-08-23 | D34: 中学男子 | E34: ｼﾞｬﾍﾞﾘｯｸｽﾛｰ | F34: 須田琉生 | G34: 1865 | H34: 決 | I34: 網走第一中 | J34: 1 | M34: ｼﾞｬﾍﾞﾘｯｸｽﾛｰ須田琉生 | N34: 1
A35: 選手権 | B35: 北見 | C35: 2019-05-11 | D35: 中学男子 | E35: ｼﾞｬﾍﾞﾘｯｸｽﾛｰ | F35: 須藤晴人 | G35: 2954 | H35: 決 | I35: 北見北中 | J35: 2 | M35: ｼﾞｬﾍﾞﾘｯｸｽﾛｰ須藤晴人 | N35: 1
A36: 記録会４戦 | B36: 北見 | C36: 2019-08-04 | D36: 中学男子 | E36: ｼﾞｬﾍﾞﾘｯｸｽﾛｰ | F36: 正壽晃希 | G36: 2034 | H36: 決 | I36: 北見北光中 | J36: 1 | M36: ｼﾞｬﾍﾞﾘｯｸｽﾛｰ正壽晃希 | N36: 1
A37: 中学新人 | B37: 網走 | C37: 2019-08-23 | D37: 中学男子 | E37: ｼﾞｬﾍﾞﾘｯｸｽﾛｰ | F37: 石橋誠司 | G37: 2669 | H37: 決 | I37: 雄武中 | J37: 1 | M37: ｼﾞｬﾍﾞﾘｯｸｽﾛｰ石橋誠司 | N37: 1
A38: フィールド記録会 | B38: 網走 | C38: 2019-06-08 | D38: 中学男子 | E38: ｼﾞｬﾍﾞﾘｯｸｽﾛｰ | F38: 石原遥翔 | G38: 3731 | H38: 決 | I38: 網走第四中 | J38: 1 | M38: ｼﾞｬﾍﾞﾘｯｸｽﾛｰ石原遥翔 | N38: 1
A39: 記録会３戦 | B39: 網走 | C39: 2019-07-14 | D39: 中学男子 | E39: ｼﾞｬﾍﾞﾘｯｸｽﾛｰ | F39: 石田琉二 | G39: 2553 | H39: 決 | I39: 北見北中 | J39: 1 | M39: ｼﾞｬﾍﾞﾘｯｸｽﾛｰ石田琉二 | N39: 1
A40: 記録会４戦 | B40: 北見 | C40: 2019-08-04 | D40: 中学男子 | E40: ｼﾞｬﾍﾞﾘｯｸｽﾛｰ | F40: 千葉涼 | G40: 2901 | H40: 決 | I40: 北見光西中 | J40: 1 | M40: ｼﾞｬﾍﾞﾘｯｸｽﾛｰ千葉涼 | N40: =IF(M40=#REF!,0,1) -> 
A41: 選手権 | B41: 北見 | C41: 2019-05-11 | D41: 中学男子 | E41: ｼﾞｬﾍﾞﾘｯｸｽﾛｰ | F41: 倉本静鬼 | G41: 3471 | H41: 決 | I41: 北見東陵中 | J41: 2 | M41: ｼﾞｬﾍﾞﾘｯｸｽﾛｰ倉本静鬼 | N41: 1
A42: フィールド記録会 | B42: 網走 | C42: 2019-06-08 | D42: 中学女子 | E42: ｼﾞｬﾍﾞﾘｯｸｽﾛｰ | F42: 草岡美紀 | G42: 893 | H42: 決 | I42: 網走第二中 | J42: 1 | M42: ｼﾞｬﾍﾞﾘｯｸｽﾛｰ草岡美紀 | N42: 1
A43: 通信陸上 | B43: 網走 | C43: 2019-06-28 | D43: 中学男子 | E43: ｼﾞｬﾍﾞﾘｯｸｽﾛｰ | F43: 草薙怜冶 | G43: 1848 | H43: 決 | I43: 湧別中 | J43: 1 | M43: ｼﾞｬﾍﾞﾘｯｸｽﾛｰ草薙怜冶 | N43: 1
A44: 記録会４戦 | B44: 北見 | C44: 2019-08-04 | D44: 中学女子 | E44: ｼﾞｬﾍﾞﾘｯｸｽﾛｰ | F44: 多田麻菜花 | G44: 1658 | H44: 決 | I44: 北見北光中 | J44: 3 | M44: ｼﾞｬﾍﾞﾘｯｸｽﾛｰ多田麻菜花 | N44: 1
A45: 通信陸上 | B45: 網走 | C45: 2019-06-28 | D45: 中学男子 | E45: ｼﾞｬﾍﾞﾘｯｸｽﾛｰ | F45: 中井啓晴 | G45: 2783 | H45: 決 | I45: 北見小泉中 | J45: 3 | M45: ｼﾞｬﾍﾞﾘｯｸｽﾛｰ中井啓晴 | N45: 1
A46: 通信陸上 | B46: 網走 | C46: 2019-06-28 | D46: 中学男子 | E46: ｼﾞｬﾍﾞﾘｯｸｽﾛｰ | F46: 中原太亜 | G46: 3253 | H46: 決 | I46: 北見常呂中 | J46: 2 | M46: ｼﾞｬﾍﾞﾘｯｸｽﾛｰ中原太亜 | N46: 1
A47: 通信陸上 | B47: 網走 | C47: 2019-06-29 | D47: 中学女子 | E47: ｼﾞｬﾍﾞﾘｯｸｽﾛｰ | F47: 中村悠南 | G47: 1927 | H47: 決 | I47: 網走第三中 | J47: 3 | M47: ｼﾞｬﾍﾞﾘｯｸｽﾛｰ中村悠南 | N47: 1
A48: 通信陸上 | B48: 網走 | C48: 2019-06-28 | D48: 中学男子 | E48: ｼﾞｬﾍﾞﾘｯｸｽﾛｰ | F48: 中野大地 | G48: 2939 | H48: 決 | I48: 北見北光中 | J48: 1 | M48: ｼﾞｬﾍﾞﾘｯｸｽﾛｰ中野大地 | N48: 1
A49: 記録会３戦 | B49: 網走 | C49: 2019-07-14 | D49: 中学男子 | E49: ｼﾞｬﾍﾞﾘｯｸｽﾛｰ | F49: 田中達也 | G49: 2282 | H49: 決 | I49: 網走第一中 | J49: 3 | M49: ｼﾞｬﾍﾞﾘｯｸｽﾛｰ田中達也 | N49: 1
A50: 秋季陸上 | B50: 網走 | C50: 2019-09-07 | D50: 中学男子 | E50: ｼﾞｬﾍﾞﾘｯｸｽﾛｰ | F50: 田中智也 | G50: 2310 | H50: 決 | I50: 網走第一中 | J50: 1 | M50: ｼﾞｬﾍﾞﾘｯｸｽﾛｰ田中智也 | N50: 1
A51: 通信陸上 | B51: 網走 | C51: 2019-06-29 | D51: 中学女子 | E51: ｼﾞｬﾍﾞﾘｯｸｽﾛｰ | F51: 田中陽菜 | G51: 1783 | H51: 決 | I51: 北見光西中 | J51: 1 | M51: ｼﾞｬﾍﾞﾘｯｸｽﾛｰ田中陽菜 | N51: =IF(M51=#REF!,0,1) -> 
A52: 選手権 | B52: 北見 | C52: 2019-05-11 | D52: 中学男子 | E52: ｼﾞｬﾍﾞﾘｯｸｽﾛｰ | F52: 渡邉日向 | G52: 3268 | H52: 決 | I52: 網走第四中 | J52: 1 | M52: ｼﾞｬﾍﾞﾘｯｸｽﾛｰ渡邉日向 | N52: 1
A53: 記録会３戦 | B53: 網走 | C53: 2019-07-14 | D53: 中学男子 | E53: ｼﾞｬﾍﾞﾘｯｸｽﾛｰ | F53: 楠本悠斗 | G53: 3168 | H53: 決 | I53: 北見小泉中 | J53: 3 | M53: ｼﾞｬﾍﾞﾘｯｸｽﾛｰ楠本悠斗 | N53: 1
A54: 通信陸上 | B54: 網走 | C54: 2019-06-28 | D54: 中学男子 | E54: ｼﾞｬﾍﾞﾘｯｸｽﾛｰ | F54: 日野俐唯斗 | G54: 2954 | H54: 決 | I54: 北見北光中 | J54: 1 | M54: ｼﾞｬﾍﾞﾘｯｸｽﾛｰ日野俐唯斗 | N54: 1
A55: 通信陸上 | B55: 網走 | C55: 2019-06-29 | D55: 中学女子 | E55: ｼﾞｬﾍﾞﾘｯｸｽﾛｰ | F55: 畠野美優 | G55: 1922 | H55: 決 | I55: 北見光西中 | J55: 2 | M55: ｼﾞｬﾍﾞﾘｯｸｽﾛｰ畠野美優 | N55: 1
A56: 通信陸上 | B56: 網走 | C56: 2019-06-28 | D56: 中学男子 | E56: ｼﾞｬﾍﾞﾘｯｸｽﾛｰ | F56: 美濃詠隼 | G56: 2682 | H56: 決 | I56: 雄武中 | J56: 1 | M56: ｼﾞｬﾍﾞﾘｯｸｽﾛｰ美濃詠隼 | N56: =IF(M56=M55,0,1) -> 1
A57: 選手権 | B57: 北見 | C57: 2019-05-11 | D57: 中学男子 | E57: ｼﾞｬﾍﾞﾘｯｸｽﾛｰ | F57: 福田悠介 | G57: 2018 | H57: 決 | I57: 網走第一中 | J57: 2 | M57: ｼﾞｬﾍﾞﾘｯｸｽﾛｰ福田悠介 | N57: 1
A58: 通信陸上 | B58: 網走 | C58: 2019-06-28 | D58: 中学男子 | E58: ｼﾞｬﾍﾞﾘｯｸｽﾛｰ | F58: 平形洸人 | G58: 2173 | H58: 決 | I58: 湧別中 | J58: 1 | M58: ｼﾞｬﾍﾞﾘｯｸｽﾛｰ平形洸人 | N58: 1
A59: 選手権 | B59: 北見 | C59: 2019-05-11 | D59: 中学男子 | E59: ｼﾞｬﾍﾞﾘｯｸｽﾛｰ | F59: 平佐太一 | G59: 2053 | H59: 決 | I59: 網走第三中 | J59: 2 | M59: ｼﾞｬﾍﾞﾘｯｸｽﾛｰ平佐太一 | N59: 1
A60: 選手権 | B60: 北見 | C60: 2019-05-11 | D60: 中学男子 | E60: ｼﾞｬﾍﾞﾘｯｸｽﾛｰ | F60: 保里和実 | G60: 1285 | H60: 決 | I60: 遠軽中 | J60: 3 | M60: ｼﾞｬﾍﾞﾘｯｸｽﾛｰ保里和実 | N60: 1
A61: 通信陸上 | B61: 網走 | C61: 2019-06-28 | D61: 中学男子 | E61: ｼﾞｬﾍﾞﾘｯｸｽﾛｰ | F61: 豊田琉偉 | G61: 1891 | H61: 決 | I61: 遠軽中 | J61: 3 | M61: ｼﾞｬﾍﾞﾘｯｸｽﾛｰ豊田琉偉 | N61: 1
A62: 選手権 | B62: 北見 | C62: 2019-05-11 | D62: 中学男子 | E62: ｼﾞｬﾍﾞﾘｯｸｽﾛｰ | F62: 堀口慎之助 | G62: 2768 | H62: 決 | I62: 北見小泉中 | J62: 3 | M62: ｼﾞｬﾍﾞﾘｯｸｽﾛｰ堀口慎之助 | N62: 1
A63: 記録会４戦 | B63: 北見 | C63: 2019-08-04 | D63: 中学女子 | E63: ｼﾞｬﾍﾞﾘｯｸｽﾛｰ | F63: 本間唯央奈 | G63: 1546 | H63: 決 | I63: 北見北光中 | J63: 3 | M63: ｼﾞｬﾍﾞﾘｯｸｽﾛｰ本間唯央奈 | N63: 1
A64: 記録会４戦 | B64: 北見 | C64: 2019-08-04 | D64: 中学女子 | E64: ｼﾞｬﾍﾞﾘｯｸｽﾛｰ | F64: 木村紗彩 | G64: 2068 | H64: 決 | I64: 網走第四中 | J64: 2 | M64: ｼﾞｬﾍﾞﾘｯｸｽﾛｰ木村紗彩 | N64: 1
A65: 通信陸上 | B65: 網走 | C65: 2019-06-28 | D65: 中学男子 | E65: ｼﾞｬﾍﾞﾘｯｸｽﾛｰ | F65: 木内健太郎 | G65: 2045 | H65: 決 | I65: 遠軽中 | J65: 2 | M65: ｼﾞｬﾍﾞﾘｯｸｽﾛｰ木内健太郎 | N65: =IF(M65=#REF!,0,1) -> 
A66: 秋季陸上 | B66: 網走 | C66: 2019-09-07 | D66: 中学男子 | E66: ｼﾞｬﾍﾞﾘｯｸｽﾛｰ | F66: 野村駿 | G66: 2558 | H66: 決 | I66: 北見東陵中 | J66: 1 | M66: =E66&F66 -> ｼﾞｬﾍﾞﾘｯｸｽﾛｰ野村駿 | N66: 1
A67: フィールド記録会 | B67: 網走 | C67: 2019-06-08 | D67: 中学男子 | E67: ｼﾞｬﾍﾞﾘｯｸｽﾛｰ | F67: 髙橋龍之介 | G67: 1498 | H67: 決 | I67: 網走第四中 | J67: 1 | M67: ｼﾞｬﾍﾞﾘｯｸｽﾛｰ髙橋龍之介 | N67: =IF(M67=#REF!,0,1) -> 
A68: 記録会４戦 | B68: 北見 | C68: 2019-08-04 | D68: 中学女子 | E68: ｼﾞｬﾍﾞﾘｯｸｽﾛｰ | F68: 髙田沙七 | G68: 1135 | H68: 決 | I68: 北見北光中 | J68: 3 | M68: ｼﾞｬﾍﾞﾘｯｸｽﾛｰ髙田沙七 | N68: 1
A69: 選手権 | B69: 北見 | C69: 2019-05-11 | D69: 小学男子 | E69: ｼﾞｬﾍﾞﾘｯｸﾎﾞｰﾙ投 | F69: 阿部空晴 | G69: 3559 | H69: 決 | I69: 美幌RC | J69: 6 | M69: ｼﾞｬﾍﾞﾘｯｸﾎﾞｰﾙ投阿部空晴 | N69: 1
A70: 小学生ｵﾎｰﾂｸ | B70: 北見 | C70: 2019-06-16 | D70: 小学男子 | E70: ｼﾞｬﾍﾞﾘｯｸﾎﾞｰﾙ投 | F70: 安井一晴 | G70: 3139 | H70: 決 | I70: ｵﾎｰﾂｸｷｯｽﾞ | J70: 4 | M70: ｼﾞｬﾍﾞﾘｯｸﾎﾞｰﾙ投安井一晴 | N70: 1
A71: 全道小学 | B71: 札幌 | C71: 2019-07-15 | D71: 小学女子 | E71: ｼﾞｬﾍﾞﾘｯｸﾎﾞｰﾙ投 | F71: 安藤和 | G71: 3928 | H71: 決 | I71: 清里陸上少年団 | J71: 6 | M71: ｼﾞｬﾍﾞﾘｯｸﾎﾞｰﾙ投安藤和 | N71: 1
A72: 小学生ｵﾎｰﾂｸ | B72: 北見 | C72: 2019-06-16 | D72: 小学男子 | E72: ｼﾞｬﾍﾞﾘｯｸﾎﾞｰﾙ投 | F72: 伊藤悦大 | G72: 3337 | H72: 決 | I72: ｵﾎｰﾂｸｷｯｽﾞ | J72: 4 | M72: ｼﾞｬﾍﾞﾘｯｸﾎﾞｰﾙ投伊藤悦大 | N72: 1
A73: 全道小学 | B73: 札幌 | C73: 2019-07-15 | D73: 小学男子 | E73: ｼﾞｬﾍﾞﾘｯｸﾎﾞｰﾙ投 | F73: 伊藤榮音 | G73: 2307 | H73: 決 | I73: ｵﾎｰﾂｸｷｯｽﾞ | J73: 6 | M73: ｼﾞｬﾍﾞﾘｯｸﾎﾞｰﾙ投伊藤榮音 | N73: 1
A74: 小学生ｵﾎｰﾂｸ | B74: 北見 | C74: 2019-06-16 | D74: 小学男子 | E74: ｼﾞｬﾍﾞﾘｯｸﾎﾞｰﾙ投 | F74: 浦田侍暖 | G74: 2019 | H74: 決 | I74: ｵﾎｰﾂｸｷｯｽﾞ | J74: 3 | M74: ｼﾞｬﾍﾞﾘｯｸﾎﾞｰﾙ投浦田侍暖 | N74: 1
A75: フィールド記録会 | B75: 網走 | C75: 2019-06-08 | D75: 小学男子 | E75: ｼﾞｬﾍﾞﾘｯｸﾎﾞｰﾙ投 | F75: 浦田誉人 | G75: 3604 | H75: 決 | I75: 美幌RC | J75: 5 | M75: ｼﾞｬﾍﾞﾘｯｸﾎﾞｰﾙ投浦田誉人 | N75: 1
A76: 選手権 | B76: 北見 | C76: 2019-05-11 | D76: 小学男子 | E76: ｼﾞｬﾍﾞﾘｯｸﾎﾞｰﾙ投 | F76: 角田蓮 | G76: 4504 | H76: 決 | I76: 美幌RC | J76: 6 | M76: ｼﾞｬﾍﾞﾘｯｸﾎﾞｰﾙ投角田蓮 | N76: 1
A77: 選手権 | B77: 北見 | C77: 2019-05-11 | D77: 小学男子 | E77: ｼﾞｬﾍﾞﾘｯｸﾎﾞｰﾙ投 | F77: 刈屋柊晴 | G77: 2815 | H77: 決 | I77: ｵﾎｰﾂｸｷｯｽﾞ | J77: 4 | M77: ｼﾞｬﾍﾞﾘｯｸﾎﾞｰﾙ投刈屋柊晴 | N77: 1
A78: フィールド記録会 | B78: 網走 | C78: 2019-06-08 | D78: 小学女子 | E78: ｼﾞｬﾍﾞﾘｯｸﾎﾞｰﾙ投 | F78: 関谷楓花 | G78: 3393 | H78: 決 | I78: 常呂陸上少年団 | J78: 6 | M78: ｼﾞｬﾍﾞﾘｯｸﾎﾞｰﾙ投関谷楓花 | N78: 1
A79: フィールド記録会 | B79: 網走 | C79: 2019-06-08 | D79: 小学男子 | E79: ｼﾞｬﾍﾞﾘｯｸﾎﾞｰﾙ投 | F79: 吉田仙太 | G79: 3608 | H79: 決 | I79: 美幌RC | J79: 5 | M79: ｼﾞｬﾍﾞﾘｯｸﾎﾞｰﾙ投吉田仙太 | N79: 1
A80: フィールド記録会 | B80: 網走 | C80: 2019-06-08 | D80: 小学女子 | E80: ｼﾞｬﾍﾞﾘｯｸﾎﾞｰﾙ投 | F80: 久保田颯歩 | G80: 1813 | H80: 決 | I80: 知床斜里RC | J80: 5 | M80: ｼﾞｬﾍﾞﾘｯｸﾎﾞｰﾙ投久保田颯歩 | N80: 1
A81: 小学生ｵﾎｰﾂｸ | B81: 北見 | C81: 2019-06-16 | D81: 小学男子 | E81: ｼﾞｬﾍﾞﾘｯｸﾎﾞｰﾙ投 | F81: 桐山晴良 | G81: 2085 | H81: 決 | I81: 美幌XC少年団 | J81: 3 | M81: ｼﾞｬﾍﾞﾘｯｸﾎﾞｰﾙ投桐山晴良 | N81: 1
A82: フィールド記録会 | B82: 網走 | C82: 2019-06-08 | D82: 小学男子 | E82: ｼﾞｬﾍﾞﾘｯｸﾎﾞｰﾙ投 | F82: 後藤大輔 | G82: 2917 | H82: 決 | I82: 美幌RC | J82: 6 | M82: ｼﾞｬﾍﾞﾘｯｸﾎﾞｰﾙ投後藤大輔 | N82: 1
A83: 選手権 | B83: 北見 | C83: 2019-05-11 | D83: 小学男子 | E83: ｼﾞｬﾍﾞﾘｯｸﾎﾞｰﾙ投 | F83: 工藤龍祈 | G83: 3916 | H83: 決 | I83: ｵﾎｰﾂｸｷｯｽﾞ | J83: 4 | M83: ｼﾞｬﾍﾞﾘｯｸﾎﾞｰﾙ投工藤龍祈 | N83: 1
A84: 全道小学 | B84: 札幌 | C84: 2019-07-15 | D84: 小学男子 | E84: ｼﾞｬﾍﾞﾘｯｸﾎﾞｰﾙ投 | F84: 荒木碧巴 | G84: 4668 | H84: 決 | I84: 知床斜里RC | J84: 6 | M84: ｼﾞｬﾍﾞﾘｯｸﾎﾞｰﾙ投荒木碧巴 | N84: 1
A85: 小学生ｵﾎｰﾂｸ | B85: 北見 | C85: 2019-06-16 | D85: 小学女子 | E85: ｼﾞｬﾍﾞﾘｯｸﾎﾞｰﾙ投 | F85: 佐々木紀香 | G85: 2445 | H85: 決 | I85: 訓子府陸上少年団 | J85: 6 | M85: ｼﾞｬﾍﾞﾘｯｸﾎﾞｰﾙ投佐々木紀香 | N85: 1
A86: 選手権 | B86: 北見 | C86: 2019-05-11 | D86: 小学男子 | E86: ｼﾞｬﾍﾞﾘｯｸﾎﾞｰﾙ投 | F86: 佐々木瞬汰 | G86: 2052 | H86: 決 | I86: 美幌RC | J86: 4 | M86: ｼﾞｬﾍﾞﾘｯｸﾎﾞｰﾙ投佐々木瞬汰 | N86: 1
A87: 選手権 | B87: 北見 | C87: 2019-05-11 | D87: 小学男子 | E87: ｼﾞｬﾍﾞﾘｯｸﾎﾞｰﾙ投 | F87: 佐々木進之介 | G87: 2764 | H87: 決 | I87: 知床斜里RC | J87: 5 | M87: ｼﾞｬﾍﾞﾘｯｸﾎﾞｰﾙ投佐々木進之介 | N87: 1
A88: 小学生ｵﾎｰﾂｸ | B88: 北見 | C88: 2019-06-16 | D88: 小学女子 | E88: ｼﾞｬﾍﾞﾘｯｸﾎﾞｰﾙ投 | F88: 佐藤琉花 | G88: 1206 | H88: 決 | I88: 美幌RC | J88: 5 | M88: ｼﾞｬﾍﾞﾘｯｸﾎﾞｰﾙ投佐藤琉花 | N88: 1
A89: 小学生ｵﾎｰﾂｸ | B89: 北見 | C89: 2019-06-16 | D89: 小学男子 | E89: ｼﾞｬﾍﾞﾘｯｸﾎﾞｰﾙ投 | F89: 坂口智洋 | G89: 3493 | H89: 決 | I89: 常呂陸上少年団 | J89: 6 | M89: ｼﾞｬﾍﾞﾘｯｸﾎﾞｰﾙ投坂口智洋 | N89: 1
A90: 選手権 | B90: 北見 | C90: 2019-05-11 | D90: 小学男子 | E90: ｼﾞｬﾍﾞﾘｯｸﾎﾞｰﾙ投 | F90: 阪口智洋 | G90: 3661 | H90: 決 | I90: 常呂陸上少年団 | J90: 6 | M90: ｼﾞｬﾍﾞﾘｯｸﾎﾞｰﾙ投阪口智洋 | N90: 1
A91: 小学生ｵﾎｰﾂｸ | B91: 北見 | C91: 2019-06-16 | D91: 小学男子 | E91: ｼﾞｬﾍﾞﾘｯｸﾎﾞｰﾙ投 | F91: 三浦正史 | G91: 2440 | H91: 決 | I91: 美幌RC | J91: 3 | M91: ｼﾞｬﾍﾞﾘｯｸﾎﾞｰﾙ投三浦正史 | N91: 1
A92: 選手権 | B92: 北見 | C92: 2019-05-11 | D92: 小学男子 | E92: ｼﾞｬﾍﾞﾘｯｸﾎﾞｰﾙ投 | F92: 山田桔虎 | G92: 3942 | H92: 決 | I92: 常呂陸上少年団 | J92: 6 | M92: ｼﾞｬﾍﾞﾘｯｸﾎﾞｰﾙ投山田桔虎 | N92: 1
A93: 小学生ｵﾎｰﾂｸ | B93: 北見 | C93: 2019-06-16 | D93: 小学男子 | E93: ｼﾞｬﾍﾞﾘｯｸﾎﾞｰﾙ投 | F93: 山田悠翔 | G93: 1711 | H93: 決 | I93: 常呂陸上少年団 | J93: 4 | M93: ｼﾞｬﾍﾞﾘｯｸﾎﾞｰﾙ投山田悠翔 | N93: 1
A94: 選手権 | B94: 北見 | C94: 2019-05-11 | D94: 小学女子 | E94: ｼﾞｬﾍﾞﾘｯｸﾎﾞｰﾙ投 | F94: 室田心愛 | G94: 3913 | H94: 決 | I94: 常呂陸上少年団 | J94: 6 | M94: ｼﾞｬﾍﾞﾘｯｸﾎﾞｰﾙ投室田心愛 | N94: 1
A95: 選手権 | B95: 北見 | C95: 2019-05-11 | D95: 小学男子 | E95: ｼﾞｬﾍﾞﾘｯｸﾎﾞｰﾙ投 | F95: 柴田遥斗 | G95: 2094 | H95: 決 | I95: ｵﾎｰﾂｸｷｯｽﾞ | J95: 3 | M95: ｼﾞｬﾍﾞﾘｯｸﾎﾞｰﾙ投柴田遥斗 | N95: 1
A96: フィールド記録会 | B96: 網走 | C96: 2019-06-08 | D96: 小学男子 | E96: ｼﾞｬﾍﾞﾘｯｸﾎﾞｰﾙ投 | F96: 若月柚樹 | G96: 4366 | H96: 決 | I96: 美幌RC | J96: 4 | M96: ｼﾞｬﾍﾞﾘｯｸﾎﾞｰﾙ投若月柚樹 | N96: 1
A97: 小学生ｵﾎｰﾂｸ | B97: 北見 | C97: 2019-06-16 | D97: 小学男子 | E97: ｼﾞｬﾍﾞﾘｯｸﾎﾞｰﾙ投 | F97: 小笠原昊 | G97: 3498 | H97: 決 | I97: 清里陸上少年団 | J97: 6 | M97: ｼﾞｬﾍﾞﾘｯｸﾎﾞｰﾙ投小笠原昊 | N97: 1
A98: 選手権 | B98: 北見 | C98: 2019-05-11 | D98: 小学男子 | E98: ｼﾞｬﾍﾞﾘｯｸﾎﾞｰﾙ投 | F98: 小原尊琉 | G98: 2065 | H98: 決 | I98: 常呂陸上少年団 | J98: 4 | M98: ｼﾞｬﾍﾞﾘｯｸﾎﾞｰﾙ投小原尊琉 | N98: 1
A99: 全道小学 | B99: 札幌 | C99: 2019-07-15 | D99: 小学女子 | E99: ｼﾞｬﾍﾞﾘｯｸﾎﾞｰﾙ投 | F99: 松本琉南 | G99: 3296 | H99: 決 | I99: 美幌RC | J99: 5 | M99: ｼﾞｬﾍﾞﾘｯｸﾎﾞｰﾙ投松本琉南 | N99: 1
A100: 選手権 | B100: 北見 | C100: 2019-05-11 | D100: 小学男子 | E100: ｼﾞｬﾍﾞﾘｯｸﾎﾞｰﾙ投 | F100: 上原佑葵 | G100: 2523 | H100: 決 | I100: ｵﾎｰﾂｸSS | J100: 4 | M100: ｼﾞｬﾍﾞﾘｯｸﾎﾞｰﾙ投上原佑葵 | N100: 1
A101: 小学生ｵﾎｰﾂｸ | B101: 北見 | C101: 2019-06-16 | D101: 小学男子 | E101: ｼﾞｬﾍﾞﾘｯｸﾎﾞｰﾙ投 | F101: 新谷一真 | G101: 1744 | H101: 決 | I101: ｵﾎｰﾂｸｷｯｽﾞ | J101: 3 | M101: ｼﾞｬﾍﾞﾘｯｸﾎﾞｰﾙ投新谷一真 | N101: 1
A102: 小学生ｵﾎｰﾂｸ | B102: 北見 | C102: 2019-06-16 | D102: 小学男子 | E102: ｼﾞｬﾍﾞﾘｯｸﾎﾞｰﾙ投 | F102: 森谷翔 | G102: 2508 | H102: 決 | I102: 訓子府陸上少年団 | J102: 3 | M102: ｼﾞｬﾍﾞﾘｯｸﾎﾞｰﾙ投森谷翔 | N102: 1
A103: 小学生ｵﾎｰﾂｸ | B103: 北見 | C103: 2019-06-16 | D103: 小学男子 | E103: ｼﾞｬﾍﾞﾘｯｸﾎﾞｰﾙ投 | F103: 須藤陸都 | G103: 2685 | H103: 決 | I103: 北見美山小 | J103: 3 | M103: ｼﾞｬﾍﾞﾘｯｸﾎﾞｰﾙ投須藤陸都 | N103: 1
A104: 全道小学 | B104: 札幌 | C104: 2019-07-14 | D104: 小学男子 | E104: ｼﾞｬﾍﾞﾘｯｸﾎﾞｰﾙ投 | F104: 成ヶ澤隼人 | G104: 2997 | H104: 決 | I104: ｵﾎｰﾂｸSS | J104: 3 | M104: ｼﾞｬﾍﾞﾘｯｸﾎﾞｰﾙ投成ヶ澤隼人 | N104: 1
A105: 選手権 | B105: 北見 | C105: 2019-05-11 | D105: 小学女子 | E105: ｼﾞｬﾍﾞﾘｯｸﾎﾞｰﾙ投 | F105: 石川知優 | G105: 1022 | H105: 決 | I105: 美幌RC | J105: 3 | M105: ｼﾞｬﾍﾞﾘｯｸﾎﾞｰﾙ投石川知優 | N105: 1
A106: 小学生ｵﾎｰﾂｸ | B106: 北見 | C106: 2019-06-16 | D106: 小学女子 | E106: ｼﾞｬﾍﾞﾘｯｸﾎﾞｰﾙ投 | F106: 相馬羽夏 | G106: 1397 | H106: 決 | I106: ｵﾎｰﾂｸｷｯｽﾞ | J106: 3 | M106: ｼﾞｬﾍﾞﾘｯｸﾎﾞｰﾙ投相馬羽夏 | N106: 1
A107: 選手権 | B107: 北見 | C107: 2019-05-11 | D107: 小学男子 | E107: ｼﾞｬﾍﾞﾘｯｸﾎﾞｰﾙ投 | F107: 大東啓 | G107: 1883 | H107: 決 | I107: 美幌RC | J107: 5 | M107: ｼﾞｬﾍﾞﾘｯｸﾎﾞｰﾙ投大東啓 | N107: 1
A108: 小学生ｵﾎｰﾂｸ | B108: 北見 | C108: 2019-06-16 | D108: 小学男子 | E108: ｼﾞｬﾍﾞﾘｯｸﾎﾞｰﾙ投 | F108: 大木駿徹 | G108: 1228 | H108: 決 | I108: ｵﾎｰﾂｸｷｯｽﾞ | J108: 3 | M108: ｼﾞｬﾍﾞﾘｯｸﾎﾞｰﾙ投大木駿徹 | N108: 1
A109: フィールド記録会 | B109: 網走 | C109: 2019-06-08 | D109: 小学男子 | E109: ｼﾞｬﾍﾞﾘｯｸﾎﾞｰﾙ投 | F109: 大友優雅 | G109: 1983 | H109: 決 | I109: 知床斜里RC | J109: 6 | M109: ｼﾞｬﾍﾞﾘｯｸﾎﾞｰﾙ投大友優雅 | N109: 1
A110: フィールド記録会 | B110: 網走 | C110: 2019-06-08 | D110: 小学男子 | E110: ｼﾞｬﾍﾞﾘｯｸﾎﾞｰﾙ投 | F110: 谷浦晴磨 | G110: 3160 | H110: 決 | I110: 美幌RC | J110: 4 | M110: ｼﾞｬﾍﾞﾘｯｸﾎﾞｰﾙ投谷浦晴磨 | N110: 1
A111: 全道小学 | B111: 札幌 | C111: 2019-07-14 | D111: 小学女子 | E111: ｼﾞｬﾍﾞﾘｯｸﾎﾞｰﾙ投 | F111: 谷脇那由多 | G111: 1824 | H111: 決 | I111: ｵﾎｰﾂｸｷｯｽﾞ | J111: 3 | M111: ｼﾞｬﾍﾞﾘｯｸﾎﾞｰﾙ投谷脇那由多 | N111: 1
A112: 小学生ｵﾎｰﾂｸ | B112: 北見 | C112: 2019-06-16 | D112: 小学男子 | E112: ｼﾞｬﾍﾞﾘｯｸﾎﾞｰﾙ投 | F112: 中村海杜 | G112: 3315 | H112: 決 | I112: 知床斜里RC | J112: 6 | M112: ｼﾞｬﾍﾞﾘｯｸﾎﾞｰﾙ投中村海杜 | N112: 1
A113: フィールド記録会 | B113: 網走 | C113: 2019-06-08 | D113: 小学男子 | E113: ｼﾞｬﾍﾞﾘｯｸﾎﾞｰﾙ投 | F113: 中村星汰 | G113: 3229 | H113: 決 | I113: 知床斜里RC | J113: 6 | M113: ｼﾞｬﾍﾞﾘｯｸﾎﾞｰﾙ投中村星汰 | N113: 1
A114: 選手権 | B114: 北見 | C114: 2019-05-11 | D114: 小学男子 | E114: ｼﾞｬﾍﾞﾘｯｸﾎﾞｰﾙ投 | F114: 中村直 | G114: 3844 | H114: 決 | I114: 常呂陸上少年団 | J114: 6 | M114: ｼﾞｬﾍﾞﾘｯｸﾎﾞｰﾙ投中村直 | N114: 1
A115: 選手権 | B115: 北見 | C115: 2019-05-11 | D115: 小学男子 | E115: ｼﾞｬﾍﾞﾘｯｸﾎﾞｰﾙ投 | F115: 長谷川大巧 | G115: 2873 | H115: 決 | I115: 美幌RC | J115: 3 | M115: ｼﾞｬﾍﾞﾘｯｸﾎﾞｰﾙ投長谷川大巧 | N115: 1
A116: 全道小学 | B116: 札幌 | C116: 2019-07-15 | D116: 小学女子 | E116: ｼﾞｬﾍﾞﾘｯｸﾎﾞｰﾙ投 | F116: 田辺采子 | G116: 3611 | H116: 決 | I116: ｵﾎｰﾂｸｷｯｽﾞ | J116: 5 | M116: ｼﾞｬﾍﾞﾘｯｸﾎﾞｰﾙ投田辺采子 | N116: 1
A117: 小学生ｵﾎｰﾂｸ | B117: 北見 | C117: 2019-06-16 | D117: 小学男子 | E117: ｼﾞｬﾍﾞﾘｯｸﾎﾞｰﾙ投 | F117: 梅田彪牙 | G117: 3101 | H117: 決 | I117: 美幌RC | J117: 5 | M117: ｼﾞｬﾍﾞﾘｯｸﾎﾞｰﾙ投梅田彪牙 | N117: 1
A118: 全道小学 | B118: 札幌 | C118: 2019-07-15 | D118: 小学男子 | E118: ｼﾞｬﾍﾞﾘｯｸﾎﾞｰﾙ投 | F118: 白石大和 | G118: 4443 | H118: 決 | I118: ｵﾎｰﾂｸｷｯｽﾞ | J118: 5 | M118: ｼﾞｬﾍﾞﾘｯｸﾎﾞｰﾙ投白石大和 | N118: =IF(M118=M117,0,1) -> 1
A119: フィールド記録会 | B119: 網走 | C119: 2019-06-08 | D119: 小学男子 | E119: ｼﾞｬﾍﾞﾘｯｸﾎﾞｰﾙ投 | F119: 畑谷颯樹 | G119: 2182 | H119: 決 | I119: 知床アスリートクラブ | J119: 3 | M119: ｼﾞｬﾍﾞﾘｯｸﾎﾞｰﾙ投畑谷颯樹 | N119: 1
A120: 全道小学 | B120: 札幌 | C120: 2019-07-14 | D120: 小学女子 | E120: ｼﾞｬﾍﾞﾘｯｸﾎﾞｰﾙ投 | F120: 尾中ふたば | G120: 2263 | H120: 決 | I120: 美幌RC | J120: 4 | M120: ｼﾞｬﾍﾞﾘｯｸﾎﾞｰﾙ投尾中ふたば | N120: 1
A121: 小学生ｵﾎｰﾂｸ | B121: 北見 | C121: 2019-06-16 | D121: 小学男子 | E121: ｼﾞｬﾍﾞﾘｯｸﾎﾞｰﾙ投 | F121: 武田航太朗 | G121: 2409 | H121: 決 | I121: 常呂陸上少年団 | J121: 4 | M121: ｼﾞｬﾍﾞﾘｯｸﾎﾞｰﾙ投武田航太朗 | N121: 1
A122: 選手権 | B122: 北見 | C122: 2019-05-11 | D122: 小学男子 | E122: ｼﾞｬﾍﾞﾘｯｸﾎﾞｰﾙ投 | F122: 武田航太郎 | G122: 2308 | H122: 決 | I122: 常呂陸上少年団 | J122: 4 | M122: ｼﾞｬﾍﾞﾘｯｸﾎﾞｰﾙ投武田航太郎 | N122: 1
A123: 選手権 | B123: 北見 | C123: 2019-05-11 | D123: 小学男子 | E123: ｼﾞｬﾍﾞﾘｯｸﾎﾞｰﾙ投 | F123: 福井慶太 | G123: 3268 | H123: 決 | I123: ｵﾎｰﾂｸｷｯｽﾞ | J123: 3 | M123: ｼﾞｬﾍﾞﾘｯｸﾎﾞｰﾙ投福井慶太 | N123: 1
A124: 選手権 | B124: 北見 | C124: 2019-05-11 | D124: 小学男子 | E124: ｼﾞｬﾍﾞﾘｯｸﾎﾞｰﾙ投 | F124: 平沢敦斗 | G124: 1586 | H124: 決 | I124: ｵﾎｰﾂｸｷｯｽﾞ | J124: 3 | M124: ｼﾞｬﾍﾞﾘｯｸﾎﾞｰﾙ投平沢敦斗 | N124: 1
A125: 小学生ｵﾎｰﾂｸ | B125: 北見 | C125: 2019-06-16 | D125: 小学男子 | E125: ｼﾞｬﾍﾞﾘｯｸﾎﾞｰﾙ投 | F125: 堀田侑希 | G125: 2087 | H125: 決 | I125: ｵﾎｰﾂｸｷｯｽﾞ | J125: 3 | M125: ｼﾞｬﾍﾞﾘｯｸﾎﾞｰﾙ投堀田侑希 | N125: 1
A126: フィールド記録会 | B126: 網走 | C126: 2019-06-08 | D126: 小学男子 | E126: ｼﾞｬﾍﾞﾘｯｸﾎﾞｰﾙ投 | F126: 本田櫂晴 | G126: 3971 | H126: 決 | I126: ｵﾎｰﾂｸｷｯｽﾞ | J126: 5 | M126: ｼﾞｬﾍﾞﾘｯｸﾎﾞｰﾙ投本田櫂晴 | N126: 1
A127: 小学生ｵﾎｰﾂｸ | B127: 北見 | C127: 2019-06-16 | D127: 小学女子 | E127: ｼﾞｬﾍﾞﾘｯｸﾎﾞｰﾙ投 | F127: 木村美桜 | G127: 2463 | H127: 決 | I127: 常呂陸上少年団 | J127: 3 | M127: ｼﾞｬﾍﾞﾘｯｸﾎﾞｰﾙ投木村美桜 | N127: 1
A128: 選手権 | B128: 北見 | C128: 2019-05-11 | D128: 小学男子 | E128: ｼﾞｬﾍﾞﾘｯｸﾎﾞｰﾙ投 | F128: 澤田涼 | G128: 2617 | H128: 決 | I128: 知床斜里RC | J128: 5 | M128: ｼﾞｬﾍﾞﾘｯｸﾎﾞｰﾙ投澤田涼 | N128: 1
A129: 小学生ｵﾎｰﾂｸ | B129: 北見 | C129: 2019-06-16 | D129: 小学男子 | E129: ｼﾞｬﾍﾞﾘｯｸﾎﾞｰﾙ投 | F129: 齋藤匡樹 | G129: 2779 | H129: 決 | I129: 網走陸上少年団 | J129: 5 | M129: ｼﾞｬﾍﾞﾘｯｸﾎﾞｰﾙ投齋藤匡樹 | N129: 1
A130: 選手権 | B130: 北見 | C130: 2019-05-11 | D130: 小学男子 | E130: ｼﾞｬﾍﾞﾘｯｸﾎﾞｰﾙ投 | F130: 髙橋信宗 | G130: 2727 | H130: 決 | I130: 知床斜里RC | J130: 5 | M130: =E130&F130 -> ｼﾞｬﾍﾞﾘｯｸﾎﾞｰﾙ投髙橋信宗 | N130: 1
A131: 道選手権 | B131: 網走 | C131: 2019-08-10 | D131: 一般女子 | E131: ハンマー投 | F131: 阿部冬彩 | G131: 4443 | H131: 決 | I131: 順天堂大 | J131: 2 | M131: ハンマー投阿部冬彩 | N131: 1
A132: 高体連支部 | B132: 北見 | C132: 2019-05-23 | D132: 高校男子 | E132: ハンマー投 | F132: 夏野克規 | G132: 1878 | H132: 決 | I132: 遠軽高 | J132: 1 | M132: ハンマー投夏野克規 | N132: 1
A133: 道選手権 | B133: 網走 | C133: 2019-08-10 | D133: 一般男子 | E133: ハンマー投 | F133: 岩越健太 | G133: 4636 | H133: 決 | I133: オホーツクAC | J133: 0 | M133: ハンマー投岩越健太 | N133: 1
A134: フィールド記録会 | B134: 網走 | C134: 2019-06-08 | D134: 高校女子 | E134: ハンマー投 | F134: 金澤茉梨亜 | G134: 3941 | H134: 決 | I134: 遠軽高 | J134: 3 | M134: ハンマー投金澤茉梨亜 | N134: =IF(M134=#REF!,0,1) -> 
A135: 高体連支部 | B135: 北見 | C135: 2019-05-23 | D135: 高校男子 | E135: ハンマー投 | F135: 工藤颯斗 | G135: 3036 | H135: 決 | I135: 網走南ヶ丘高 | J135: 3 | M135: ハンマー投工藤颯斗 | N135: =IF(M135=#REF!,0,1) -> 
A136: 記録会４戦 | B136: 北見 | C136: 2019-08-04 | D136: 高校男子 | E136: ハンマー投 | F136: 高宮魁 | G136: 2658 | H136: 決 | I136: 雄武高 | J136: 1 | M136: ハンマー投高宮魁 | N136: 1
A137: 全道高校新人 | B137: 函館 | C137: 9/18 | D137: 高校女子 | E137: ハンマー投 | F137: 高橋愛唯 | G137: 2259 | H137: 決 | I137: 遠軽高 | J137: 2 | M137: ハンマー投高橋愛唯 | N137: 1
A138: 記録会４戦 | B138: 北見 | C138: 2019-08-04 | D138: 高校男子 | E138: ハンマー投 | F138: 高嶋祐太 | G138: 3780 | H138: 決 | I138: 遠軽高 | J138: 2 | M138: ハンマー投高嶋祐太 | N138: 1
A139: 秋季陸上 | B139: 網走 | C139: 2019-09-07 | D139: 高校男子 | E139: ハンマー投 | F139: 佐川翔流 | G139: 3888 | H139: 決 | I139: 遠軽高 | J139: 2 | M139: ハンマー投佐川翔流 | N139: =IF(M139=#REF!,0,1) -> 
A140: 高体連支部 | B140: 北見 | C140: 2019-05-23 | D140: 高校男子 | E140: ハンマー投 | F140: 佐川翔琉 | G140: 4035 | H140: 決 | I140: 遠軽高 | J140: 2 | M140: ハンマー投佐川翔琉 | N140: 1
A141: 高校新人 | B141: 網走 | C141: 2019-08-24 | D141: 高校男子 | E141: ハンマー投 | F141: 佐藤汰希 | G141: 3577 | H141: 決 | I141: 興部高 | J141: 2 | M141: ハンマー投佐藤汰希 | N141: =IF(M141=#REF!,0,1) -> 
A142: フィールド記録会 | B142: 網走 | C142: 2019-06-08 | D142: 一般男子 | E142: ハンマー投 | F142: 山下大輔 | G142: 4302 | H142: 決 | I142: 釧路地方陸協 | J142: 般 | M142: ハンマー投山下大輔 | N142: =IF(M142=#REF!,0,1) -> 
A143: 高体連支部 | B143: 北見 | C143: 2019-05-23 | D143: 高校女子 | E143: ハンマー投 | F143: 山田幸奈 | G143: 2420 | H143: 決 | I143: 網走桂陽高 | J143: 3 | M143: ハンマー投山田幸奈 | N143: 1
A144: 秋季陸上 | B144: 網走 | C144: 2019-09-07 | D144: 高校女子 | E144: ハンマー投 | F144: 舟木愛公 | G144: 2602 | H144: 決 | I144: 遠軽高 | J144: 1 | M144: ハンマー投舟木愛公 | N144: 1
A145: 高体連支部 | B145: 北見 | C145: 2019-05-23 | D145: 高校女子 | E145: ハンマー投 | F145: 植村菜々 | G145: 4211 | H145: 決 | I145: 遠軽高 | J145: 3 | M145: ハンマー投植村菜々 | N145: =IF(M145=#REF!,0,1) -> 
A146: フィールド記録会 | B146: 網走 | C146: 2019-06-08 | D146: 高校女子 | E146: ハンマー投 | F146: 植村葉月 | G146: 2514 | H146: 決 | I146: 湧別高 | J146: 3 | M146: ハンマー投植村葉月 | N146: =IF(M146=#REF!,0,1) -> 
A147: 秋季陸上 | B147: 網走 | C147: 2019-09-07 | D147: 一般男子 | E147: ハンマー投 | F147: 川田恒 | G147: 3898 | H147: 決 | I147: ｵﾎｰﾂｸ陸協(川田) | J147: 般 | M147: ハンマー投川田恒 | N147: 1
A148: フィールド記録会 | B148: 網走 | C148: 2019-06-08 | D148: 高校男子 | E148: ハンマー投 | F148: 中村拓斗 | G148: 1693 | H148: 決 | I148: 美幌高 | J148: 3 | M148: ハンマー投中村拓斗 | N148: =IF(M148=#REF!,0,1) -> 
A149: 選手権 | B149: 北見 | C149: 2019-05-12 | D149: 高校男子 | E149: ハンマー投 | F149: 長谷部岳斗 | G149: 2452 | H149: 決 | I149: 北見工業高 | J149: 3 | M149: ハンマー投長谷部岳斗 | N149: 1
A150: 道選手権 | B150: 網走 | C150: 2019-08-10 | D150: 一般女子 | E150: ハンマー投 | F150: 尾崎京子 | G150: 4265 | H150: 決 | I150: 東海大 | J150: 2 | M150: ハンマー投尾崎京子 | N150: 1
A151: 国体予選 | B151: 室蘭 | C151: 2019-07-20 | D151: 高校男子 | E151: ハンマー投 | F151: 目黒智也 | G151: 3894 | H151: 決 | I151: 斜里高 | J151: 2 | M151: ハンマー投目黒智也 | N151: 1
A152: 秋季陸上 | B152: 網走 | C152: 2019-09-07 | D152: 高校女子 | E152: ハンマー投 | F152: 髙橋愛唯 | G152: 2111 | H152: 決 | I152: 遠軽高 | J152: 2 | M152: ハンマー投髙橋愛唯 | N152: =IF(M152=#REF!,0,1) -> 
A153: 高校新人 | B153: 網走 | C153: 2019-08-24 | D153: 高校男子 | E153: ハンマー投 | F153: 髙嶋祐太 | G153: 3816 | H153: 決 | I153: 遠軽高 | J153: 2 | M153: ハンマー投髙嶋祐太 | N153: =IF(M153=#REF!,0,1) -> 
A154: 小学記録会 | B154: 北見 | C154: 2019-09-28 | D154: 小学女子 | E154: ﾎﾞｰﾃｯｸｽｽﾛｰ投 | F154: 安藤和 | G154: 3691 | H154: 決 | I154: 清里陸上少年団 | J154: 6 | M154: ﾎﾞｰﾃｯｸｽｽﾛｰ投安藤和 | N154: =IF(M154=#REF!,0,1) -> 
A155: 小学記録会 | B155: 北見 | C155: 2019-09-28 | D155: 小学男子 | E155: ﾎﾞｰﾃｯｸｽｽﾛｰ投 | F155: 井田悠仁 | G155: 2151 | H155: 決 | I155: ｵﾎｰﾂｸｷｯｽﾞ | J155: 5 | M155: ﾎﾞｰﾃｯｸｽｽﾛｰ投井田悠仁 | N155: 1
A156: 小学記録会 | B156: 北見 | C156: 2019-09-28 | D156: 小学男子 | E156: ﾎﾞｰﾃｯｸｽｽﾛｰ投 | F156: 刈屋柊晴 | G156: 2272 | H156: 決 | I156: ｵﾎｰﾂｸｷｯｽﾞ | J156: 4 | M156: ﾎﾞｰﾃｯｸｽｽﾛｰ投刈屋柊晴 | N156: 1
A157: 小学記録会 | B157: 北見 | C157: 2019-09-28 | D157: 小学女子 | E157: ﾎﾞｰﾃｯｸｽｽﾛｰ投 | F157: 関谷楓花 | G157: 3075 | H157: 決 | I157: 常呂陸上少年団 | J157: 6 | M157: ﾎﾞｰﾃｯｸｽｽﾛｰ投関谷楓花 | N157: 1
A158: 小学記録会 | B158: 北見 | C158: 2019-09-28 | D158: 小学男子 | E158: ﾎﾞｰﾃｯｸｽｽﾛｰ投 | F158: 館日々輝 | G158: 3013 | H158: 決 | I158: 美幌RC | J158: 5 | M158: ﾎﾞｰﾃｯｸｽｽﾛｰ投館日々輝 | N158: 1
A159: 小学記録会 | B159: 北見 | C159: 2019-09-28 | D159: 小学男子 | E159: ﾎﾞｰﾃｯｸｽｽﾛｰ投 | F159: 吉田仙太 | G159: 3060 | H159: 決 | I159: 美幌RC | J159: 5 | M159: ﾎﾞｰﾃｯｸｽｽﾛｰ投吉田仙太 | N159: 1
A160: 小学記録会 | B160: 北見 | C160: 2019-09-28 | D160: 小学女子 | E160: ﾎﾞｰﾃｯｸｽｽﾛｰ投 | F160: 久保田颯歩 | G160: 1740 | H160: 決 | I160: 知床斜里RC | J160: 5 | M160: ﾎﾞｰﾃｯｸｽｽﾛｰ投久保田颯歩 | N160: 1
A161: 小学記録会 | B161: 北見 | C161: 2019-09-28 | D161: 小学男子 | E161: ﾎﾞｰﾃｯｸｽｽﾛｰ投 | F161: 宮下琉汰 | G161: 3505 | H161: 決 | I161: ｵﾎｰﾂｸｷｯｽﾞ | J161: 6 | M161: ﾎﾞｰﾃｯｸｽｽﾛｰ投宮下琉汰 | N161: 1
A162: 小学記録会 | B162: 北見 | C162: 2019-09-28 | D162: 小学男子 | E162: ﾎﾞｰﾃｯｸｽｽﾛｰ投 | F162: 桐山晴良 | G162: 2221 | H162: 決 | I162: 美幌XC少年団 | M162: ﾎﾞｰﾃｯｸｽｽﾛｰ投桐山晴良 | N162: 1
A163: 小学記録会 | B163: 北見 | C163: 2019-09-28 | D163: 小学女子 | E163: ﾎﾞｰﾃｯｸｽｽﾛｰ投 | F163: 金子心乃 | G163: 2927 | H163: 決 | I163: 遠軽陸上ｸﾗﾌﾞ | J163: 5 | M163: ﾎﾞｰﾃｯｸｽｽﾛｰ投金子心乃 | N163: 1
A164: 小学記録会 | B164: 北見 | C164: 2019-09-28 | D164: 小学男子 | E164: ﾎﾞｰﾃｯｸｽｽﾛｰ投 | F164: 工藤龍祈 | G164: 3403 | H164: 決 | I164: ｵﾎｰﾂｸｷｯｽﾞ | J164: 4 | M164: ﾎﾞｰﾃｯｸｽｽﾛｰ投工藤龍祈 | N164: 1
A165: 小学記録会 | B165: 北見 | C165: 2019-09-28 | D165: 小学男子 | E165: ﾎﾞｰﾃｯｸｽｽﾛｰ投 | F165: 荒木碧巴 | G165: 4377 | H165: 決 | I165: 知床斜里RC | J165: 6 | M165: ﾎﾞｰﾃｯｸｽｽﾛｰ投荒木碧巴 | N165: 1
A166: 小学記録会 | B166: 北見 | C166: 2019-09-28 | D166: 小学男子 | E166: ﾎﾞｰﾃｯｸｽｽﾛｰ投 | F166: 高橋信宗 | G166: 2720 | H166: 決 | I166: 知床斜里RC | J166: 5 | M166: ﾎﾞｰﾃｯｸｽｽﾛｰ投高橋信宗 | N166: 1
A167: 小学記録会 | B167: 北見 | C167: 2019-09-28 | D167: 小学男子 | E167: ﾎﾞｰﾃｯｸｽｽﾛｰ投 | F167: 高瀬生楓 | G167: 3081 | H167: 決 | I167: ｵﾎｰﾂｸｷｯｽﾞ | J167: 3 | M167: ﾎﾞｰﾃｯｸｽｽﾛｰ投高瀬生楓 | N167: 1
A168: 小学記録会 | B168: 北見 | C168: 2019-09-28 | D168: 小学男子 | E168: ﾎﾞｰﾃｯｸｽｽﾛｰ投 | F168: 佐々木進之介 | G168: 2487 | H168: 決 | I168: 知床斜里RC | J168: 5 | M168: ﾎﾞｰﾃｯｸｽｽﾛｰ投佐々木進之介 | N168: 1
A169: 小学記録会 | B169: 北見 | C169: 2019-09-28 | D169: 小学女子 | E169: ﾎﾞｰﾃｯｸｽｽﾛｰ投 | F169: 妻鳥実和 | G169: 1448 | H169: 決 | I169: ｵﾎｰﾂｸｷｯｽﾞ | J169: 3 | M169: ﾎﾞｰﾃｯｸｽｽﾛｰ投妻鳥実和 | N169: =IF(M169=M168,0,1) -> 1
A170: 小学記録会 | B170: 北見 | C170: 2019-09-28 | D170: 小学男子 | E170: ﾎﾞｰﾃｯｸｽｽﾛｰ投 | F170: 斎藤青空 | G170: 2384 | H170: 決 | I170: ｵﾎｰﾂｸｷｯｽﾞ | J170: 4 | M170: ﾎﾞｰﾃｯｸｽｽﾛｰ投斎藤青空 | N170: 1
A171: 小学記録会 | B171: 北見 | C171: 2019-09-28 | D171: 小学男子 | E171: ﾎﾞｰﾃｯｸｽｽﾛｰ投 | F171: 阪口智洋 | G171: 3947 | H171: 決 | I171: 常呂陸上少年団 | J171: 6 | M171: ﾎﾞｰﾃｯｸｽｽﾛｰ投阪口智洋 | N171: 1
A172: 小学記録会 | B172: 北見 | C172: 2019-09-28 | D172: 小学男子 | E172: ﾎﾞｰﾃｯｸｽｽﾛｰ投 | F172: 三浦正史 | G172: 2558 | H172: 決 | I172: 美幌RC | J172: 3 | M172: ﾎﾞｰﾃｯｸｽｽﾛｰ投三浦正史 | N172: 1
A173: 小学記録会 | B173: 北見 | C173: 2019-09-28 | D173: 小学女子 | E173: ﾎﾞｰﾃｯｸｽｽﾛｰ投 | F173: 室田心愛 | G173: 3729 | H173: 決 | I173: 常呂陸上少年団 | J173: 6 | M173: ﾎﾞｰﾃｯｸｽｽﾛｰ投室田心愛 | N173: 1
A174: 小学記録会 | B174: 北見 | C174: 2019-09-28 | D174: 小学男子 | E174: ﾎﾞｰﾃｯｸｽｽﾛｰ投 | F174: 柴田遥斗 | G174: 2889 | H174: 決 | I174: ｵﾎｰﾂｸｷｯｽﾞ | J174: 3 | M174: ﾎﾞｰﾃｯｸｽｽﾛｰ投柴田遥斗 | N174: 1
A175: 小学記録会 | B175: 北見 | C175: 2019-09-28 | D175: 小学男子 | E175: ﾎﾞｰﾃｯｸｽｽﾛｰ投 | F175: 若月柚樹 | G175: 3834 | H175: 決 | I175: 美幌RC | J175: 4 | M175: ﾎﾞｰﾃｯｸｽｽﾛｰ投若月柚樹 | N175: 1
A176: 小学記録会 | B176: 北見 | C176: 2019-09-28 | D176: 小学男子 | E176: ﾎﾞｰﾃｯｸｽｽﾛｰ投 | F176: 小笠原昊 | G176: 3530 | H176: 決 | I176: 清里陸上少年団 | J176: 6 | M176: ﾎﾞｰﾃｯｸｽｽﾛｰ投小笠原昊 | N176: 1
A177: 小学記録会 | B177: 北見 | C177: 2019-09-28 | D177: 小学男子 | E177: ﾎﾞｰﾃｯｸｽｽﾛｰ投 | F177: 小畠正宗 | G177: 2300 | H177: 決 | I177: ｵﾎｰﾂｸｷｯｽﾞ | J177: 4 | M177: ﾎﾞｰﾃｯｸｽｽﾛｰ投小畠正宗 | N177: 1
A178: 小学記録会 | B178: 北見 | C178: 2019-09-28 | D178: 小学男子 | E178: ﾎﾞｰﾃｯｸｽｽﾛｰ投 | F178: 上原優人 | G178: 2737 | H178: 決 | I178: 訓子府陸上少年団 | J178: 4 | M178: ﾎﾞｰﾃｯｸｽｽﾛｰ投上原優人 | N178: 1
A179: 小学記録会 | B179: 北見 | C179: 2019-09-28 | D179: 小学男子 | E179: ﾎﾞｰﾃｯｸｽｽﾛｰ投 | F179: 新谷一真 | G179: 2191 | H179: 決 | I179: ｵﾎｰﾂｸｷｯｽﾞ | J179: 3 | M179: ﾎﾞｰﾃｯｸｽｽﾛｰ投新谷一真 | N179: 1
A180: 小学記録会 | B180: 北見 | C180: 2019-09-28 | D180: 小学男子 | E180: ﾎﾞｰﾃｯｸｽｽﾛｰ投 | F180: 森谷翔 | G180: 2701 | H180: 決 | I180: 訓子府陸上少年団 | J180: 3 | M180: ﾎﾞｰﾃｯｸｽｽﾛｰ投森谷翔 | N180: 1
A181: 小学記録会 | B181: 北見 | C181: 2019-09-28 | D181: 小学男子 | E181: ﾎﾞｰﾃｯｸｽｽﾛｰ投 | F181: 須藤陸都 | G181: 2539 | H181: 決 | I181: 北見美山小 | J181: 3 | M181: ﾎﾞｰﾃｯｸｽｽﾛｰ投須藤陸都 | N181: 1
A182: 小学記録会 | B182: 北見 | C182: 2019-09-28 | D182: 小学男子 | E182: ﾎﾞｰﾃｯｸｽｽﾛｰ投 | F182: 石橋伸悠 | G182: 941 | H182: 決 | I182: 美幌RC | J182: 5 | M182: ﾎﾞｰﾃｯｸｽｽﾛｰ投石橋伸悠 | N182: 1
A183: 小学記録会 | B183: 北見 | C183: 2019-09-28 | D183: 小学女子 | E183: ﾎﾞｰﾃｯｸｽｽﾛｰ投 | F183: 大野凜 | G183: 1514 | H183: 決 | I183: ｵﾎｰﾂｸｷｯｽﾞ | J183: 3 | M183: ﾎﾞｰﾃｯｸｽｽﾛｰ投大野凜 | N183: 1
A184: 小学記録会 | B184: 北見 | C184: 2019-09-28 | D184: 小学男子 | E184: ﾎﾞｰﾃｯｸｽｽﾛｰ投 | F184: 中村直 | G184: 3675 | H184: 決 | I184: 常呂陸上少年団 | J184: 6 | M184: ﾎﾞｰﾃｯｸｽｽﾛｰ投中村直 | N184: 1
A185: 小学記録会 | B185: 北見 | C185: 2019-09-28 | D185: 小学男子 | E185: ﾎﾞｰﾃｯｸｽｽﾛｰ投 | F185: 長谷川大巧 | G185: 2894 | H185: 決 | I185: 美幌RC | J185: 3 | M185: ﾎﾞｰﾃｯｸｽｽﾛｰ投長谷川大巧 | N185: 1
A186: 小学記録会 | B186: 北見 | C186: 2019-09-28 | D186: 小学女子 | E186: ﾎﾞｰﾃｯｸｽｽﾛｰ投 | F186: 田辺采子 | G186: 3298 | H186: 決 | I186: ｵﾎｰﾂｸｷｯｽﾞ | J186: 5 | M186: ﾎﾞｰﾃｯｸｽｽﾛｰ投田辺采子 | N186: 1
A187: 小学記録会 | B187: 北見 | C187: 2019-09-28 | D187: 小学男子 | E187: ﾎﾞｰﾃｯｸｽｽﾛｰ投 | F187: 梅田彪牙 | G187: 3246 | H187: 決 | I187: 美幌RC | J187: 5 | M187: ﾎﾞｰﾃｯｸｽｽﾛｰ投梅田彪牙 | N187: 1
A188: 小学記録会 | B188: 北見 | C188: 2019-09-28 | D188: 小学男子 | E188: ﾎﾞｰﾃｯｸｽｽﾛｰ投 | F188: 白石大和 | G188: 4774 | H188: 決 | I188: ｵﾎｰﾂｸｷｯｽﾞ | J188: 5 | M188: ﾎﾞｰﾃｯｸｽｽﾛｰ投白石大和 | N188: 1
A189: 小学記録会 | B189: 北見 | C189: 2019-09-28 | D189: 小学男子 | E189: ﾎﾞｰﾃｯｸｽｽﾛｰ投 | F189: 武田航太朗 | G189: 2887 | H189: 決 | I189: 常呂陸上少年団 | J189: 4 | M189: ﾎﾞｰﾃｯｸｽｽﾛｰ投武田航太朗 | N189: 1
A190: 小学記録会 | B190: 北見 | C190: 2019-09-28 | D190: 小学男子 | E190: ﾎﾞｰﾃｯｸｽｽﾛｰ投 | F190: 平沢敦斗 | G190: 1324 | H190: 決 | I190: ｵﾎｰﾂｸｷｯｽﾞ | J190: 3 | M190: ﾎﾞｰﾃｯｸｽｽﾛｰ投平沢敦斗 | N190: 1
A191: 小学記録会 | B191: 北見 | C191: 2019-09-28 | D191: 小学男子 | E191: ﾎﾞｰﾃｯｸｽｽﾛｰ投 | F191: 堀田侑希 | G191: 1579 | H191: 決 | I191: ｵﾎｰﾂｸｷｯｽﾞ | J191: 3 | M191: ﾎﾞｰﾃｯｸｽｽﾛｰ投堀田侑希 | N191: 1
A192: 小学記録会 | B192: 北見 | C192: 2019-09-28 | D192: 小学女子 | E192: ﾎﾞｰﾃｯｸｽｽﾛｰ投 | F192: 木村美桜 | G192: 2363 | H192: 決 | I192: 常呂陸上少年団 | J192: 3 | M192: ﾎﾞｰﾃｯｸｽｽﾛｰ投木村美桜 | N192: 1
A193: 小学記録会 | B193: 北見 | C193: 2019-09-28 | D193: 小学男子 | E193: ﾎﾞｰﾃｯｸｽｽﾛｰ投 | F193: 澤田涼 | G193: 2577 | H193: 決 | I193: 知床斜里RC | J193: 5 | M193: ﾎﾞｰﾃｯｸｽｽﾛｰ投澤田涼 | N193: 1
A194: 小学記録会 | B194: 北見 | C194: 2019-09-28 | D194: 小学男子 | E194: ﾎﾞｰﾃｯｸｽｽﾛｰ投 | F194: 齋藤匡樹 | G194: 3119 | H194: 決 | I194: 網走陸上少年団 | J194: 5 | M194: =E194&F194 -> ﾎﾞｰﾃｯｸｽｽﾛｰ投齋藤匡樹 | N194: 1
A195: 高体連支部 | B195: 北見 | C195: 2019-05-23 | D195: 高校男子 | E195: やり投 | F195: 阿部優斗 | G195: 3716 | H195: 決 | I195: 遠軽高 | J195: 2 | M195: やり投阿部優斗 | N195: 1
A196: 記録会４戦 | B196: 北見 | C196: 2019-08-04 | D196: 高校男子 | E196: やり投 | F196: 伊奈翔大 | G196: 2952 | H196: 決 | I196: 北見柏陽高 | J196: 1 | M196: やり投伊奈翔大 | N196: =IF(M196=#REF!,0,1) -> 
A197: 高校新人 | B197: 網走 | C197: 2019-08-23 | D197: 高校男子 | E197: やり投 | F197: 臼井貴将 | G197: 3448 | H197: 決 | I197: 網走南ヶ丘高 | J197: 2 | M197: やり投臼井貴将 | N197: 1
A198: 秋季陸上 | B198: 網走 | C198: 2019-09-07 | D198: 高校男子 | E198: やり投 | F198: 横山陸翔 | G198: 2611 | H198: 決 | I198: 日体大附属高 | J198: 1 | M198: やり投横山陸翔 | N198: 1
A199: 全道高校新人 | B199: 函館 | C199: 9/18 | D199: 高校女子 | E199: やり投 | F199: 横山倫花 | G199: 2300 | H199: 予 | I199: 北見緑陵高 | J199: 1 | M199: やり投横山倫花 | N199: =IF(M199=#REF!,0,1) -> 
A200: フィールド記録会 | B200: 網走 | C200: 2019-06-08 | D200: 一般男子 | E200: やり投 | F200: 荻原慧 | G200: 3549 | H200: 決 | I200: 北見工大 | J200: 般 | M200: やり投荻原慧 | N200: =IF(M200=#REF!,0,1) -> 
... 643 more rows

Sheet 種目毎
A1: R01 ｵﾎｰﾂｸ陸協記録集計 | L1: 種別 | N1: 中学男子 | Q1: 種目 | S1: 走幅跳 | Z1: 競技会名 | AA1: 競技場 | AB1: 競技実施月日 | AC1: クラス | AD1: 種目 | AE1: 選手／チーム | AF1: 記録 | AG1: ラウンド | AH1: 所属 | AI1: 学年 | AJ1: 風速
A3: 全順 | C3: Rank | D3: 競技会名 | G3: 競技場 | I3: 実施日 | K3: 選手 | O3: 記録 | R3: R | S3: 所属 | V3: 年 | W3: 風
A4: 1 | B4: =IF(COUNTIF($K$4:N4,K4)=1,1,0) -> 1 | C4: 1 | D4: =VLOOKUP($N$1&$S$1&A4,抽出!$B$4:$O$903,6,FALSE) -> 中体連地区 | G4: =VLOOKUP($N$1&$S$1&A4,抽出!$B$4:$O$903,7,FALSE) -> 北見 | I4: =VLOOKUP($N$1&$S$1&A4,抽出!$B$4:$O$903,8,FALSE) -> 2019-06-15 | K4: =VLOOKUP($N$1&$S$1&A4,抽出!$B$4:$O$903,9,FALSE) -> 西迫篤志 | O4: =VLOOKUP($N$1&$S$1&A4,抽出!$B$4:$O$903,10,FALSE) -> 659 | R4: =VLOOKUP($N$1&$S$1&A4,抽出!$B$4:$O$903,11,FALSE) -> 決 | S4: =VLOOKUP($N$1&$S$1&A4,抽出!$B$4:$O$903,12,FALSE) -> 北見北中 | V4: =VLOOKUP($N$1&$S$1&A4,抽出!$B$4:$O$903,13,FALSE) -> 3 | W4: =VLOOKUP($N$1&$S$1&A4,抽出!$B$4:$O$903,14,FALSE) -> 1.9 | Z4: 小学男子 | AA4: 小男
A5: 2 | B5: =IF(COUNTIF($K$4:N5,K5)=1,1,0) -> 1 | C5: =IF(B5=0,"",SUM($B$4:B5)) -> 2 | D5: =VLOOKUP($N$1&$S$1&A5,抽出!$B$4:$O$903,6,FALSE) -> フィールド記録会 | G5: =VLOOKUP($N$1&$S$1&A5,抽出!$B$4:$O$903,7,FALSE) -> 網走 | I5: =VLOOKUP($N$1&$S$1&A5,抽出!$B$4:$O$903,8,FALSE) -> 2019-06-08 | K5: =VLOOKUP($N$1&$S$1&A5,抽出!$B$4:$O$903,9,FALSE) -> 大水颯太 | O5: =VLOOKUP($N$1&$S$1&A5,抽出!$B$4:$O$903,10,FALSE) -> 639 | R5: =VLOOKUP($N$1&$S$1&A5,抽出!$B$4:$O$903,11,FALSE) -> 決 | S5: =VLOOKUP($N$1&$S$1&A5,抽出!$B$4:$O$903,12,FALSE) -> 雄武中 | V5: =VLOOKUP($N$1&$S$1&A5,抽出!$B$4:$O$903,13,FALSE) -> 3 | W5: =VLOOKUP($N$1&$S$1&A5,抽出!$B$4:$O$903,14,FALSE) -> 3.3 | Z5: 小学女子 | AA5: 小女 | AC5: 走幅跳
A6: 3 | B6: =IF(COUNTIF($K$4:N6,K6)=1,1,0) -> 1 | C6: =IF(B6=0,"",SUM($B$4:B6)) -> 3 | D6: =VLOOKUP($N$1&$S$1&A6,抽出!$B$4:$O$903,6,FALSE) -> 全道中学新人 | G6: =VLOOKUP($N$1&$S$1&A6,抽出!$B$4:$O$903,7,FALSE) -> 千歳 | I6: =VLOOKUP($N$1&$S$1&A6,抽出!$B$4:$O$903,8,FALSE) -> 2019-09-21 | K6: =VLOOKUP($N$1&$S$1&A6,抽出!$B$4:$O$903,9,FALSE) -> 金澤世凪 | O6: =VLOOKUP($N$1&$S$1&A6,抽出!$B$4:$O$903,10,FALSE) -> 607 | R6: =VLOOKUP($N$1&$S$1&A6,抽出!$B$4:$O$903,11,FALSE) -> 決 | S6: =VLOOKUP($N$1&$S$1&A6,抽出!$B$4:$O$903,12,FALSE) -> 斜里 | V6: =VLOOKUP($N$1&$S$1&A6,抽出!$B$4:$O$903,13,FALSE) -> 2 | W6: =VLOOKUP($N$1&$S$1&A6,抽出!$B$4:$O$903,14,FALSE) -> 3.5 | Z6: 中学男子 | AA6: 中男 | AC6: 三段跳
A7: 4 | B7: =IF(COUNTIF($K$4:N7,K7)=1,1,0) -> 1 | C7: =IF(B7=0,"",SUM($B$4:B7)) -> 4 | D7: =VLOOKUP($N$1&$S$1&A7,抽出!$B$4:$O$903,6,FALSE) -> 通信陸上 | G7: =VLOOKUP($N$1&$S$1&A7,抽出!$B$4:$O$903,7,FALSE) -> 網走 | I7: =VLOOKUP($N$1&$S$1&A7,抽出!$B$4:$O$903,8,FALSE) -> 2019-06-29 | K7: =VLOOKUP($N$1&$S$1&A7,抽出!$B$4:$O$903,9,FALSE) -> 中嶋優斗 | O7: =VLOOKUP($N$1&$S$1&A7,抽出!$B$4:$O$903,10,FALSE) -> 595 | R7: =VLOOKUP($N$1&$S$1&A7,抽出!$B$4:$O$903,11,FALSE) -> 決 | S7: =VLOOKUP($N$1&$S$1&A7,抽出!$B$4:$O$903,12,FALSE) -> 北見光西中 | V7: =VLOOKUP($N$1&$S$1&A7,抽出!$B$4:$O$903,13,FALSE) -> 3 | W7: =VLOOKUP($N$1&$S$1&A7,抽出!$B$4:$O$903,14,FALSE) -> 2.8 | Z7: 中学女子 | AA7: 中女 | AC7: 砲丸投
A8: 5 | B8: =IF(COUNTIF($K$4:N8,K8)=1,1,0) -> 1 | C8: =IF(B8=0,"",SUM($B$4:B8)) -> 5 | D8: =VLOOKUP($N$1&$S$1&A8,抽出!$B$4:$O$903,6,FALSE) -> 中体連地区 | G8: =VLOOKUP($N$1&$S$1&A8,抽出!$B$4:$O$903,7,FALSE) -> 北見 | I8: =VLOOKUP($N$1&$S$1&A8,抽出!$B$4:$O$903,8,FALSE) -> 2019-06-15 | K8: =VLOOKUP($N$1&$S$1&A8,抽出!$B$4:$O$903,9,FALSE) -> 関根至恩 | O8: =VLOOKUP($N$1&$S$1&A8,抽出!$B$4:$O$903,10,FALSE) -> 580 | R8: =VLOOKUP($N$1&$S$1&A8,抽出!$B$4:$O$903,11,FALSE) -> 決 | S8: =VLOOKUP($N$1&$S$1&A8,抽出!$B$4:$O$903,12,FALSE) -> 北見北光中 | V8: =VLOOKUP($N$1&$S$1&A8,抽出!$B$4:$O$903,13,FALSE) -> 3 | W8: =VLOOKUP($N$1&$S$1&A8,抽出!$B$4:$O$903,14,FALSE) -> 2 | Z8: 高校男子 | AA8: 高男 | AC8: 円盤投
A9: 6 | B9: =IF(COUNTIF($K$4:N9,K9)=1,1,0) -> 1 | C9: =IF(B9=0,"",SUM($B$4:B9)) -> 6 | D9: =VLOOKUP($N$1&$S$1&A9,抽出!$B$4:$O$903,6,FALSE) -> 記録会第１戦 | G9: =VLOOKUP($N$1&$S$1&A9,抽出!$B$4:$O$903,7,FALSE) -> 北見 | I9: =VLOOKUP($N$1&$S$1&A9,抽出!$B$4:$O$903,8,FALSE) -> 2019-04-28 | K9: =VLOOKUP($N$1&$S$1&A9,抽出!$B$4:$O$903,9,FALSE) -> 長谷川佳祐 | O9: =VLOOKUP($N$1&$S$1&A9,抽出!$B$4:$O$903,10,FALSE) -> 575 | R9: =VLOOKUP($N$1&$S$1&A9,抽出!$B$4:$O$903,11,FALSE) -> 決 | S9: =VLOOKUP($N$1&$S$1&A9,抽出!$B$4:$O$903,12,FALSE) -> 網走第二中 | V9: =VLOOKUP($N$1&$S$1&A9,抽出!$B$4:$O$903,13,FALSE) -> 2 | W9: =VLOOKUP($N$1&$S$1&A9,抽出!$B$4:$O$903,14,FALSE) -> 0.7 | Z9: 高校女子 | AA9: 高女 | AC9: ハンマー投
A10: 7 | B10: =IF(COUNTIF($K$4:N10,K10)=1,1,0) -> 1 | C10: =IF(B10=0,"",SUM($B$4:B10)) -> 7 | D10: =VLOOKUP($N$1&$S$1&A10,抽出!$B$4:$O$903,6,FALSE) -> 道ジュニア | G10: =VLOOKUP($N$1&$S$1&A10,抽出!$B$4:$O$903,7,FALSE) -> 釧路 | I10: =VLOOKUP($N$1&$S$1&A10,抽出!$B$4:$O$903,8,FALSE) -> 2019-09-01 | K10: =VLOOKUP($N$1&$S$1&A10,抽出!$B$4:$O$903,9,FALSE) -> 荒木颯葵 | O10: =VLOOKUP($N$1&$S$1&A10,抽出!$B$4:$O$903,10,FALSE) -> 547 | R10: =VLOOKUP($N$1&$S$1&A10,抽出!$B$4:$O$903,11,FALSE) -> 決 | S10: =VLOOKUP($N$1&$S$1&A10,抽出!$B$4:$O$903,12,FALSE) -> 北見小泉中 | V10: =VLOOKUP($N$1&$S$1&A10,抽出!$B$4:$O$903,13,FALSE) -> 3 | W10: =VLOOKUP($N$1&$S$1&A10,抽出!$B$4:$O$903,14,FALSE) -> 1.4 | Z10: 一般男子 | AA10: 一男 | AC10: やり投
A11: 8 | B11: =IF(COUNTIF($K$4:N11,K11)=1,1,0) -> 1 | C11: =IF(B11=0,"",SUM($B$4:B11)) -> 8 | D11: =VLOOKUP($N$1&$S$1&A11,抽出!$B$4:$O$903,6,FALSE) -> 記録会４戦 | G11: =VLOOKUP($N$1&$S$1&A11,抽出!$B$4:$O$903,7,FALSE) -> 北見 | I11: =VLOOKUP($N$1&$S$1&A11,抽出!$B$4:$O$903,8,FALSE) -> 2019-08-04 | K11: =VLOOKUP($N$1&$S$1&A11,抽出!$B$4:$O$903,9,FALSE) -> 小助川智博 | O11: =VLOOKUP($N$1&$S$1&A11,抽出!$B$4:$O$903,10,FALSE) -> 546 | R11: =VLOOKUP($N$1&$S$1&A11,抽出!$B$4:$O$903,11,FALSE) -> 決 | S11: =VLOOKUP($N$1&$S$1&A11,抽出!$B$4:$O$903,12,FALSE) -> 紋別中 | V11: =VLOOKUP($N$1&$S$1&A11,抽出!$B$4:$O$903,13,FALSE) -> 2 | W11: =VLOOKUP($N$1&$S$1&A11,抽出!$B$4:$O$903,14,FALSE) -> 0.8 | Z11: 一般女子 | AA11: 一女 | AC11: ｼﾞｬﾍﾞﾘｯｸｽﾛｰ
A12: 9 | B12: =IF(COUNTIF($K$4:N12,K12)=1,1,0) -> 1 | C12: =IF(B12=0,"",SUM($B$4:B12)) -> 9 | D12: =VLOOKUP($N$1&$S$1&A12,抽出!$B$4:$O$903,6,FALSE) -> 中体連地区 | G12: =VLOOKUP($N$1&$S$1&A12,抽出!$B$4:$O$903,7,FALSE) -> 北見 | I12: =VLOOKUP($N$1&$S$1&A12,抽出!$B$4:$O$903,8,FALSE) -> 2019-06-14 | K12: =VLOOKUP($N$1&$S$1&A12,抽出!$B$4:$O$903,9,FALSE) -> 渡邊里恭 | O12: =VLOOKUP($N$1&$S$1&A12,抽出!$B$4:$O$903,10,FALSE) -> 543 | R12: =VLOOKUP($N$1&$S$1&A12,抽出!$B$4:$O$903,11,FALSE) -> 予 | S12: =VLOOKUP($N$1&$S$1&A12,抽出!$B$4:$O$903,12,FALSE) -> 北見北光中 | V12: =VLOOKUP($N$1&$S$1&A12,抽出!$B$4:$O$903,13,FALSE) -> 3 | W12: =VLOOKUP($N$1&$S$1&A12,抽出!$B$4:$O$903,14,FALSE) -> -0.2 | AC12: ﾎﾞｰﾃｯｸｽｽﾛｰ投
A13: 10 | B13: =IF(COUNTIF($K$4:N13,K13)=1,1,0) -> 1 | C13: =IF(B13=0,"",SUM($B$4:B13)) -> 10 | D13: =VLOOKUP($N$1&$S$1&A13,抽出!$B$4:$O$903,6,FALSE) -> 秋季陸上 | G13: =VLOOKUP($N$1&$S$1&A13,抽出!$B$4:$O$903,7,FALSE) -> 網走 | I13: =VLOOKUP($N$1&$S$1&A13,抽出!$B$4:$O$903,8,FALSE) -> 2019-09-08 | K13: =VLOOKUP($N$1&$S$1&A13,抽出!$B$4:$O$903,9,FALSE) -> 大水皓生 | O13: =VLOOKUP($N$1&$S$1&A13,抽出!$B$4:$O$903,10,FALSE) -> 533 | R13: =VLOOKUP($N$1&$S$1&A13,抽出!$B$4:$O$903,11,FALSE) -> 決 | S13: =VLOOKUP($N$1&$S$1&A13,抽出!$B$4:$O$903,12,FALSE) -> 雄武中 | V13: =VLOOKUP($N$1&$S$1&A13,抽出!$B$4:$O$903,13,FALSE) -> 1 | W13: =VLOOKUP($N$1&$S$1&A13,抽出!$B$4:$O$903,14,FALSE) -> -1.2 | AC13: 1年砲丸投
A14: 11 | B14: =IF(COUNTIF($K$4:N14,K14)=1,1,0) -> 1 | C14: =IF(B14=0,"",SUM($B$4:B14)) -> 11 | D14: =VLOOKUP($N$1&$S$1&A14,抽出!$B$4:$O$903,6,FALSE) -> 通信陸上 | G14: =VLOOKUP($N$1&$S$1&A14,抽出!$B$4:$O$903,7,FALSE) -> 網走 | I14: =VLOOKUP($N$1&$S$1&A14,抽出!$B$4:$O$903,8,FALSE) -> 2019-06-29 | K14: =VLOOKUP($N$1&$S$1&A14,抽出!$B$4:$O$903,9,FALSE) -> 名古屋玲二 | O14: =VLOOKUP($N$1&$S$1&A14,抽出!$B$4:$O$903,10,FALSE) -> 529 | R14: =VLOOKUP($N$1&$S$1&A14,抽出!$B$4:$O$903,11,FALSE) -> 決 | S14: =VLOOKUP($N$1&$S$1&A14,抽出!$B$4:$O$903,12,FALSE) -> 美幌北中 | V14: =VLOOKUP($N$1&$S$1&A14,抽出!$B$4:$O$903,13,FALSE) -> 3 | W14: =VLOOKUP($N$1&$S$1&A14,抽出!$B$4:$O$903,14,FALSE) -> 2.5
A15: 12 | B15: =IF(COUNTIF($K$4:N15,K15)=1,1,0) -> 1 | C15: =IF(B15=0,"",SUM($B$4:B15)) -> 12 | D15: =VLOOKUP($N$1&$S$1&A15,抽出!$B$4:$O$903,6,FALSE) -> 記録会４戦 | G15: =VLOOKUP($N$1&$S$1&A15,抽出!$B$4:$O$903,7,FALSE) -> 北見 | I15: =VLOOKUP($N$1&$S$1&A15,抽出!$B$4:$O$903,8,FALSE) -> 2019-08-04 | K15: =VLOOKUP($N$1&$S$1&A15,抽出!$B$4:$O$903,9,FALSE) -> 植本一希 | O15: =VLOOKUP($N$1&$S$1&A15,抽出!$B$4:$O$903,10,FALSE) -> 518 | R15: =VLOOKUP($N$1&$S$1&A15,抽出!$B$4:$O$903,11,FALSE) -> 決 | S15: =VLOOKUP($N$1&$S$1&A15,抽出!$B$4:$O$903,12,FALSE) -> 北見北光中 | V15: =VLOOKUP($N$1&$S$1&A15,抽出!$B$4:$O$903,13,FALSE) -> 3 | W15: =VLOOKUP($N$1&$S$1&A15,抽出!$B$4:$O$903,14,FALSE) -> 1.2
A16: 13 | B16: =IF(COUNTIF($K$4:N16,K16)=1,1,0) -> 1 | C16: =IF(B16=0,"",SUM($B$4:B16)) -> 13 | D16: =VLOOKUP($N$1&$S$1&A16,抽出!$B$4:$O$903,6,FALSE) -> 中体連地区 | G16: =VLOOKUP($N$1&$S$1&A16,抽出!$B$4:$O$903,7,FALSE) -> 北見 | I16: =VLOOKUP($N$1&$S$1&A16,抽出!$B$4:$O$903,8,FALSE) -> 2019-06-15 | K16: =VLOOKUP($N$1&$S$1&A16,抽出!$B$4:$O$903,9,FALSE) -> 山崎幸希 | O16: =VLOOKUP($N$1&$S$1&A16,抽出!$B$4:$O$903,10,FALSE) -> 512 | R16: =VLOOKUP($N$1&$S$1&A16,抽出!$B$4:$O$903,11,FALSE) -> 決 | S16: =VLOOKUP($N$1&$S$1&A16,抽出!$B$4:$O$903,12,FALSE) -> 斜里中 | V16: =VLOOKUP($N$1&$S$1&A16,抽出!$B$4:$O$903,13,FALSE) -> 2 | W16: =VLOOKUP($N$1&$S$1&A16,抽出!$B$4:$O$903,14,FALSE) -> 1.3
A17: 14 | B17: =IF(COUNTIF($K$4:N17,K17)=1,1,0) -> 1 | C17: =IF(B17=0,"",SUM($B$4:B17)) -> 14 | D17: =VLOOKUP($N$1&$S$1&A17,抽出!$B$4:$O$903,6,FALSE) -> 秋季陸上 | G17: =VLOOKUP($N$1&$S$1&A17,抽出!$B$4:$O$903,7,FALSE) -> 網走 | I17: =VLOOKUP($N$1&$S$1&A17,抽出!$B$4:$O$903,8,FALSE) -> 2019-09-08 | K17: =VLOOKUP($N$1&$S$1&A17,抽出!$B$4:$O$903,9,FALSE) -> 佐野巧 | O17: =VLOOKUP($N$1&$S$1&A17,抽出!$B$4:$O$903,10,FALSE) -> 510 | R17: =VLOOKUP($N$1&$S$1&A17,抽出!$B$4:$O$903,11,FALSE) -> 決 | S17: =VLOOKUP($N$1&$S$1&A17,抽出!$B$4:$O$903,12,FALSE) -> 斜里中 | V17: =VLOOKUP($N$1&$S$1&A17,抽出!$B$4:$O$903,13,FALSE) -> 3 | W17: =VLOOKUP($N$1&$S$1&A17,抽出!$B$4:$O$903,14,FALSE) -> -0.6
A18: 15 | B18: =IF(COUNTIF($K$4:N18,K18)=1,1,0) -> 1 | C18: =IF(B18=0,"",SUM($B$4:B18)) -> 15 | D18: =VLOOKUP($N$1&$S$1&A18,抽出!$B$4:$O$903,6,FALSE) -> 記録会３戦 | G18: =VLOOKUP($N$1&$S$1&A18,抽出!$B$4:$O$903,7,FALSE) -> 網走 | I18: =VLOOKUP($N$1&$S$1&A18,抽出!$B$4:$O$903,8,FALSE) -> 2019-07-14 | K18: =VLOOKUP($N$1&$S$1&A18,抽出!$B$4:$O$903,9,FALSE) -> 市村宥樹 | O18: =VLOOKUP($N$1&$S$1&A18,抽出!$B$4:$O$903,10,FALSE) -> 507 | R18: =VLOOKUP($N$1&$S$1&A18,抽出!$B$4:$O$903,11,FALSE) -> 決 | S18: =VLOOKUP($N$1&$S$1&A18,抽出!$B$4:$O$903,12,FALSE) -> 斜里中 | V18: =VLOOKUP($N$1&$S$1&A18,抽出!$B$4:$O$903,13,FALSE) -> 3 | W18: =VLOOKUP($N$1&$S$1&A18,抽出!$B$4:$O$903,14,FALSE) -> 1
A19: 16 | B19: =IF(COUNTIF($K$4:N19,K19)=1,1,0) -> 1 | C19: =IF(B19=0,"",SUM($B$4:B19)) -> 16 | D19: =VLOOKUP($N$1&$S$1&A19,抽出!$B$4:$O$903,6,FALSE) -> 選手権 | G19: =VLOOKUP($N$1&$S$1&A19,抽出!$B$4:$O$903,7,FALSE) -> 北見 | I19: =VLOOKUP($N$1&$S$1&A19,抽出!$B$4:$O$903,8,FALSE) -> 2019-05-11 | K19: =VLOOKUP($N$1&$S$1&A19,抽出!$B$4:$O$903,9,FALSE) -> 大水皓輝 | O19: =VLOOKUP($N$1&$S$1&A19,抽出!$B$4:$O$903,10,FALSE) -> 506 | R19: =VLOOKUP($N$1&$S$1&A19,抽出!$B$4:$O$903,11,FALSE) -> 決 | S19: =VLOOKUP($N$1&$S$1&A19,抽出!$B$4:$O$903,12,FALSE) -> 雄武中 | V19: =VLOOKUP($N$1&$S$1&A19,抽出!$B$4:$O$903,13,FALSE) -> 1 | W19: =VLOOKUP($N$1&$S$1&A19,抽出!$B$4:$O$903,14,FALSE) -> 1.9
A20: 17 | B20: =IF(COUNTIF($K$4:N20,K20)=1,1,0) -> 1 | C20: =IF(B20=0,"",SUM($B$4:B20)) -> 17 | D20: =VLOOKUP($N$1&$S$1&A20,抽出!$B$4:$O$903,6,FALSE) -> 記録会第２戦 | G20: =VLOOKUP($N$1&$S$1&A20,抽出!$B$4:$O$903,7,FALSE) -> 網走 | I20: =VLOOKUP($N$1&$S$1&A20,抽出!$B$4:$O$903,8,FALSE) -> 2019-05-05 | K20: =VLOOKUP($N$1&$S$1&A20,抽出!$B$4:$O$903,9,FALSE) -> 中田竜翔 | O20: =VLOOKUP($N$1&$S$1&A20,抽出!$B$4:$O$903,10,FALSE) -> 505 | R20: =VLOOKUP($N$1&$S$1&A20,抽出!$B$4:$O$903,11,FALSE) -> 決 | S20: =VLOOKUP($N$1&$S$1&A20,抽出!$B$4:$O$903,12,FALSE) -> 網走第一中 | V20: =VLOOKUP($N$1&$S$1&A20,抽出!$B$4:$O$903,13,FALSE) -> 3 | W20: =VLOOKUP($N$1&$S$1&A20,抽出!$B$4:$O$903,14,FALSE) -> 1.2
A21: 18 | B21: =IF(COUNTIF($K$4:N21,K21)=1,1,0) -> 1 | C21: =IF(B21=0,"",SUM($B$4:B21)) -> 18 | D21: =VLOOKUP($N$1&$S$1&A21,抽出!$B$4:$O$903,6,FALSE) -> 中体連地区 | G21: =VLOOKUP($N$1&$S$1&A21,抽出!$B$4:$O$903,7,FALSE) -> 北見 | I21: =VLOOKUP($N$1&$S$1&A21,抽出!$B$4:$O$903,8,FALSE) -> 2019-06-14 | K21: =VLOOKUP($N$1&$S$1&A21,抽出!$B$4:$O$903,9,FALSE) -> 茂木亮磨 | O21: =VLOOKUP($N$1&$S$1&A21,抽出!$B$4:$O$903,10,FALSE) -> 496 | R21: =VLOOKUP($N$1&$S$1&A21,抽出!$B$4:$O$903,11,FALSE) -> 予 | S21: =VLOOKUP($N$1&$S$1&A21,抽出!$B$4:$O$903,12,FALSE) -> 清里中 | V21: =VLOOKUP($N$1&$S$1&A21,抽出!$B$4:$O$903,13,FALSE) -> 2 | W21: =VLOOKUP($N$1&$S$1&A21,抽出!$B$4:$O$903,14,FALSE) -> 3.6
A22: 19 | B22: =IF(COUNTIF($K$4:N22,K22)=1,1,0) -> 1 | C22: =IF(B22=0,"",SUM($B$4:B22)) -> 19 | D22: =VLOOKUP($N$1&$S$1&A22,抽出!$B$4:$O$903,6,FALSE) -> 中体連地区 | G22: =VLOOKUP($N$1&$S$1&A22,抽出!$B$4:$O$903,7,FALSE) -> 北見 | I22: =VLOOKUP($N$1&$S$1&A22,抽出!$B$4:$O$903,8,FALSE) -> 2019-06-15 | K22: =VLOOKUP($N$1&$S$1&A22,抽出!$B$4:$O$903,9,FALSE) -> 石崎虎太郎 | O22: =VLOOKUP($N$1&$S$1&A22,抽出!$B$4:$O$903,10,FALSE) -> 492 | R22: =VLOOKUP($N$1&$S$1&A22,抽出!$B$4:$O$903,11,FALSE) -> 決 | S22: =VLOOKUP($N$1&$S$1&A22,抽出!$B$4:$O$903,12,FALSE) -> 北見南中 | V22: =VLOOKUP($N$1&$S$1&A22,抽出!$B$4:$O$903,13,FALSE) -> 2 | W22: =VLOOKUP($N$1&$S$1&A22,抽出!$B$4:$O$903,14,FALSE) -> -1.7
A23: 20 | B23: =IF(COUNTIF($K$4:N23,K23)=1,1,0) -> 1 | C23: =IF(B23=0,"",SUM($B$4:B23)) -> 20 | D23: =VLOOKUP($N$1&$S$1&A23,抽出!$B$4:$O$903,6,FALSE) -> 中体連地区 | G23: =VLOOKUP($N$1&$S$1&A23,抽出!$B$4:$O$903,7,FALSE) -> 北見 | I23: =VLOOKUP($N$1&$S$1&A23,抽出!$B$4:$O$903,8,FALSE) -> 2019-06-15 | K23: =VLOOKUP($N$1&$S$1&A23,抽出!$B$4:$O$903,9,FALSE) -> 菊地遥粋 | O23: =VLOOKUP($N$1&$S$1&A23,抽出!$B$4:$O$903,10,FALSE) -> 492 | R23: =VLOOKUP($N$1&$S$1&A23,抽出!$B$4:$O$903,11,FALSE) -> 決 | S23: =VLOOKUP($N$1&$S$1&A23,抽出!$B$4:$O$903,12,FALSE) -> 北見南中 | V23: =VLOOKUP($N$1&$S$1&A23,抽出!$B$4:$O$903,13,FALSE) -> 3 | W23: =VLOOKUP($N$1&$S$1&A23,抽出!$B$4:$O$903,14,FALSE) -> -0.1
A24: 21 | B24: =IF(COUNTIF($K$4:N24,K24)=1,1,0) -> 1 | C24: =IF(B24=0,"",SUM($B$4:B24)) -> 21 | D24: =VLOOKUP($N$1&$S$1&A24,抽出!$B$4:$O$903,6,FALSE) -> 通信陸上 | G24: =VLOOKUP($N$1&$S$1&A24,抽出!$B$4:$O$903,7,FALSE) -> 網走 | I24: =VLOOKUP($N$1&$S$1&A24,抽出!$B$4:$O$903,8,FALSE) -> 2019-06-29 | K24: =VLOOKUP($N$1&$S$1&A24,抽出!$B$4:$O$903,9,FALSE) -> 天野琉稀 | O24: =VLOOKUP($N$1&$S$1&A24,抽出!$B$4:$O$903,10,FALSE) -> 484 | R24: =VLOOKUP($N$1&$S$1&A24,抽出!$B$4:$O$903,11,FALSE) -> 決 | S24: =VLOOKUP($N$1&$S$1&A24,抽出!$B$4:$O$903,12,FALSE) -> 大空女満別中 | V24: =VLOOKUP($N$1&$S$1&A24,抽出!$B$4:$O$903,13,FALSE) -> 3 | W24: =VLOOKUP($N$1&$S$1&A24,抽出!$B$4:$O$903,14,FALSE) -> 0.9
A25: 22 | B25: =IF(COUNTIF($K$4:N25,K25)=1,1,0) -> 1 | C25: =IF(B25=0,"",SUM($B$4:B25)) -> 22 | D25: =VLOOKUP($N$1&$S$1&A25,抽出!$B$4:$O$903,6,FALSE) -> 記録会４戦 | G25: =VLOOKUP($N$1&$S$1&A25,抽出!$B$4:$O$903,7,FALSE) -> 北見 | I25: =VLOOKUP($N$1&$S$1&A25,抽出!$B$4:$O$903,8,FALSE) -> 2019-08-04 | K25: =VLOOKUP($N$1&$S$1&A25,抽出!$B$4:$O$903,9,FALSE) -> 太田龍空 | O25: =VLOOKUP($N$1&$S$1&A25,抽出!$B$4:$O$903,10,FALSE) -> 484 | R25: =VLOOKUP($N$1&$S$1&A25,抽出!$B$4:$O$903,11,FALSE) -> 決 | S25: =VLOOKUP($N$1&$S$1&A25,抽出!$B$4:$O$903,12,FALSE) -> 北見小泉中 | V25: =VLOOKUP($N$1&$S$1&A25,抽出!$B$4:$O$903,13,FALSE) -> 1 | W25: =VLOOKUP($N$1&$S$1&A25,抽出!$B$4:$O$903,14,FALSE) -> 1.6
A26: 23 | B26: =IF(COUNTIF($K$4:N26,K26)=1,1,0) -> 1 | C26: =IF(B26=0,"",SUM($B$4:B26)) -> 23 | D26: =VLOOKUP($N$1&$S$1&A26,抽出!$B$4:$O$903,6,FALSE) -> 秋季陸上 | G26: =VLOOKUP($N$1&$S$1&A26,抽出!$B$4:$O$903,7,FALSE) -> 網走 | I26: =VLOOKUP($N$1&$S$1&A26,抽出!$B$4:$O$903,8,FALSE) -> 2019-09-08 | K26: =VLOOKUP($N$1&$S$1&A26,抽出!$B$4:$O$903,9,FALSE) -> 松永悠輝 | O26: =VLOOKUP($N$1&$S$1&A26,抽出!$B$4:$O$903,10,FALSE) -> 484 | R26: =VLOOKUP($N$1&$S$1&A26,抽出!$B$4:$O$903,11,FALSE) -> 決 | S26: =VLOOKUP($N$1&$S$1&A26,抽出!$B$4:$O$903,12,FALSE) -> 雄武中 | V26: =VLOOKUP($N$1&$S$1&A26,抽出!$B$4:$O$903,13,FALSE) -> 2 | W26: =VLOOKUP($N$1&$S$1&A26,抽出!$B$4:$O$903,14,FALSE) -> -0.2
A27: 24 | B27: =IF(COUNTIF($K$4:N27,K27)=1,1,0) -> 1 | C27: =IF(B27=0,"",SUM($B$4:B27)) -> 24 | D27: =VLOOKUP($N$1&$S$1&A27,抽出!$B$4:$O$903,6,FALSE) -> 選手権 | G27: =VLOOKUP($N$1&$S$1&A27,抽出!$B$4:$O$903,7,FALSE) -> 北見 | I27: =VLOOKUP($N$1&$S$1&A27,抽出!$B$4:$O$903,8,FALSE) -> 2019-05-11 | K27: =VLOOKUP($N$1&$S$1&A27,抽出!$B$4:$O$903,9,FALSE) -> 鈴木侑輝 | O27: =VLOOKUP($N$1&$S$1&A27,抽出!$B$4:$O$903,10,FALSE) -> 482 | R27: =VLOOKUP($N$1&$S$1&A27,抽出!$B$4:$O$903,11,FALSE) -> 決 | S27: =VLOOKUP($N$1&$S$1&A27,抽出!$B$4:$O$903,12,FALSE) -> 遠軽中 | V27: =VLOOKUP($N$1&$S$1&A27,抽出!$B$4:$O$903,13,FALSE) -> 3 | W27: =VLOOKUP($N$1&$S$1&A27,抽出!$B$4:$O$903,14,FALSE) -> 1.5
A28: 25 | B28: =IF(COUNTIF($K$4:N28,K28)=1,1,0) -> 1 | C28: =IF(B28=0,"",SUM($B$4:B28)) -> 25 | D28: =VLOOKUP($N$1&$S$1&A28,抽出!$B$4:$O$903,6,FALSE) -> 記録会４戦 | G28: =VLOOKUP($N$1&$S$1&A28,抽出!$B$4:$O$903,7,FALSE) -> 北見 | I28: =VLOOKUP($N$1&$S$1&A28,抽出!$B$4:$O$903,8,FALSE) -> 2019-08-04 | K28: =VLOOKUP($N$1&$S$1&A28,抽出!$B$4:$O$903,9,FALSE) -> 鷲尾征 | O28: =VLOOKUP($N$1&$S$1&A28,抽出!$B$4:$O$903,10,FALSE) -> 476 | R28: =VLOOKUP($N$1&$S$1&A28,抽出!$B$4:$O$903,11,FALSE) -> 決 | S28: =VLOOKUP($N$1&$S$1&A28,抽出!$B$4:$O$903,12,FALSE) -> 北見北光中 | V28: =VLOOKUP($N$1&$S$1&A28,抽出!$B$4:$O$903,13,FALSE) -> 2 | W28: =VLOOKUP($N$1&$S$1&A28,抽出!$B$4:$O$903,14,FALSE) -> 1.2
A29: 26 | B29: =IF(COUNTIF($K$4:N29,K29)=1,1,0) -> 1 | C29: =IF(B29=0,"",SUM($B$4:B29)) -> 26 | D29: =VLOOKUP($N$1&$S$1&A29,抽出!$B$4:$O$903,6,FALSE) -> フィールド記録会 | G29: =VLOOKUP($N$1&$S$1&A29,抽出!$B$4:$O$903,7,FALSE) -> 網走 | I29: =VLOOKUP($N$1&$S$1&A29,抽出!$B$4:$O$903,8,FALSE) -> 2019-06-08 | K29: =VLOOKUP($N$1&$S$1&A29,抽出!$B$4:$O$903,9,FALSE) -> 竹村璃玖 | O29: =VLOOKUP($N$1&$S$1&A29,抽出!$B$4:$O$903,10,FALSE) -> 468 | R29: =VLOOKUP($N$1&$S$1&A29,抽出!$B$4:$O$903,11,FALSE) -> 決 | S29: =VLOOKUP($N$1&$S$1&A29,抽出!$B$4:$O$903,12,FALSE) -> 北見常呂中 | V29: =VLOOKUP($N$1&$S$1&A29,抽出!$B$4:$O$903,13,FALSE) -> 2 | W29: =VLOOKUP($N$1&$S$1&A29,抽出!$B$4:$O$903,14,FALSE) -> -1.6
A30: 27 | B30: =IF(COUNTIF($K$4:N30,K30)=1,1,0) -> 1 | C30: =IF(B30=0,"",SUM($B$4:B30)) -> 27 | D30: =VLOOKUP($N$1&$S$1&A30,抽出!$B$4:$O$903,6,FALSE) -> 秋季陸上 | G30: =VLOOKUP($N$1&$S$1&A30,抽出!$B$4:$O$903,7,FALSE) -> 網走 | I30: =VLOOKUP($N$1&$S$1&A30,抽出!$B$4:$O$903,8,FALSE) -> 2019-09-08 | K30: =VLOOKUP($N$1&$S$1&A30,抽出!$B$4:$O$903,9,FALSE) -> 本田孝仁 | O30: =VLOOKUP($N$1&$S$1&A30,抽出!$B$4:$O$903,10,FALSE) -> 467 | R30: =VLOOKUP($N$1&$S$1&A30,抽出!$B$4:$O$903,11,FALSE) -> 決 | S30: =VLOOKUP($N$1&$S$1&A30,抽出!$B$4:$O$903,12,FALSE) -> 北見常呂中 | V30: =VLOOKUP($N$1&$S$1&A30,抽出!$B$4:$O$903,13,FALSE) -> 1 | W30: =VLOOKUP($N$1&$S$1&A30,抽出!$B$4:$O$903,14,FALSE) -> 0
A31: 28 | B31: =IF(COUNTIF($K$4:N31,K31)=1,1,0) -> 1 | C31: =IF(B31=0,"",SUM($B$4:B31)) -> 28 | D31: =VLOOKUP($N$1&$S$1&A31,抽出!$B$4:$O$903,6,FALSE) -> 秋季陸上 | G31: =VLOOKUP($N$1&$S$1&A31,抽出!$B$4:$O$903,7,FALSE) -> 網走 | I31: =VLOOKUP($N$1&$S$1&A31,抽出!$B$4:$O$903,8,FALSE) -> 2019-09-08 | K31: =VLOOKUP($N$1&$S$1&A31,抽出!$B$4:$O$903,9,FALSE) -> 中村志瞳 | O31: =VLOOKUP($N$1&$S$1&A31,抽出!$B$4:$O$903,10,FALSE) -> 465 | R31: =VLOOKUP($N$1&$S$1&A31,抽出!$B$4:$O$903,11,FALSE) -> 決 | S31: =VLOOKUP($N$1&$S$1&A31,抽出!$B$4:$O$903,12,FALSE) -> 北見高栄中 | V31: =VLOOKUP($N$1&$S$1&A31,抽出!$B$4:$O$903,13,FALSE) -> 1 | W31: =VLOOKUP($N$1&$S$1&A31,抽出!$B$4:$O$903,14,FALSE) -> -0.5
A32: 29 | B32: =IF(COUNTIF($K$4:N32,K32)=1,1,0) -> 1 | C32: =IF(B32=0,"",SUM($B$4:B32)) -> 29 | D32: =VLOOKUP($N$1&$S$1&A32,抽出!$B$4:$O$903,6,FALSE) -> 中学新人 | G32: =VLOOKUP($N$1&$S$1&A32,抽出!$B$4:$O$903,7,FALSE) -> 網走 | I32: =VLOOKUP($N$1&$S$1&A32,抽出!$B$4:$O$903,8,FALSE) -> 2019-08-23 | K32: =VLOOKUP($N$1&$S$1&A32,抽出!$B$4:$O$903,9,FALSE) -> 福田悠介 | O32: =VLOOKUP($N$1&$S$1&A32,抽出!$B$4:$O$903,10,FALSE) -> 464 | R32: =VLOOKUP($N$1&$S$1&A32,抽出!$B$4:$O$903,11,FALSE) -> 決 | S32: =VLOOKUP($N$1&$S$1&A32,抽出!$B$4:$O$903,12,FALSE) -> 網走第一中 | V32: =VLOOKUP($N$1&$S$1&A32,抽出!$B$4:$O$903,13,FALSE) -> 2 | W32: =VLOOKUP($N$1&$S$1&A32,抽出!$B$4:$O$903,14,FALSE) -> -2
A33: 30 | B33: =IF(COUNTIF($K$4:N33,K33)=1,1,0) -> 1 | C33: =IF(B33=0,"",SUM($B$4:B33)) -> 30 | D33: =VLOOKUP($N$1&$S$1&A33,抽出!$B$4:$O$903,6,FALSE) -> 記録会第１戦 | G33: =VLOOKUP($N$1&$S$1&A33,抽出!$B$4:$O$903,7,FALSE) -> 北見 | I33: =VLOOKUP($N$1&$S$1&A33,抽出!$B$4:$O$903,8,FALSE) -> 2019-04-28 | K33: =VLOOKUP($N$1&$S$1&A33,抽出!$B$4:$O$903,9,FALSE) -> 中井啓晴 | O33: =VLOOKUP($N$1&$S$1&A33,抽出!$B$4:$O$903,10,FALSE) -> 461 | R33: =VLOOKUP($N$1&$S$1&A33,抽出!$B$4:$O$903,11,FALSE) -> 決 | S33: =VLOOKUP($N$1&$S$1&A33,抽出!$B$4:$O$903,12,FALSE) -> 北見小泉中 | V33: =VLOOKUP($N$1&$S$1&A33,抽出!$B$4:$O$903,13,FALSE) -> 3 | W33: =VLOOKUP($N$1&$S$1&A33,抽出!$B$4:$O$903,14,FALSE) -> 0.3
A34: 31 | B34: =IF(COUNTIF($K$4:N34,K34)=1,1,0) -> 1 | C34: =IF(B34=0,"",SUM($B$4:B34)) -> 31 | D34: =VLOOKUP($N$1&$S$1&A34,抽出!$B$4:$O$903,6,FALSE) -> 記録会４戦 | G34: =VLOOKUP($N$1&$S$1&A34,抽出!$B$4:$O$903,7,FALSE) -> 北見 | I34: =VLOOKUP($N$1&$S$1&A34,抽出!$B$4:$O$903,8,FALSE) -> 2019-08-04 | K34: =VLOOKUP($N$1&$S$1&A34,抽出!$B$4:$O$903,9,FALSE) -> 増山奈孝 | O34: =VLOOKUP($N$1&$S$1&A34,抽出!$B$4:$O$903,10,FALSE) -> 454 | R34: =VLOOKUP($N$1&$S$1&A34,抽出!$B$4:$O$903,11,FALSE) -> 決 | S34: =VLOOKUP($N$1&$S$1&A34,抽出!$B$4:$O$903,12,FALSE) -> 北見光西中 | V34: =VLOOKUP($N$1&$S$1&A34,抽出!$B$4:$O$903,13,FALSE) -> 1 | W34: =VLOOKUP($N$1&$S$1&A34,抽出!$B$4:$O$903,14,FALSE) -> 0.7
A35: 32 | B35: =IF(COUNTIF($K$4:N35,K35)=1,1,0) -> 1 | C35: =IF(B35=0,"",SUM($B$4:B35)) -> 32 | D35: =VLOOKUP($N$1&$S$1&A35,抽出!$B$4:$O$903,6,FALSE) -> 中体連地区 | G35: =VLOOKUP($N$1&$S$1&A35,抽出!$B$4:$O$903,7,FALSE) -> 北見 | I35: =VLOOKUP($N$1&$S$1&A35,抽出!$B$4:$O$903,8,FALSE) -> 2019-06-14 | K35: =VLOOKUP($N$1&$S$1&A35,抽出!$B$4:$O$903,9,FALSE) -> 笹原煌一朗 | O35: =VLOOKUP($N$1&$S$1&A35,抽出!$B$4:$O$903,10,FALSE) -> 454 | R35: =VLOOKUP($N$1&$S$1&A35,抽出!$B$4:$O$903,11,FALSE) -> 予 | S35: =VLOOKUP($N$1&$S$1&A35,抽出!$B$4:$O$903,12,FALSE) -> 遠軽中 | V35: =VLOOKUP($N$1&$S$1&A35,抽出!$B$4:$O$903,13,FALSE) -> 2 | W35: =VLOOKUP($N$1&$S$1&A35,抽出!$B$4:$O$903,14,FALSE) -> 4.5
A36: 33 | B36: =IF(COUNTIF($K$4:N36,K36)=1,1,0) -> 1 | C36: =IF(B36=0,"",SUM($B$4:B36)) -> 33 | D36: =VLOOKUP($N$1&$S$1&A36,抽出!$B$4:$O$903,6,FALSE) -> 通信陸上 | G36: =VLOOKUP($N$1&$S$1&A36,抽出!$B$4:$O$903,7,FALSE) -> 網走 | I36: =VLOOKUP($N$1&$S$1&A36,抽出!$B$4:$O$903,8,FALSE) -> 2019-06-28 | K36: =VLOOKUP($N$1&$S$1&A36,抽出!$B$4:$O$903,9,FALSE) -> 倉本静鬼 | O36: =VLOOKUP($N$1&$S$1&A36,抽出!$B$4:$O$903,10,FALSE) -> 450 | R36: =VLOOKUP($N$1&$S$1&A36,抽出!$B$4:$O$903,11,FALSE) -> 予 | S36: =VLOOKUP($N$1&$S$1&A36,抽出!$B$4:$O$903,12,FALSE) -> 北見東陵中 | V36: =VLOOKUP($N$1&$S$1&A36,抽出!$B$4:$O$903,13,FALSE) -> 2 | W36: =VLOOKUP($N$1&$S$1&A36,抽出!$B$4:$O$903,14,FALSE) -> 1
A37: 34 | B37: =IF(COUNTIF($K$4:N37,K37)=1,1,0) -> 1 | C37: =IF(B37=0,"",SUM($B$4:B37)) -> 34 | D37: =VLOOKUP($N$1&$S$1&A37,抽出!$B$4:$O$903,6,FALSE) -> 記録会３戦 | G37: =VLOOKUP($N$1&$S$1&A37,抽出!$B$4:$O$903,7,FALSE) -> 網走 | I37: =VLOOKUP($N$1&$S$1&A37,抽出!$B$4:$O$903,8,FALSE) -> 2019-07-14 | K37: =VLOOKUP($N$1&$S$1&A37,抽出!$B$4:$O$903,9,FALSE) -> 森駿輝 | O37: =VLOOKUP($N$1&$S$1&A37,抽出!$B$4:$O$903,10,FALSE) -> 448 | R37: =VLOOKUP($N$1&$S$1&A37,抽出!$B$4:$O$903,11,FALSE) -> 決 | S37: =VLOOKUP($N$1&$S$1&A37,抽出!$B$4:$O$903,12,FALSE) -> 北見北光中 | V37: =VLOOKUP($N$1&$S$1&A37,抽出!$B$4:$O$903,13,FALSE) -> 2 | W37: =VLOOKUP($N$1&$S$1&A37,抽出!$B$4:$O$903,14,FALSE) -> 0.8
A38: 35 | B38: =IF(COUNTIF($K$4:N38,K38)=1,1,0) -> 1 | C38: =IF(B38=0,"",SUM($B$4:B38)) -> 35 | D38: =VLOOKUP($N$1&$S$1&A38,抽出!$B$4:$O$903,6,FALSE) -> 中体連地区 | G38: =VLOOKUP($N$1&$S$1&A38,抽出!$B$4:$O$903,7,FALSE) -> 北見 | I38: =VLOOKUP($N$1&$S$1&A38,抽出!$B$4:$O$903,8,FALSE) -> 2019-06-14 | K38: =VLOOKUP($N$1&$S$1&A38,抽出!$B$4:$O$903,9,FALSE) -> 萬龍来 | O38: =VLOOKUP($N$1&$S$1&A38,抽出!$B$4:$O$903,10,FALSE) -> 447 | R38: =VLOOKUP($N$1&$S$1&A38,抽出!$B$4:$O$903,11,FALSE) -> 予 | S38: =VLOOKUP($N$1&$S$1&A38,抽出!$B$4:$O$903,12,FALSE) -> 網走第一中 | V38: =VLOOKUP($N$1&$S$1&A38,抽出!$B$4:$O$903,13,FALSE) -> 2 | W38: =VLOOKUP($N$1&$S$1&A38,抽出!$B$4:$O$903,14,FALSE) -> 3.6
A39: 36 | B39: =IF(COUNTIF($K$4:N39,K39)=1,1,0) -> 1 | C39: =IF(B39=0,"",SUM($B$4:B39)) -> 36 | D39: =VLOOKUP($N$1&$S$1&A39,抽出!$B$4:$O$903,6,FALSE) -> 秋季陸上 | G39: =VLOOKUP($N$1&$S$1&A39,抽出!$B$4:$O$903,7,FALSE) -> 網走 | I39: =VLOOKUP($N$1&$S$1&A39,抽出!$B$4:$O$903,8,FALSE) -> 2019-09-08 | K39: =VLOOKUP($N$1&$S$1&A39,抽出!$B$4:$O$903,9,FALSE) -> 黒坂光輝 | O39: =VLOOKUP($N$1&$S$1&A39,抽出!$B$4:$O$903,10,FALSE) -> 445 | R39: =VLOOKUP($N$1&$S$1&A39,抽出!$B$4:$O$903,11,FALSE) -> 決 | S39: =VLOOKUP($N$1&$S$1&A39,抽出!$B$4:$O$903,12,FALSE) -> 網走第一中 | V39: =VLOOKUP($N$1&$S$1&A39,抽出!$B$4:$O$903,13,FALSE) -> 1 | W39: =VLOOKUP($N$1&$S$1&A39,抽出!$B$4:$O$903,14,FALSE) -> -1.2
A40: 37 | B40: =IF(COUNTIF($K$4:N40,K40)=1,1,0) -> 1 | C40: =IF(B40=0,"",SUM($B$4:B40)) -> 37 | D40: =VLOOKUP($N$1&$S$1&A40,抽出!$B$4:$O$903,6,FALSE) -> 秋季陸上 | G40: =VLOOKUP($N$1&$S$1&A40,抽出!$B$4:$O$903,7,FALSE) -> 網走 | I40: =VLOOKUP($N$1&$S$1&A40,抽出!$B$4:$O$903,8,FALSE) -> 2019-09-08 | K40: =VLOOKUP($N$1&$S$1&A40,抽出!$B$4:$O$903,9,FALSE) -> 久保秋結仁 | O40: =VLOOKUP($N$1&$S$1&A40,抽出!$B$4:$O$903,10,FALSE) -> 440 | R40: =VLOOKUP($N$1&$S$1&A40,抽出!$B$4:$O$903,11,FALSE) -> 決 | S40: =VLOOKUP($N$1&$S$1&A40,抽出!$B$4:$O$903,12,FALSE) -> 紋別中 | V40: =VLOOKUP($N$1&$S$1&A40,抽出!$B$4:$O$903,13,FALSE) -> 2 | W40: =VLOOKUP($N$1&$S$1&A40,抽出!$B$4:$O$903,14,FALSE) -> -0.3
A41: 38 | B41: =IF(COUNTIF($K$4:N41,K41)=1,1,0) -> 1 | C41: =IF(B41=0,"",SUM($B$4:B41)) -> 38 | D41: =VLOOKUP($N$1&$S$1&A41,抽出!$B$4:$O$903,6,FALSE) -> 秋季陸上 | G41: =VLOOKUP($N$1&$S$1&A41,抽出!$B$4:$O$903,7,FALSE) -> 網走 | I41: =VLOOKUP($N$1&$S$1&A41,抽出!$B$4:$O$903,8,FALSE) -> 2019-09-08 | K41: =VLOOKUP($N$1&$S$1&A41,抽出!$B$4:$O$903,9,FALSE) -> 小島悠翔 | O41: =VLOOKUP($N$1&$S$1&A41,抽出!$B$4:$O$903,10,FALSE) -> 436 | R41: =VLOOKUP($N$1&$S$1&A41,抽出!$B$4:$O$903,11,FALSE) -> 決 | S41: =VLOOKUP($N$1&$S$1&A41,抽出!$B$4:$O$903,12,FALSE) -> 美幌北中 | V41: =VLOOKUP($N$1&$S$1&A41,抽出!$B$4:$O$903,13,FALSE) -> 2 | W41: =VLOOKUP($N$1&$S$1&A41,抽出!$B$4:$O$903,14,FALSE) -> -1.5
A42: 39 | B42: =IF(COUNTIF($K$4:N42,K42)=1,1,0) -> 1 | C42: =IF(B42=0,"",SUM($B$4:B42)) -> 39 | D42: =VLOOKUP($N$1&$S$1&A42,抽出!$B$4:$O$903,6,FALSE) -> 記録会３戦 | G42: =VLOOKUP($N$1&$S$1&A42,抽出!$B$4:$O$903,7,FALSE) -> 網走 | I42: =VLOOKUP($N$1&$S$1&A42,抽出!$B$4:$O$903,8,FALSE) -> 2019-07-14 | K42: =VLOOKUP($N$1&$S$1&A42,抽出!$B$4:$O$903,9,FALSE) -> 矢口新大 | O42: =VLOOKUP($N$1&$S$1&A42,抽出!$B$4:$O$903,10,FALSE) -> 434 | R42: =VLOOKUP($N$1&$S$1&A42,抽出!$B$4:$O$903,11,FALSE) -> 決 | S42: =VLOOKUP($N$1&$S$1&A42,抽出!$B$4:$O$903,12,FALSE) -> 清里中 | V42: =VLOOKUP($N$1&$S$1&A42,抽出!$B$4:$O$903,13,FALSE) -> 2 | W42: =VLOOKUP($N$1&$S$1&A42,抽出!$B$4:$O$903,14,FALSE) -> 0.5
A43: 40 | B43: =IF(COUNTIF($K$4:N43,K43)=1,1,0) -> 1 | C43: =IF(B43=0,"",SUM($B$4:B43)) -> 40 | D43: =VLOOKUP($N$1&$S$1&A43,抽出!$B$4:$O$903,6,FALSE) -> 中体連地区 | G43: =VLOOKUP($N$1&$S$1&A43,抽出!$B$4:$O$903,7,FALSE) -> 北見 | I43: =VLOOKUP($N$1&$S$1&A43,抽出!$B$4:$O$903,8,FALSE) -> 2019-06-14 | K43: =VLOOKUP($N$1&$S$1&A43,抽出!$B$4:$O$903,9,FALSE) -> 藤江諒丞 | O43: =VLOOKUP($N$1&$S$1&A43,抽出!$B$4:$O$903,10,FALSE) -> 433 | R43: =VLOOKUP($N$1&$S$1&A43,抽出!$B$4:$O$903,11,FALSE) -> 予 | S43: =VLOOKUP($N$1&$S$1&A43,抽出!$B$4:$O$903,12,FALSE) -> 遠軽中 | V43: =VLOOKUP($N$1&$S$1&A43,抽出!$B$4:$O$903,13,FALSE) -> 2 | W43: =VLOOKUP($N$1&$S$1&A43,抽出!$B$4:$O$903,14,FALSE) -> 3.6
A44: 41 | B44: =IF(COUNTIF($K$4:N44,K44)=1,1,0) -> 1 | C44: =IF(B44=0,"",SUM($B$4:B44)) -> 41 | D44: =VLOOKUP($N$1&$S$1&A44,抽出!$B$4:$O$903,6,FALSE) -> 中学新人 | G44: =VLOOKUP($N$1&$S$1&A44,抽出!$B$4:$O$903,7,FALSE) -> 網走 | I44: =VLOOKUP($N$1&$S$1&A44,抽出!$B$4:$O$903,8,FALSE) -> 2019-08-23 | K44: =VLOOKUP($N$1&$S$1&A44,抽出!$B$4:$O$903,9,FALSE) -> 上伊澤渉 | O44: =VLOOKUP($N$1&$S$1&A44,抽出!$B$4:$O$903,10,FALSE) -> 428 | R44: =VLOOKUP($N$1&$S$1&A44,抽出!$B$4:$O$903,11,FALSE) -> 決 | S44: =VLOOKUP($N$1&$S$1&A44,抽出!$B$4:$O$903,12,FALSE) -> 北見東陵中 | V44: =VLOOKUP($N$1&$S$1&A44,抽出!$B$4:$O$903,13,FALSE) -> 2 | W44: =VLOOKUP($N$1&$S$1&A44,抽出!$B$4:$O$903,14,FALSE) -> 0.7
A45: 42 | B45: =IF(COUNTIF($K$4:N45,K45)=1,1,0) -> 1 | C45: =IF(B45=0,"",SUM($B$4:B45)) -> 42 | D45: =VLOOKUP($N$1&$S$1&A45,抽出!$B$4:$O$903,6,FALSE) -> 中体連地区 | G45: =VLOOKUP($N$1&$S$1&A45,抽出!$B$4:$O$903,7,FALSE) -> 北見 | I45: =VLOOKUP($N$1&$S$1&A45,抽出!$B$4:$O$903,8,FALSE) -> 2019-06-14 | K45: =VLOOKUP($N$1&$S$1&A45,抽出!$B$4:$O$903,9,FALSE) -> 河部純平 | O45: =VLOOKUP($N$1&$S$1&A45,抽出!$B$4:$O$903,10,FALSE) -> 423 | R45: =VLOOKUP($N$1&$S$1&A45,抽出!$B$4:$O$903,11,FALSE) -> 予 | S45: =VLOOKUP($N$1&$S$1&A45,抽出!$B$4:$O$903,12,FALSE) -> 斜里中 | V45: =VLOOKUP($N$1&$S$1&A45,抽出!$B$4:$O$903,13,FALSE) -> 3 | W45: =VLOOKUP($N$1&$S$1&A45,抽出!$B$4:$O$903,14,FALSE) -> 3.1
A46: 43 | B46: =IF(COUNTIF($K$4:N46,K46)=1,1,0) -> 1 | C46: =IF(B46=0,"",SUM($B$4:B46)) -> 43 | D46: =VLOOKUP($N$1&$S$1&A46,抽出!$B$4:$O$903,6,FALSE) -> 秋季陸上 | G46: =VLOOKUP($N$1&$S$1&A46,抽出!$B$4:$O$903,7,FALSE) -> 網走 | I46: =VLOOKUP($N$1&$S$1&A46,抽出!$B$4:$O$903,8,FALSE) -> 2019-09-08 | K46: =VLOOKUP($N$1&$S$1&A46,抽出!$B$4:$O$903,9,FALSE) -> 北村隼人 | O46: =VLOOKUP($N$1&$S$1&A46,抽出!$B$4:$O$903,10,FALSE) -> 421 | R46: =VLOOKUP($N$1&$S$1&A46,抽出!$B$4:$O$903,11,FALSE) -> 決 | S46: =VLOOKUP($N$1&$S$1&A46,抽出!$B$4:$O$903,12,FALSE) -> 北見北光中 | V46: =VLOOKUP($N$1&$S$1&A46,抽出!$B$4:$O$903,13,FALSE) -> 2 | W46: =VLOOKUP($N$1&$S$1&A46,抽出!$B$4:$O$903,14,FALSE) -> 0.3
A47: 44 | B47: =IF(COUNTIF($K$4:N47,K47)=1,1,0) -> 1 | C47: =IF(B47=0,"",SUM($B$4:B47)) -> 44 | D47: =VLOOKUP($N$1&$S$1&A47,抽出!$B$4:$O$903,6,FALSE) -> 中体連地区 | G47: =VLOOKUP($N$1&$S$1&A47,抽出!$B$4:$O$903,7,FALSE) -> 北見 | I47: =VLOOKUP($N$1&$S$1&A47,抽出!$B$4:$O$903,8,FALSE) -> 2019-06-14 | K47: =VLOOKUP($N$1&$S$1&A47,抽出!$B$4:$O$903,9,FALSE) -> 工藤之雅 | O47: =VLOOKUP($N$1&$S$1&A47,抽出!$B$4:$O$903,10,FALSE) -> 421 | R47: =VLOOKUP($N$1&$S$1&A47,抽出!$B$4:$O$903,11,FALSE) -> 予 | S47: =VLOOKUP($N$1&$S$1&A47,抽出!$B$4:$O$903,12,FALSE) -> 北見北中 | V47: =VLOOKUP($N$1&$S$1&A47,抽出!$B$4:$O$903,13,FALSE) -> 2 | W47: =VLOOKUP($N$1&$S$1&A47,抽出!$B$4:$O$903,14,FALSE) -> -0.7
A48: 45 | B48: =IF(COUNTIF($K$4:N48,K48)=1,1,0) -> 1 | C48: =IF(B48=0,"",SUM($B$4:B48)) -> 45 | D48: =VLOOKUP($N$1&$S$1&A48,抽出!$B$4:$O$903,6,FALSE) -> 記録会第１戦 | G48: =VLOOKUP($N$1&$S$1&A48,抽出!$B$4:$O$903,7,FALSE) -> 北見 | I48: =VLOOKUP($N$1&$S$1&A48,抽出!$B$4:$O$903,8,FALSE) -> 2019-04-28 | K48: =VLOOKUP($N$1&$S$1&A48,抽出!$B$4:$O$903,9,FALSE) -> 坂野綾圭泉 | O48: =VLOOKUP($N$1&$S$1&A48,抽出!$B$4:$O$903,10,FALSE) -> 419 | R48: =VLOOKUP($N$1&$S$1&A48,抽出!$B$4:$O$903,11,FALSE) -> 決 | S48: =VLOOKUP($N$1&$S$1&A48,抽出!$B$4:$O$903,12,FALSE) -> 斜里中 | V48: =VLOOKUP($N$1&$S$1&A48,抽出!$B$4:$O$903,13,FALSE) -> 3 | W48: =VLOOKUP($N$1&$S$1&A48,抽出!$B$4:$O$903,14,FALSE) -> 1.6
A49: 46 | B49: =IF(COUNTIF($K$4:N49,K49)=1,1,0) -> 1 | C49: =IF(B49=0,"",SUM($B$4:B49)) -> 46 | D49: =VLOOKUP($N$1&$S$1&A49,抽出!$B$4:$O$903,6,FALSE) -> 記録会３戦 | G49: =VLOOKUP($N$1&$S$1&A49,抽出!$B$4:$O$903,7,FALSE) -> 網走 | I49: =VLOOKUP($N$1&$S$1&A49,抽出!$B$4:$O$903,8,FALSE) -> 2019-07-14 | K49: =VLOOKUP($N$1&$S$1&A49,抽出!$B$4:$O$903,9,FALSE) -> 小原詩恩 | O49: =VLOOKUP($N$1&$S$1&A49,抽出!$B$4:$O$903,10,FALSE) -> 416 | R49: =VLOOKUP($N$1&$S$1&A49,抽出!$B$4:$O$903,11,FALSE) -> 決 | S49: =VLOOKUP($N$1&$S$1&A49,抽出!$B$4:$O$903,12,FALSE) -> 美幌北中 | V49: =VLOOKUP($N$1&$S$1&A49,抽出!$B$4:$O$903,13,FALSE) -> 1 | W49: =VLOOKUP($N$1&$S$1&A49,抽出!$B$4:$O$903,14,FALSE) -> -0.2
A50: 47 | B50: =IF(COUNTIF($K$4:N50,K50)=1,1,0) -> 1 | C50: =IF(B50=0,"",SUM($B$4:B50)) -> 47 | D50: =VLOOKUP($N$1&$S$1&A50,抽出!$B$4:$O$903,6,FALSE) -> 記録会４戦 | G50: =VLOOKUP($N$1&$S$1&A50,抽出!$B$4:$O$903,7,FALSE) -> 北見 | I50: =VLOOKUP($N$1&$S$1&A50,抽出!$B$4:$O$903,8,FALSE) -> 2019-08-04 | K50: =VLOOKUP($N$1&$S$1&A50,抽出!$B$4:$O$903,9,FALSE) -> 栗原明慎 | O50: =VLOOKUP($N$1&$S$1&A50,抽出!$B$4:$O$903,10,FALSE) -> 416 | R50: =VLOOKUP($N$1&$S$1&A50,抽出!$B$4:$O$903,11,FALSE) -> 決 | S50: =VLOOKUP($N$1&$S$1&A50,抽出!$B$4:$O$903,12,FALSE) -> 北見北光中 | V50: =VLOOKUP($N$1&$S$1&A50,抽出!$B$4:$O$903,13,FALSE) -> 1 | W50: =VLOOKUP($N$1&$S$1&A50,抽出!$B$4:$O$903,14,FALSE) -> -0.3
A51: 48 | B51: =IF(COUNTIF($K$4:N51,K51)=1,1,0) -> 1 | C51: =IF(B51=0,"",SUM($B$4:B51)) -> 48 | D51: =VLOOKUP($N$1&$S$1&A51,抽出!$B$4:$O$903,6,FALSE) -> 秋季陸上 | G51: =VLOOKUP($N$1&$S$1&A51,抽出!$B$4:$O$903,7,FALSE) -> 網走 | I51: =VLOOKUP($N$1&$S$1&A51,抽出!$B$4:$O$903,8,FALSE) -> 2019-09-08 | K51: =VLOOKUP($N$1&$S$1&A51,抽出!$B$4:$O$903,9,FALSE) -> 中浜蓮 | O51: =VLOOKUP($N$1&$S$1&A51,抽出!$B$4:$O$903,10,FALSE) -> 413 | R51: =VLOOKUP($N$1&$S$1&A51,抽出!$B$4:$O$903,11,FALSE) -> 決 | S51: =VLOOKUP($N$1&$S$1&A51,抽出!$B$4:$O$903,12,FALSE) -> 大空東藻琴中 | V51: =VLOOKUP($N$1&$S$1&A51,抽出!$B$4:$O$903,13,FALSE) -> 1 | W51: =VLOOKUP($N$1&$S$1&A51,抽出!$B$4:$O$903,14,FALSE) -> 0.1
A52: 49 | B52: =IF(COUNTIF($K$4:N52,K52)=1,1,0) -> 1 | C52: =IF(B52=0,"",SUM($B$4:B52)) -> 49 | D52: =VLOOKUP($N$1&$S$1&A52,抽出!$B$4:$O$903,6,FALSE) -> 通信陸上 | G52: =VLOOKUP($N$1&$S$1&A52,抽出!$B$4:$O$903,7,FALSE) -> 網走 | I52: =VLOOKUP($N$1&$S$1&A52,抽出!$B$4:$O$903,8,FALSE) -> 2019-06-28 | K52: =VLOOKUP($N$1&$S$1&A52,抽出!$B$4:$O$903,9,FALSE) -> 杉澤快流 | O52: =VLOOKUP($N$1&$S$1&A52,抽出!$B$4:$O$903,10,FALSE) -> 407 | R52: =VLOOKUP($N$1&$S$1&A52,抽出!$B$4:$O$903,11,FALSE) -> 予 | S52: =VLOOKUP($N$1&$S$1&A52,抽出!$B$4:$O$903,12,FALSE) -> 北見東陵中 | V52: =VLOOKUP($N$1&$S$1&A52,抽出!$B$4:$O$903,13,FALSE) -> 2 | W52: =VLOOKUP($N$1&$S$1&A52,抽出!$B$4:$O$903,14,FALSE) -> 1.2
A53: 50 | B53: =IF(COUNTIF($K$4:N53,K53)=1,1,0) -> 1 | C53: =IF(B53=0,"",SUM($B$4:B53)) -> 50 | D53: =VLOOKUP($N$1&$S$1&A53,抽出!$B$4:$O$903,6,FALSE) -> 秋季陸上 | G53: =VLOOKUP($N$1&$S$1&A53,抽出!$B$4:$O$903,7,FALSE) -> 網走 | I53: =VLOOKUP($N$1&$S$1&A53,抽出!$B$4:$O$903,8,FALSE) -> 2019-09-08 | K53: =VLOOKUP($N$1&$S$1&A53,抽出!$B$4:$O$903,9,FALSE) -> 大津陽弥 | O53: =VLOOKUP($N$1&$S$1&A53,抽出!$B$4:$O$903,10,FALSE) -> 405 | R53: =VLOOKUP($N$1&$S$1&A53,抽出!$B$4:$O$903,11,FALSE) -> 決 | S53: =VLOOKUP($N$1&$S$1&A53,抽出!$B$4:$O$903,12,FALSE) -> 北見高栄中 | V53: =VLOOKUP($N$1&$S$1&A53,抽出!$B$4:$O$903,13,FALSE) -> 1 | W53: =VLOOKUP($N$1&$S$1&A53,抽出!$B$4:$O$903,14,FALSE) -> 0.5
A54: 51 | B54: =IF(COUNTIF($K$4:N54,K54)=1,1,0) -> 1 | C54: =IF(B54=0,"",SUM($B$4:B54)) -> 51 | D54: =VLOOKUP($N$1&$S$1&A54,抽出!$B$4:$O$903,6,FALSE) -> 記録会４戦 | G54: =VLOOKUP($N$1&$S$1&A54,抽出!$B$4:$O$903,7,FALSE) -> 北見 | I54: =VLOOKUP($N$1&$S$1&A54,抽出!$B$4:$O$903,8,FALSE) -> 2019-08-04 | K54: =VLOOKUP($N$1&$S$1&A54,抽出!$B$4:$O$903,9,FALSE) -> 酒井柊優 | O54: =VLOOKUP($N$1&$S$1&A54,抽出!$B$4:$O$903,10,FALSE) -> 405 | R54: =VLOOKUP($N$1&$S$1&A54,抽出!$B$4:$O$903,11,FALSE) -> 決 | S54: =VLOOKUP($N$1&$S$1&A54,抽出!$B$4:$O$903,12,FALSE) -> 北見東陵中 | V54: =VLOOKUP($N$1&$S$1&A54,抽出!$B$4:$O$903,13,FALSE) -> 1 | W54: =VLOOKUP($N$1&$S$1&A54,抽出!$B$4:$O$903,14,FALSE) -> 2.1
A55: 52 | B55: =IF(COUNTIF($K$4:N55,K55)=1,1,0) -> 1 | C55: =IF(B55=0,"",SUM($B$4:B55)) -> 52 | D55: =VLOOKUP($N$1&$S$1&A55,抽出!$B$4:$O$903,6,FALSE) -> 通信陸上 | G55: =VLOOKUP($N$1&$S$1&A55,抽出!$B$4:$O$903,7,FALSE) -> 網走 | I55: =VLOOKUP($N$1&$S$1&A55,抽出!$B$4:$O$903,8,FALSE) -> 2019-06-28 | K55: =VLOOKUP($N$1&$S$1&A55,抽出!$B$4:$O$903,9,FALSE) -> 大道光竜 | O55: =VLOOKUP($N$1&$S$1&A55,抽出!$B$4:$O$903,10,FALSE) -> 396 | R55: =VLOOKUP($N$1&$S$1&A55,抽出!$B$4:$O$903,11,FALSE) -> 予 | S55: =VLOOKUP($N$1&$S$1&A55,抽出!$B$4:$O$903,12,FALSE) -> 北見高栄中 | V55: =VLOOKUP($N$1&$S$1&A55,抽出!$B$4:$O$903,13,FALSE) -> 1 | W55: =VLOOKUP($N$1&$S$1&A55,抽出!$B$4:$O$903,14,FALSE) -> 1.8
A56: 53 | B56: =IF(COUNTIF($K$4:N56,K56)=1,1,0) -> 1 | C56: =IF(B56=0,"",SUM($B$4:B56)) -> 53 | D56: =VLOOKUP($N$1&$S$1&A56,抽出!$B$4:$O$903,6,FALSE) -> 秋季陸上 | G56: =VLOOKUP($N$1&$S$1&A56,抽出!$B$4:$O$903,7,FALSE) -> 網走 | I56: =VLOOKUP($N$1&$S$1&A56,抽出!$B$4:$O$903,8,FALSE) -> 2019-09-08 | K56: =VLOOKUP($N$1&$S$1&A56,抽出!$B$4:$O$903,9,FALSE) -> 曽根哲優 | O56: =VLOOKUP($N$1&$S$1&A56,抽出!$B$4:$O$903,10,FALSE) -> 396 | R56: =VLOOKUP($N$1&$S$1&A56,抽出!$B$4:$O$903,11,FALSE) -> 決 | S56: =VLOOKUP($N$1&$S$1&A56,抽出!$B$4:$O$903,12,FALSE) -> 美幌北中 | V56: =VLOOKUP($N$1&$S$1&A56,抽出!$B$4:$O$903,13,FALSE) -> 1 | W56: =VLOOKUP($N$1&$S$1&A56,抽出!$B$4:$O$903,14,FALSE) -> -0.5
A57: 54 | B57: =IF(COUNTIF($K$4:N57,K57)=1,1,0) -> 1 | C57: =IF(B57=0,"",SUM($B$4:B57)) -> 54 | D57: =VLOOKUP($N$1&$S$1&A57,抽出!$B$4:$O$903,6,FALSE) -> 通信陸上 | G57: =VLOOKUP($N$1&$S$1&A57,抽出!$B$4:$O$903,7,FALSE) -> 網走 | I57: =VLOOKUP($N$1&$S$1&A57,抽出!$B$4:$O$903,8,FALSE) -> 2019-06-28 | K57: =VLOOKUP($N$1&$S$1&A57,抽出!$B$4:$O$903,9,FALSE) -> 浅倉悠大 | O57: =VLOOKUP($N$1&$S$1&A57,抽出!$B$4:$O$903,10,FALSE) -> 392 | R57: =VLOOKUP($N$1&$S$1&A57,抽出!$B$4:$O$903,11,FALSE) -> 予 | S57: =VLOOKUP($N$1&$S$1&A57,抽出!$B$4:$O$903,12,FALSE) -> 美幌北中 | V57: =VLOOKUP($N$1&$S$1&A57,抽出!$B$4:$O$903,13,FALSE) -> 1 | W57: =VLOOKUP($N$1&$S$1&A57,抽出!$B$4:$O$903,14,FALSE) -> 1
A58: 55 | B58: =IF(COUNTIF($K$4:N58,K58)=1,1,0) -> 1 | C58: =IF(B58=0,"",SUM($B$4:B58)) -> 55 | D58: =VLOOKUP($N$1&$S$1&A58,抽出!$B$4:$O$903,6,FALSE) -> 中体連地区 | G58: =VLOOKUP($N$1&$S$1&A58,抽出!$B$4:$O$903,7,FALSE) -> 北見 | I58: =VLOOKUP($N$1&$S$1&A58,抽出!$B$4:$O$903,8,FALSE) -> 2019-06-14 | K58: =VLOOKUP($N$1&$S$1&A58,抽出!$B$4:$O$903,9,FALSE) -> 亀田怜苑 | O58: =VLOOKUP($N$1&$S$1&A58,抽出!$B$4:$O$903,10,FALSE) -> 392 | R58: =VLOOKUP($N$1&$S$1&A58,抽出!$B$4:$O$903,11,FALSE) -> 予 | S58: =VLOOKUP($N$1&$S$1&A58,抽出!$B$4:$O$903,12,FALSE) -> 北見小泉中 | V58: =VLOOKUP($N$1&$S$1&A58,抽出!$B$4:$O$903,13,FALSE) -> 1 | W58: =VLOOKUP($N$1&$S$1&A58,抽出!$B$4:$O$903,14,FALSE) -> 0.7
A59: 56 | B59: =IF(COUNTIF($K$4:N59,K59)=1,1,0) -> 1 | C59: =IF(B59=0,"",SUM($B$4:B59)) -> 56 | D59: =VLOOKUP($N$1&$S$1&A59,抽出!$B$4:$O$903,6,FALSE) -> 中学新人 | G59: =VLOOKUP($N$1&$S$1&A59,抽出!$B$4:$O$903,7,FALSE) -> 網走 | I59: =VLOOKUP($N$1&$S$1&A59,抽出!$B$4:$O$903,8,FALSE) -> 2019-08-23 | K59: =VLOOKUP($N$1&$S$1&A59,抽出!$B$4:$O$903,9,FALSE) -> 林柚輔 | O59: =VLOOKUP($N$1&$S$1&A59,抽出!$B$4:$O$903,10,FALSE) -> 390 | R59: =VLOOKUP($N$1&$S$1&A59,抽出!$B$4:$O$903,11,FALSE) -> 決 | S59: =VLOOKUP($N$1&$S$1&A59,抽出!$B$4:$O$903,12,FALSE) -> 北見北中 | V59: =VLOOKUP($N$1&$S$1&A59,抽出!$B$4:$O$903,13,FALSE) -> 1 | W59: =VLOOKUP($N$1&$S$1&A59,抽出!$B$4:$O$903,14,FALSE) -> -0.1
A60: 57 | B60: =IF(COUNTIF($K$4:N60,K60)=1,1,0) -> 1 | C60: =IF(B60=0,"",SUM($B$4:B60)) -> 57 | D60: =VLOOKUP($N$1&$S$1&A60,抽出!$B$4:$O$903,6,FALSE) -> 中体連地区 | G60: =VLOOKUP($N$1&$S$1&A60,抽出!$B$4:$O$903,7,FALSE) -> 北見 | I60: =VLOOKUP($N$1&$S$1&A60,抽出!$B$4:$O$903,8,FALSE) -> 2019-06-14 | K60: =VLOOKUP($N$1&$S$1&A60,抽出!$B$4:$O$903,9,FALSE) -> 西藤志竜 | O60: =VLOOKUP($N$1&$S$1&A60,抽出!$B$4:$O$903,10,FALSE) -> 379 | R60: =VLOOKUP($N$1&$S$1&A60,抽出!$B$4:$O$903,11,FALSE) -> 予 | S60: =VLOOKUP($N$1&$S$1&A60,抽出!$B$4:$O$903,12,FALSE) -> 北見南中 | V60: =VLOOKUP($N$1&$S$1&A60,抽出!$B$4:$O$903,13,FALSE) -> 1 | W60: =VLOOKUP($N$1&$S$1&A60,抽出!$B$4:$O$903,14,FALSE) -> 3.7
A61: 58 | B61: =IF(COUNTIF($K$4:N61,K61)=1,1,0) -> 1 | C61: =IF(B61=0,"",SUM($B$4:B61)) -> 58 | D61: =VLOOKUP($N$1&$S$1&A61,抽出!$B$4:$O$903,6,FALSE) -> 秋季陸上 | G61: =VLOOKUP($N$1&$S$1&A61,抽出!$B$4:$O$903,7,FALSE) -> 網走 | I61: =VLOOKUP($N$1&$S$1&A61,抽出!$B$4:$O$903,8,FALSE) -> 2019-09-08 | K61: =VLOOKUP($N$1&$S$1&A61,抽出!$B$4:$O$903,9,FALSE) -> 髙橋龍之介 | O61: =VLOOKUP($N$1&$S$1&A61,抽出!$B$4:$O$903,10,FALSE) -> 378 | R61: =VLOOKUP($N$1&$S$1&A61,抽出!$B$4:$O$903,11,FALSE) -> 決 | S61: =VLOOKUP($N$1&$S$1&A61,抽出!$B$4:$O$903,12,FALSE) -> 網走第四中 | V61: =VLOOKUP($N$1&$S$1&A61,抽出!$B$4:$O$903,13,FALSE) -> 1 | W61: =VLOOKUP($N$1&$S$1&A61,抽出!$B$4:$O$903,14,FALSE) -> -1.2
A62: 59 | B62: =IF(COUNTIF($K$4:N62,K62)=1,1,0) -> 1 | C62: =IF(B62=0,"",SUM($B$4:B62)) -> 59 | D62: =VLOOKUP($N$1&$S$1&A62,抽出!$B$4:$O$903,6,FALSE) -> 中体連地区 | G62: =VLOOKUP($N$1&$S$1&A62,抽出!$B$4:$O$903,7,FALSE) -> 北見 | I62: =VLOOKUP($N$1&$S$1&A62,抽出!$B$4:$O$903,8,FALSE) -> 2019-06-14 | K62: =VLOOKUP($N$1&$S$1&A62,抽出!$B$4:$O$903,9,FALSE) -> 大友永遠 | O62: =VLOOKUP($N$1&$S$1&A62,抽出!$B$4:$O$903,10,FALSE) -> 378 | R62: =VLOOKUP($N$1&$S$1&A62,抽出!$B$4:$O$903,11,FALSE) -> 予 | S62: =VLOOKUP($N$1&$S$1&A62,抽出!$B$4:$O$903,12,FALSE) -> 美幌北中 | V62: =VLOOKUP($N$1&$S$1&A62,抽出!$B$4:$O$903,13,FALSE) -> 1 | W62: =VLOOKUP($N$1&$S$1&A62,抽出!$B$4:$O$903,14,FALSE) -> 2
A63: 60 | B63: =IF(COUNTIF($K$4:N63,K63)=1,1,0) -> 1 | C63: =IF(B63=0,"",SUM($B$4:B63)) -> 60 | D63: =VLOOKUP($N$1&$S$1&A63,抽出!$B$4:$O$903,6,FALSE) -> 中体連地区 | G63: =VLOOKUP($N$1&$S$1&A63,抽出!$B$4:$O$903,7,FALSE) -> 北見 | I63: =VLOOKUP($N$1&$S$1&A63,抽出!$B$4:$O$903,8,FALSE) -> 2019-06-14 | K63: =VLOOKUP($N$1&$S$1&A63,抽出!$B$4:$O$903,9,FALSE) -> 橋本颯汰 | O63: =VLOOKUP($N$1&$S$1&A63,抽出!$B$4:$O$903,10,FALSE) -> 377 | R63: =VLOOKUP($N$1&$S$1&A63,抽出!$B$4:$O$903,11,FALSE) -> 予 | S63: =VLOOKUP($N$1&$S$1&A63,抽出!$B$4:$O$903,12,FALSE) -> 美幌北中 | V63: =VLOOKUP($N$1&$S$1&A63,抽出!$B$4:$O$903,13,FALSE) -> 1 | W63: =VLOOKUP($N$1&$S$1&A63,抽出!$B$4:$O$903,14,FALSE) -> 2.9
A64: 61 | B64: =IF(COUNTIF($K$4:N64,K64)=1,1,0) -> 1 | C64: =IF(B64=0,"",SUM($B$4:B64)) -> 61 | D64: =VLOOKUP($N$1&$S$1&A64,抽出!$B$4:$O$903,6,FALSE) -> 選手権 | G64: =VLOOKUP($N$1&$S$1&A64,抽出!$B$4:$O$903,7,FALSE) -> 北見 | I64: =VLOOKUP($N$1&$S$1&A64,抽出!$B$4:$O$903,8,FALSE) -> 2019-05-11 | K64: =VLOOKUP($N$1&$S$1&A64,抽出!$B$4:$O$903,9,FALSE) -> 西陽矢 | O64: =VLOOKUP($N$1&$S$1&A64,抽出!$B$4:$O$903,10,FALSE) -> 375 | R64: =VLOOKUP($N$1&$S$1&A64,抽出!$B$4:$O$903,11,FALSE) -> 決 | S64: =VLOOKUP($N$1&$S$1&A64,抽出!$B$4:$O$903,12,FALSE) -> 大空東藻琴中 | V64: =VLOOKUP($N$1&$S$1&A64,抽出!$B$4:$O$903,13,FALSE) -> 2 | W64: =VLOOKUP($N$1&$S$1&A64,抽出!$B$4:$O$903,14,FALSE) -> 0.6
A65: 62 | B65: =IF(COUNTIF($K$4:N65,K65)=1,1,0) -> 1 | C65: =IF(B65=0,"",SUM($B$4:B65)) -> 62 | D65: =VLOOKUP($N$1&$S$1&A65,抽出!$B$4:$O$903,6,FALSE) -> 秋季陸上 | G65: =VLOOKUP($N$1&$S$1&A65,抽出!$B$4:$O$903,7,FALSE) -> 網走 | I65: =VLOOKUP($N$1&$S$1&A65,抽出!$B$4:$O$903,8,FALSE) -> 2019-09-08 | K65: =VLOOKUP($N$1&$S$1&A65,抽出!$B$4:$O$903,9,FALSE) -> 白井爽太郎 | O65: =VLOOKUP($N$1&$S$1&A65,抽出!$B$4:$O$903,10,FALSE) -> 372 | R65: =VLOOKUP($N$1&$S$1&A65,抽出!$B$4:$O$903,11,FALSE) -> 決 | S65: =VLOOKUP($N$1&$S$1&A65,抽出!$B$4:$O$903,12,FALSE) -> 大空東藻琴中 | V65: =VLOOKUP($N$1&$S$1&A65,抽出!$B$4:$O$903,13,FALSE) -> 1 | W65: =VLOOKUP($N$1&$S$1&A65,抽出!$B$4:$O$903,14,FALSE) -> 0.1
A66: 63 | B66: =IF(COUNTIF($K$4:N66,K66)=1,1,0) -> 1 | C66: =IF(B66=0,"",SUM($B$4:B66)) -> 63 | D66: =VLOOKUP($N$1&$S$1&A66,抽出!$B$4:$O$903,6,FALSE) -> 記録会３戦 | G66: =VLOOKUP($N$1&$S$1&A66,抽出!$B$4:$O$903,7,FALSE) -> 網走 | I66: =VLOOKUP($N$1&$S$1&A66,抽出!$B$4:$O$903,8,FALSE) -> 2019-07-14 | K66: =VLOOKUP($N$1&$S$1&A66,抽出!$B$4:$O$903,9,FALSE) -> 三原立暉 | O66: =VLOOKUP($N$1&$S$1&A66,抽出!$B$4:$O$903,10,FALSE) -> 372 | R66: =VLOOKUP($N$1&$S$1&A66,抽出!$B$4:$O$903,11,FALSE) -> 決 | S66: =VLOOKUP($N$1&$S$1&A66,抽出!$B$4:$O$903,12,FALSE) -> 網走第一中 | V66: =VLOOKUP($N$1&$S$1&A66,抽出!$B$4:$O$903,13,FALSE) -> 1 | W66: =VLOOKUP($N$1&$S$1&A66,抽出!$B$4:$O$903,14,FALSE) -> -0.2
A67: 64 | B67: =IF(COUNTIF($K$4:N67,K67)=1,1,0) -> 1 | C67: =IF(B67=0,"",SUM($B$4:B67)) -> 64 | D67: =VLOOKUP($N$1&$S$1&A67,抽出!$B$4:$O$903,6,FALSE) -> 中学新人 | G67: =VLOOKUP($N$1&$S$1&A67,抽出!$B$4:$O$903,7,FALSE) -> 網走 | I67: =VLOOKUP($N$1&$S$1&A67,抽出!$B$4:$O$903,8,FALSE) -> 2019-08-23 | K67: =VLOOKUP($N$1&$S$1&A67,抽出!$B$4:$O$903,9,FALSE) -> 米倉啓太 | O67: =VLOOKUP($N$1&$S$1&A67,抽出!$B$4:$O$903,10,FALSE) -> 369 | R67: =VLOOKUP($N$1&$S$1&A67,抽出!$B$4:$O$903,11,FALSE) -> 決 | S67: =VLOOKUP($N$1&$S$1&A67,抽出!$B$4:$O$903,12,FALSE) -> 大空女満別中 | V67: =VLOOKUP($N$1&$S$1&A67,抽出!$B$4:$O$903,13,FALSE) -> 1 | W67: =VLOOKUP($N$1&$S$1&A67,抽出!$B$4:$O$903,14,FALSE) -> -0.3
A68: 65 | B68: =IF(COUNTIF($K$4:N68,K68)=1,1,0) -> 1 | C68: =IF(B68=0,"",SUM($B$4:B68)) -> 65 | D68: =VLOOKUP($N$1&$S$1&A68,抽出!$B$4:$O$903,6,FALSE) -> 記録会３戦 | G68: =VLOOKUP($N$1&$S$1&A68,抽出!$B$4:$O$903,7,FALSE) -> 網走 | I68: =VLOOKUP($N$1&$S$1&A68,抽出!$B$4:$O$903,8,FALSE) -> 2019-07-14 | K68: =VLOOKUP($N$1&$S$1&A68,抽出!$B$4:$O$903,9,FALSE) -> 野村駿 | O68: =VLOOKUP($N$1&$S$1&A68,抽出!$B$4:$O$903,10,FALSE) -> 368 | R68: =VLOOKUP($N$1&$S$1&A68,抽出!$B$4:$O$903,11,FALSE) -> 決 | S68: =VLOOKUP($N$1&$S$1&A68,抽出!$B$4:$O$903,12,FALSE) -> 北見東陵中 | V68: =VLOOKUP($N$1&$S$1&A68,抽出!$B$4:$O$903,13,FALSE) -> 1 | W68: =VLOOKUP($N$1&$S$1&A68,抽出!$B$4:$O$903,14,FALSE) -> 1.4
A69: 66 | B69: =IF(COUNTIF($K$4:N69,K69)=1,1,0) -> 1 | C69: =IF(B69=0,"",SUM($B$4:B69)) -> 66 | D69: =VLOOKUP($N$1&$S$1&A69,抽出!$B$4:$O$903,6,FALSE) -> 記録会３戦 | G69: =VLOOKUP($N$1&$S$1&A69,抽出!$B$4:$O$903,7,FALSE) -> 網走 | I69: =VLOOKUP($N$1&$S$1&A69,抽出!$B$4:$O$903,8,FALSE) -> 2019-07-14 | K69: =VLOOKUP($N$1&$S$1&A69,抽出!$B$4:$O$903,9,FALSE) -> 城石陸斗 | O69: =VLOOKUP($N$1&$S$1&A69,抽出!$B$4:$O$903,10,FALSE) -> 361 | R69: =VLOOKUP($N$1&$S$1&A69,抽出!$B$4:$O$903,11,FALSE) -> 決 | S69: =VLOOKUP($N$1&$S$1&A69,抽出!$B$4:$O$903,12,FALSE) -> 北見小泉中 | V69: =VLOOKUP($N$1&$S$1&A69,抽出!$B$4:$O$903,13,FALSE) -> 1 | W69: =VLOOKUP($N$1&$S$1&A69,抽出!$B$4:$O$903,14,FALSE) -> 0.9
A70: 67 | B70: =IF(COUNTIF($K$4:N70,K70)=1,1,0) -> 1 | C70: =IF(B70=0,"",SUM($B$4:B70)) -> 67 | D70: =VLOOKUP($N$1&$S$1&A70,抽出!$B$4:$O$903,6,FALSE) -> 中学新人 | G70: =VLOOKUP($N$1&$S$1&A70,抽出!$B$4:$O$903,7,FALSE) -> 網走 | I70: =VLOOKUP($N$1&$S$1&A70,抽出!$B$4:$O$903,8,FALSE) -> 2019-08-23 | K70: =VLOOKUP($N$1&$S$1&A70,抽出!$B$4:$O$903,9,FALSE) -> 本川雅久 | O70: =VLOOKUP($N$1&$S$1&A70,抽出!$B$4:$O$903,10,FALSE) -> 358 | R70: =VLOOKUP($N$1&$S$1&A70,抽出!$B$4:$O$903,11,FALSE) -> 決 | S70: =VLOOKUP($N$1&$S$1&A70,抽出!$B$4:$O$903,12,FALSE) -> 大空女満別中 | V70: =VLOOKUP($N$1&$S$1&A70,抽出!$B$4:$O$903,13,FALSE) -> 1 | W70: =VLOOKUP($N$1&$S$1&A70,抽出!$B$4:$O$903,14,FALSE) -> 0
A71: 68 | B71: =IF(COUNTIF($K$4:N71,K71)=1,1,0) -> 1 | C71: =IF(B71=0,"",SUM($B$4:B71)) -> 68 | D71: =VLOOKUP($N$1&$S$1&A71,抽出!$B$4:$O$903,6,FALSE) -> 中学新人 | G71: =VLOOKUP($N$1&$S$1&A71,抽出!$B$4:$O$903,7,FALSE) -> 網走 | I71: =VLOOKUP($N$1&$S$1&A71,抽出!$B$4:$O$903,8,FALSE) -> 2019-08-23 | K71: =VLOOKUP($N$1&$S$1&A71,抽出!$B$4:$O$903,9,FALSE) -> 飯島空輝 | O71: =VLOOKUP($N$1&$S$1&A71,抽出!$B$4:$O$903,10,FALSE) -> 358 | R71: =VLOOKUP($N$1&$S$1&A71,抽出!$B$4:$O$903,11,FALSE) -> 決 | S71: =VLOOKUP($N$1&$S$1&A71,抽出!$B$4:$O$903,12,FALSE) -> 北見北中 | V71: =VLOOKUP($N$1&$S$1&A71,抽出!$B$4:$O$903,13,FALSE) -> 1 | W71: =VLOOKUP($N$1&$S$1&A71,抽出!$B$4:$O$903,14,FALSE) -> 1
A72: 69 | B72: =IF(COUNTIF($K$4:N72,K72)=1,1,0) -> 1 | C72: =IF(B72=0,"",SUM($B$4:B72)) -> 69 | D72: =VLOOKUP($N$1&$S$1&A72,抽出!$B$4:$O$903,6,FALSE) -> 記録会３戦 | G72: =VLOOKUP($N$1&$S$1&A72,抽出!$B$4:$O$903,7,FALSE) -> 網走 | I72: =VLOOKUP($N$1&$S$1&A72,抽出!$B$4:$O$903,8,FALSE) -> 2019-07-14 | K72: =VLOOKUP($N$1&$S$1&A72,抽出!$B$4:$O$903,9,FALSE) -> 上西翔 | O72: =VLOOKUP($N$1&$S$1&A72,抽出!$B$4:$O$903,10,FALSE) -> 349 | R72: =VLOOKUP($N$1&$S$1&A72,抽出!$B$4:$O$903,11,FALSE) -> 決 | S72: =VLOOKUP($N$1&$S$1&A72,抽出!$B$4:$O$903,12,FALSE) -> 美幌中 | V72: =VLOOKUP($N$1&$S$1&A72,抽出!$B$4:$O$903,13,FALSE) -> 1 | W72: =VLOOKUP($N$1&$S$1&A72,抽出!$B$4:$O$903,14,FALSE) -> 1.1
A73: 70 | B73: =IF(COUNTIF($K$4:N73,K73)=1,1,0) -> 1 | C73: =IF(B73=0,"",SUM($B$4:B73)) -> 70 | D73: =VLOOKUP($N$1&$S$1&A73,抽出!$B$4:$O$903,6,FALSE) -> 中体連地区 | G73: =VLOOKUP($N$1&$S$1&A73,抽出!$B$4:$O$903,7,FALSE) -> 北見 | I73: =VLOOKUP($N$1&$S$1&A73,抽出!$B$4:$O$903,8,FALSE) -> 2019-06-14 | K73: =VLOOKUP($N$1&$S$1&A73,抽出!$B$4:$O$903,9,FALSE) -> 稲垣璃久 | O73: =VLOOKUP($N$1&$S$1&A73,抽出!$B$4:$O$903,10,FALSE) -> 349 | R73: =VLOOKUP($N$1&$S$1&A73,抽出!$B$4:$O$903,11,FALSE) -> 予 | S73: =VLOOKUP($N$1&$S$1&A73,抽出!$B$4:$O$903,12,FALSE) -> 北見北中 | V73: =VLOOKUP($N$1&$S$1&A73,抽出!$B$4:$O$903,13,FALSE) -> 2 | W73: =VLOOKUP($N$1&$S$1&A73,抽出!$B$4:$O$903,14,FALSE) -> 5
A74: 71 | B74: =IF(COUNTIF($K$4:N74,K74)=1,1,0) -> 1 | C74: =IF(B74=0,"",SUM($B$4:B74)) -> 71 | D74: =VLOOKUP($N$1&$S$1&A74,抽出!$B$4:$O$903,6,FALSE) -> 記録会４戦 | G74: =VLOOKUP($N$1&$S$1&A74,抽出!$B$4:$O$903,7,FALSE) -> 北見 | I74: =VLOOKUP($N$1&$S$1&A74,抽出!$B$4:$O$903,8,FALSE) -> 2019-08-04 | K74: =VLOOKUP($N$1&$S$1&A74,抽出!$B$4:$O$903,9,FALSE) -> 田中智也 | O74: =VLOOKUP($N$1&$S$1&A74,抽出!$B$4:$O$903,10,FALSE) -> 348 | R74: =VLOOKUP($N$1&$S$1&A74,抽出!$B$4:$O$903,11,FALSE) -> 決 | S74: =VLOOKUP($N$1&$S$1&A74,抽出!$B$4:$O$903,12,FALSE) -> 網走第一中 | V74: =VLOOKUP($N$1&$S$1&A74,抽出!$B$4:$O$903,13,FALSE) -> 1 | W74: =VLOOKUP($N$1&$S$1&A74,抽出!$B$4:$O$903,14,FALSE) -> -1.2
A75: 72 | B75: =IF(COUNTIF($K$4:N75,K75)=1,1,0) -> 1 | C75: =IF(B75=0,"",SUM($B$4:B75)) -> 72 | D75: =VLOOKUP($N$1&$S$1&A75,抽出!$B$4:$O$903,6,FALSE) -> 通信陸上 | G75: =VLOOKUP($N$1&$S$1&A75,抽出!$B$4:$O$903,7,FALSE) -> 網走 | I75: =VLOOKUP($N$1&$S$1&A75,抽出!$B$4:$O$903,8,FALSE) -> 2019-06-28 | K75: =VLOOKUP($N$1&$S$1&A75,抽出!$B$4:$O$903,9,FALSE) -> 山本銀士郎 | O75: =VLOOKUP($N$1&$S$1&A75,抽出!$B$4:$O$903,10,FALSE) -> 346 | R75: =VLOOKUP($N$1&$S$1&A75,抽出!$B$4:$O$903,11,FALSE) -> 予 | S75: =VLOOKUP($N$1&$S$1&A75,抽出!$B$4:$O$903,12,FALSE) -> 網走第一中 | V75: =VLOOKUP($N$1&$S$1&A75,抽出!$B$4:$O$903,13,FALSE) -> 2 | W75: =VLOOKUP($N$1&$S$1&A75,抽出!$B$4:$O$903,14,FALSE) -> 1
A76: 73 | B76: =IF(COUNTIF($K$4:N76,K76)=1,1,0) -> 1 | C76: =IF(B76=0,"",SUM($B$4:B76)) -> 73 | D76: =VLOOKUP($N$1&$S$1&A76,抽出!$B$4:$O$903,6,FALSE) -> 中体連地区 | G76: =VLOOKUP($N$1&$S$1&A76,抽出!$B$4:$O$903,7,FALSE) -> 北見 | I76: =VLOOKUP($N$1&$S$1&A76,抽出!$B$4:$O$903,8,FALSE) -> 2019-06-14 | K76: =VLOOKUP($N$1&$S$1&A76,抽出!$B$4:$O$903,9,FALSE) -> 岩原右京 | O76: =VLOOKUP($N$1&$S$1&A76,抽出!$B$4:$O$903,10,FALSE) -> 346 | R76: =VLOOKUP($N$1&$S$1&A76,抽出!$B$4:$O$903,11,FALSE) -> 予 | S76: =VLOOKUP($N$1&$S$1&A76,抽出!$B$4:$O$903,12,FALSE) -> 大空女満別中 | V76: =VLOOKUP($N$1&$S$1&A76,抽出!$B$4:$O$903,13,FALSE) -> 1 | W76: =VLOOKUP($N$1&$S$1&A76,抽出!$B$4:$O$903,14,FALSE) -> 1.7
A77: 74 | B77: =IF(COUNTIF($K$4:N77,K77)=1,1,0) -> 1 | C77: =IF(B77=0,"",SUM($B$4:B77)) -> 74 | D77: =VLOOKUP($N$1&$S$1&A77,抽出!$B$4:$O$903,6,FALSE) -> 通信陸上 | G77: =VLOOKUP($N$1&$S$1&A77,抽出!$B$4:$O$903,7,FALSE) -> 網走 | I77: =VLOOKUP($N$1&$S$1&A77,抽出!$B$4:$O$903,8,FALSE) -> 2019-06-28 | K77: =VLOOKUP($N$1&$S$1&A77,抽出!$B$4:$O$903,9,FALSE) -> 谷脇良明 | O77: =VLOOKUP($N$1&$S$1&A77,抽出!$B$4:$O$903,10,FALSE) -> 344 | R77: =VLOOKUP($N$1&$S$1&A77,抽出!$B$4:$O$903,11,FALSE) -> 予 | S77: =VLOOKUP($N$1&$S$1&A77,抽出!$B$4:$O$903,12,FALSE) -> 北見南中 | V77: =VLOOKUP($N$1&$S$1&A77,抽出!$B$4:$O$903,13,FALSE) -> 1 | W77: =VLOOKUP($N$1&$S$1&A77,抽出!$B$4:$O$903,14,FALSE) -> 1.8
A78: 75 | B78: =IF(COUNTIF($K$4:N78,K78)=1,1,0) -> 1 | C78: =IF(B78=0,"",SUM($B$4:B78)) -> 75 | D78: =VLOOKUP($N$1&$S$1&A78,抽出!$B$4:$O$903,6,FALSE) -> 通信陸上 | G78: =VLOOKUP($N$1&$S$1&A78,抽出!$B$4:$O$903,7,FALSE) -> 網走 | I78: =VLOOKUP($N$1&$S$1&A78,抽出!$B$4:$O$903,8,FALSE) -> 2019-06-28 | K78: =VLOOKUP($N$1&$S$1&A78,抽出!$B$4:$O$903,9,FALSE) -> 野口蒼太 | O78: =VLOOKUP($N$1&$S$1&A78,抽出!$B$4:$O$903,10,FALSE) -> 342 | R78: =VLOOKUP($N$1&$S$1&A78,抽出!$B$4:$O$903,11,FALSE) -> 予 | S78: =VLOOKUP($N$1&$S$1&A78,抽出!$B$4:$O$903,12,FALSE) -> 北見小泉中 | V78: =VLOOKUP($N$1&$S$1&A78,抽出!$B$4:$O$903,13,FALSE) -> 1 | W78: =VLOOKUP($N$1&$S$1&A78,抽出!$B$4:$O$903,14,FALSE) -> 2.2
A79: 76 | B79: =IF(COUNTIF($K$4:N79,K79)=1,1,0) -> 1 | C79: =IF(B79=0,"",SUM($B$4:B79)) -> 76 | D79: =VLOOKUP($N$1&$S$1&A79,抽出!$B$4:$O$903,6,FALSE) -> 中学新人 | G79: =VLOOKUP($N$1&$S$1&A79,抽出!$B$4:$O$903,7,FALSE) -> 網走 | I79: =VLOOKUP($N$1&$S$1&A79,抽出!$B$4:$O$903,8,FALSE) -> 2019-08-23 | K79: =VLOOKUP($N$1&$S$1&A79,抽出!$B$4:$O$903,9,FALSE) -> 近藤陸翼 | O79: =VLOOKUP($N$1&$S$1&A79,抽出!$B$4:$O$903,10,FALSE) -> 340 | R79: =VLOOKUP($N$1&$S$1&A79,抽出!$B$4:$O$903,11,FALSE) -> 決 | S79: =VLOOKUP($N$1&$S$1&A79,抽出!$B$4:$O$903,12,FALSE) -> 北見留辺蘂中 | V79: =VLOOKUP($N$1&$S$1&A79,抽出!$B$4:$O$903,13,FALSE) -> 1 | W79: =VLOOKUP($N$1&$S$1&A79,抽出!$B$4:$O$903,14,FALSE) -> 1.3
A80: 77 | B80: =IF(COUNTIF($K$4:N80,K80)=1,1,0) -> 1 | C80: =IF(B80=0,"",SUM($B$4:B80)) -> 77 | D80: =VLOOKUP($N$1&$S$1&A80,抽出!$B$4:$O$903,6,FALSE) -> 記録会第２戦 | G80: =VLOOKUP($N$1&$S$1&A80,抽出!$B$4:$O$903,7,FALSE) -> 網走 | I80: =VLOOKUP($N$1&$S$1&A80,抽出!$B$4:$O$903,8,FALSE) -> 2019-05-05 | K80: =VLOOKUP($N$1&$S$1&A80,抽出!$B$4:$O$903,9,FALSE) -> 黒田悠羽 | O80: =VLOOKUP($N$1&$S$1&A80,抽出!$B$4:$O$903,10,FALSE) -> 334 | R80: =VLOOKUP($N$1&$S$1&A80,抽出!$B$4:$O$903,11,FALSE) -> 決 | S80: =VLOOKUP($N$1&$S$1&A80,抽出!$B$4:$O$903,12,FALSE) -> 北見常呂中 | V80: =VLOOKUP($N$1&$S$1&A80,抽出!$B$4:$O$903,13,FALSE) -> 1 | W80: =VLOOKUP($N$1&$S$1&A80,抽出!$B$4:$O$903,14,FALSE) -> 1.9
A81: 78 | B81: =IF(COUNTIF($K$4:N81,K81)=1,1,0) -> 1 | C81: =IF(B81=0,"",SUM($B$4:B81)) -> 78 | D81: =VLOOKUP($N$1&$S$1&A81,抽出!$B$4:$O$903,6,FALSE) -> 中学新人 | G81: =VLOOKUP($N$1&$S$1&A81,抽出!$B$4:$O$903,7,FALSE) -> 網走 | I81: =VLOOKUP($N$1&$S$1&A81,抽出!$B$4:$O$903,8,FALSE) -> 2019-08-23 | K81: =VLOOKUP($N$1&$S$1&A81,抽出!$B$4:$O$903,9,FALSE) -> 田村響 | O81: =VLOOKUP($N$1&$S$1&A81,抽出!$B$4:$O$903,10,FALSE) -> 331 | R81: =VLOOKUP($N$1&$S$1&A81,抽出!$B$4:$O$903,11,FALSE) -> 決 | S81: =VLOOKUP($N$1&$S$1&A81,抽出!$B$4:$O$903,12,FALSE) -> 北見南中 | V81: =VLOOKUP($N$1&$S$1&A81,抽出!$B$4:$O$903,13,FALSE) -> 1 | W81: =VLOOKUP($N$1&$S$1&A81,抽出!$B$4:$O$903,14,FALSE) -> 0.6
A82: 79 | B82: =IF(COUNTIF($K$4:N82,K82)=1,1,0) -> 1 | C82: =IF(B82=0,"",SUM($B$4:B82)) -> 79 | D82: =VLOOKUP($N$1&$S$1&A82,抽出!$B$4:$O$903,6,FALSE) -> 通信陸上 | G82: =VLOOKUP($N$1&$S$1&A82,抽出!$B$4:$O$903,7,FALSE) -> 網走 | I82: =VLOOKUP($N$1&$S$1&A82,抽出!$B$4:$O$903,8,FALSE) -> 2019-06-28 | K82: =VLOOKUP($N$1&$S$1&A82,抽出!$B$4:$O$903,9,FALSE) -> 斉藤楓 | O82: =VLOOKUP($N$1&$S$1&A82,抽出!$B$4:$O$903,10,FALSE) -> 325 | R82: =VLOOKUP($N$1&$S$1&A82,抽出!$B$4:$O$903,11,FALSE) -> 予 | S82: =VLOOKUP($N$1&$S$1&A82,抽出!$B$4:$O$903,12,FALSE) -> 紋別中 | V82: =VLOOKUP($N$1&$S$1&A82,抽出!$B$4:$O$903,13,FALSE) -> 1 | W82: =VLOOKUP($N$1&$S$1&A82,抽出!$B$4:$O$903,14,FALSE) -> 1.1
A83: 80 | B83: =IF(COUNTIF($K$4:N83,K83)=1,1,0) -> 1 | C83: =IF(B83=0,"",SUM($B$4:B83)) -> 80 | D83: =VLOOKUP($N$1&$S$1&A83,抽出!$B$4:$O$903,6,FALSE) -> 記録会３戦 | G83: =VLOOKUP($N$1&$S$1&A83,抽出!$B$4:$O$903,7,FALSE) -> 網走 | I83: =VLOOKUP($N$1&$S$1&A83,抽出!$B$4:$O$903,8,FALSE) -> 2019-07-14 | K83: =VLOOKUP($N$1&$S$1&A83,抽出!$B$4:$O$903,9,FALSE) -> 小林蓮弥 | O83: =VLOOKUP($N$1&$S$1&A83,抽出!$B$4:$O$903,10,FALSE) -> 323 | R83: =VLOOKUP($N$1&$S$1&A83,抽出!$B$4:$O$903,11,FALSE) -> 決 | S83: =VLOOKUP($N$1&$S$1&A83,抽出!$B$4:$O$903,12,FALSE) -> 北見小泉中 | V83: =VLOOKUP($N$1&$S$1&A83,抽出!$B$4:$O$903,13,FALSE) -> 1 | W83: =VLOOKUP($N$1&$S$1&A83,抽出!$B$4:$O$903,14,FALSE) -> 0.5
A84: 81 | B84: =IF(COUNTIF($K$4:N84,K84)=1,1,0) -> 1 | C84: =IF(B84=0,"",SUM($B$4:B84)) -> 81 | D84: =VLOOKUP($N$1&$S$1&A84,抽出!$B$4:$O$903,6,FALSE) -> 秋季陸上 | G84: =VLOOKUP($N$1&$S$1&A84,抽出!$B$4:$O$903,7,FALSE) -> 網走 | I84: =VLOOKUP($N$1&$S$1&A84,抽出!$B$4:$O$903,8,FALSE) -> 2019-09-08 | K84: =VLOOKUP($N$1&$S$1&A84,抽出!$B$4:$O$903,9,FALSE) -> 阿部唯人 | O84: =VLOOKUP($N$1&$S$1&A84,抽出!$B$4:$O$903,10,FALSE) -> 303 | R84: =VLOOKUP($N$1&$S$1&A84,抽出!$B$4:$O$903,11,FALSE) -> 決 | S84: =VLOOKUP($N$1&$S$1&A84,抽出!$B$4:$O$903,12,FALSE) -> 大空東藻琴中 | V84: =VLOOKUP($N$1&$S$1&A84,抽出!$B$4:$O$903,13,FALSE) -> 1 | W84: =VLOOKUP($N$1&$S$1&A84,抽出!$B$4:$O$903,14,FALSE) -> -0.5
A85: 82 | B85: =IF(COUNTIF($K$4:N85,K85)=1,1,0) -> 1 | C85: =IF(B85=0,"",SUM($B$4:B85)) -> 82 | D85: =VLOOKUP($N$1&$S$1&A85,抽出!$B$4:$O$903,6,FALSE) ->  | G85: =VLOOKUP($N$1&$S$1&A85,抽出!$B$4:$O$903,7,FALSE) ->  | I85: =VLOOKUP($N$1&$S$1&A85,抽出!$B$4:$O$903,8,FALSE) ->  | K85: =VLOOKUP($N$1&$S$1&A85,抽出!$B$4:$O$903,9,FALSE) ->  | O85: =VLOOKUP($N$1&$S$1&A85,抽出!$B$4:$O$903,10,FALSE) ->  | R85: =VLOOKUP($N$1&$S$1&A85,抽出!$B$4:$O$903,11,FALSE) ->  | S85: =VLOOKUP($N$1&$S$1&A85,抽出!$B$4:$O$903,12,FALSE) ->  | V85: =VLOOKUP($N$1&$S$1&A85,抽出!$B$4:$O$903,13,FALSE) ->  | W85: =VLOOKUP($N$1&$S$1&A85,抽出!$B$4:$O$903,14,FALSE) -> 
A86: 83 | B86: =IF(COUNTIF($K$4:N86,K86)=1,1,0) -> 0 | C86: =IF(B86=0,"",SUM($B$4:B86)) ->  | D86: =VLOOKUP($N$1&$S$1&A86,抽出!$B$4:$O$903,6,FALSE) ->  | G86: =VLOOKUP($N$1&$S$1&A86,抽出!$B$4:$O$903,7,FALSE) ->  | I86: =VLOOKUP($N$1&$S$1&A86,抽出!$B$4:$O$903,8,FALSE) ->  | K86: =VLOOKUP($N$1&$S$1&A86,抽出!$B$4:$O$903,9,FALSE) ->  | O86: =VLOOKUP($N$1&$S$1&A86,抽出!$B$4:$O$903,10,FALSE) ->  | R86: =VLOOKUP($N$1&$S$1&A86,抽出!$B$4:$O$903,11,FALSE) ->  | S86: =VLOOKUP($N$1&$S$1&A86,抽出!$B$4:$O$903,12,FALSE) ->  | V86: =VLOOKUP($N$1&$S$1&A86,抽出!$B$4:$O$903,13,FALSE) ->  | W86: =VLOOKUP($N$1&$S$1&A86,抽出!$B$4:$O$903,14,FALSE) -> 
A87: 84 | B87: =IF(COUNTIF($K$4:N87,K87)=1,1,0) -> 0 | C87: =IF(B87=0,"",SUM($B$4:B87)) ->  | D87: =VLOOKUP($N$1&$S$1&A87,抽出!$B$4:$O$903,6,FALSE) ->  | G87: =VLOOKUP($N$1&$S$1&A87,抽出!$B$4:$O$903,7,FALSE) ->  | I87: =VLOOKUP($N$1&$S$1&A87,抽出!$B$4:$O$903,8,FALSE) ->  | K87: =VLOOKUP($N$1&$S$1&A87,抽出!$B$4:$O$903,9,FALSE) ->  | O87: =VLOOKUP($N$1&$S$1&A87,抽出!$B$4:$O$903,10,FALSE) ->  | R87: =VLOOKUP($N$1&$S$1&A87,抽出!$B$4:$O$903,11,FALSE) ->  | S87: =VLOOKUP($N$1&$S$1&A87,抽出!$B$4:$O$903,12,FALSE) ->  | V87: =VLOOKUP($N$1&$S$1&A87,抽出!$B$4:$O$903,13,FALSE) ->  | W87: =VLOOKUP($N$1&$S$1&A87,抽出!$B$4:$O$903,14,FALSE) -> 
A88: 85 | B88: =IF(COUNTIF($K$4:N88,K88)=1,1,0) -> 0 | C88: =IF(B88=0,"",SUM($B$4:B88)) ->  | D88: =VLOOKUP($N$1&$S$1&A88,抽出!$B$4:$O$903,6,FALSE) ->  | G88: =VLOOKUP($N$1&$S$1&A88,抽出!$B$4:$O$903,7,FALSE) ->  | I88: =VLOOKUP($N$1&$S$1&A88,抽出!$B$4:$O$903,8,FALSE) ->  | K88: =VLOOKUP($N$1&$S$1&A88,抽出!$B$4:$O$903,9,FALSE) ->  | O88: =VLOOKUP($N$1&$S$1&A88,抽出!$B$4:$O$903,10,FALSE) ->  | R88: =VLOOKUP($N$1&$S$1&A88,抽出!$B$4:$O$903,11,FALSE) ->  | S88: =VLOOKUP($N$1&$S$1&A88,抽出!$B$4:$O$903,12,FALSE) ->  | V88: =VLOOKUP($N$1&$S$1&A88,抽出!$B$4:$O$903,13,FALSE) ->  | W88: =VLOOKUP($N$1&$S$1&A88,抽出!$B$4:$O$903,14,FALSE) -> 
A89: 86 | B89: =IF(COUNTIF($K$4:N89,K89)=1,1,0) -> 0 | C89: =IF(B89=0,"",SUM($B$4:B89)) ->  | D89: =VLOOKUP($N$1&$S$1&A89,抽出!$B$4:$O$903,6,FALSE) ->  | G89: =VLOOKUP($N$1&$S$1&A89,抽出!$B$4:$O$903,7,FALSE) ->  | I89: =VLOOKUP($N$1&$S$1&A89,抽出!$B$4:$O$903,8,FALSE) ->  | K89: =VLOOKUP($N$1&$S$1&A89,抽出!$B$4:$O$903,9,FALSE) ->  | O89: =VLOOKUP($N$1&$S$1&A89,抽出!$B$4:$O$903,10,FALSE) ->  | R89: =VLOOKUP($N$1&$S$1&A89,抽出!$B$4:$O$903,11,FALSE) ->  | S89: =VLOOKUP($N$1&$S$1&A89,抽出!$B$4:$O$903,12,FALSE) ->  | V89: =VLOOKUP($N$1&$S$1&A89,抽出!$B$4:$O$903,13,FALSE) ->  | W89: =VLOOKUP($N$1&$S$1&A89,抽出!$B$4:$O$903,14,FALSE) -> 
A90: 87 | B90: =IF(COUNTIF($K$4:N90,K90)=1,1,0) -> 0 | C90: =IF(B90=0,"",SUM($B$4:B90)) ->  | D90: =VLOOKUP($N$1&$S$1&A90,抽出!$B$4:$O$903,6,FALSE) ->  | G90: =VLOOKUP($N$1&$S$1&A90,抽出!$B$4:$O$903,7,FALSE) ->  | I90: =VLOOKUP($N$1&$S$1&A90,抽出!$B$4:$O$903,8,FALSE) ->  | K90: =VLOOKUP($N$1&$S$1&A90,抽出!$B$4:$O$903,9,FALSE) ->  | O90: =VLOOKUP($N$1&$S$1&A90,抽出!$B$4:$O$903,10,FALSE) ->  | R90: =VLOOKUP($N$1&$S$1&A90,抽出!$B$4:$O$903,11,FALSE) ->  | S90: =VLOOKUP($N$1&$S$1&A90,抽出!$B$4:$O$903,12,FALSE) ->  | V90: =VLOOKUP($N$1&$S$1&A90,抽出!$B$4:$O$903,13,FALSE) ->  | W90: =VLOOKUP($N$1&$S$1&A90,抽出!$B$4:$O$903,14,FALSE) -> 
A91: 88 | B91: =IF(COUNTIF($K$4:N91,K91)=1,1,0) -> 0 | C91: =IF(B91=0,"",SUM($B$4:B91)) ->  | D91: =VLOOKUP($N$1&$S$1&A91,抽出!$B$4:$O$903,6,FALSE) ->  | G91: =VLOOKUP($N$1&$S$1&A91,抽出!$B$4:$O$903,7,FALSE) ->  | I91: =VLOOKUP($N$1&$S$1&A91,抽出!$B$4:$O$903,8,FALSE) ->  | K91: =VLOOKUP($N$1&$S$1&A91,抽出!$B$4:$O$903,9,FALSE) ->  | O91: =VLOOKUP($N$1&$S$1&A91,抽出!$B$4:$O$903,10,FALSE) ->  | R91: =VLOOKUP($N$1&$S$1&A91,抽出!$B$4:$O$903,11,FALSE) ->  | S91: =VLOOKUP($N$1&$S$1&A91,抽出!$B$4:$O$903,12,FALSE) ->  | V91: =VLOOKUP($N$1&$S$1&A91,抽出!$B$4:$O$903,13,FALSE) ->  | W91: =VLOOKUP($N$1&$S$1&A91,抽出!$B$4:$O$903,14,FALSE) -> 
A92: 89 | B92: =IF(COUNTIF($K$4:N92,K92)=1,1,0) -> 0 | C92: =IF(B92=0,"",SUM($B$4:B92)) ->  | D92: =VLOOKUP($N$1&$S$1&A92,抽出!$B$4:$O$903,6,FALSE) ->  | G92: =VLOOKUP($N$1&$S$1&A92,抽出!$B$4:$O$903,7,FALSE) ->  | I92: =VLOOKUP($N$1&$S$1&A92,抽出!$B$4:$O$903,8,FALSE) ->  | K92: =VLOOKUP($N$1&$S$1&A92,抽出!$B$4:$O$903,9,FALSE) ->  | O92: =VLOOKUP($N$1&$S$1&A92,抽出!$B$4:$O$903,10,FALSE) ->  | R92: =VLOOKUP($N$1&$S$1&A92,抽出!$B$4:$O$903,11,FALSE) ->  | S92: =VLOOKUP($N$1&$S$1&A92,抽出!$B$4:$O$903,12,FALSE) ->  | V92: =VLOOKUP($N$1&$S$1&A92,抽出!$B$4:$O$903,13,FALSE) ->  | W92: =VLOOKUP($N$1&$S$1&A92,抽出!$B$4:$O$903,14,FALSE) -> 
A93: 90 | B93: =IF(COUNTIF($K$4:N93,K93)=1,1,0) -> 0 | C93: =IF(B93=0,"",SUM($B$4:B93)) ->  | D93: =VLOOKUP($N$1&$S$1&A93,抽出!$B$4:$O$903,6,FALSE) ->  | G93: =VLOOKUP($N$1&$S$1&A93,抽出!$B$4:$O$903,7,FALSE) ->  | I93: =VLOOKUP($N$1&$S$1&A93,抽出!$B$4:$O$903,8,FALSE) ->  | K93: =VLOOKUP($N$1&$S$1&A93,抽出!$B$4:$O$903,9,FALSE) ->  | O93: =VLOOKUP($N$1&$S$1&A93,抽出!$B$4:$O$903,10,FALSE) ->  | R93: =VLOOKUP($N$1&$S$1&A93,抽出!$B$4:$O$903,11,FALSE) ->  | S93: =VLOOKUP($N$1&$S$1&A93,抽出!$B$4:$O$903,12,FALSE) ->  | V93: =VLOOKUP($N$1&$S$1&A93,抽出!$B$4:$O$903,13,FALSE) ->  | W93: =VLOOKUP($N$1&$S$1&A93,抽出!$B$4:$O$903,14,FALSE) -> 
A94: 91 | B94: =IF(COUNTIF($K$4:N94,K94)=1,1,0) -> 0 | C94: =IF(B94=0,"",SUM($B$4:B94)) ->  | D94: =VLOOKUP($N$1&$S$1&A94,抽出!$B$4:$O$903,6,FALSE) ->  | G94: =VLOOKUP($N$1&$S$1&A94,抽出!$B$4:$O$903,7,FALSE) ->  | I94: =VLOOKUP($N$1&$S$1&A94,抽出!$B$4:$O$903,8,FALSE) ->  | K94: =VLOOKUP($N$1&$S$1&A94,抽出!$B$4:$O$903,9,FALSE) ->  | O94: =VLOOKUP($N$1&$S$1&A94,抽出!$B$4:$O$903,10,FALSE) ->  | R94: =VLOOKUP($N$1&$S$1&A94,抽出!$B$4:$O$903,11,FALSE) ->  | S94: =VLOOKUP($N$1&$S$1&A94,抽出!$B$4:$O$903,12,FALSE) ->  | V94: =VLOOKUP($N$1&$S$1&A94,抽出!$B$4:$O$903,13,FALSE) ->  | W94: =VLOOKUP($N$1&$S$1&A94,抽出!$B$4:$O$903,14,FALSE) -> 
A95: 92 | B95: =IF(COUNTIF($K$4:N95,K95)=1,1,0) -> 0 | C95: =IF(B95=0,"",SUM($B$4:B95)) ->  | D95: =VLOOKUP($N$1&$S$1&A95,抽出!$B$4:$O$903,6,FALSE) ->  | G95: =VLOOKUP($N$1&$S$1&A95,抽出!$B$4:$O$903,7,FALSE) ->  | I95: =VLOOKUP($N$1&$S$1&A95,抽出!$B$4:$O$903,8,FALSE) ->  | K95: =VLOOKUP($N$1&$S$1&A95,抽出!$B$4:$O$903,9,FALSE) ->  | O95: =VLOOKUP($N$1&$S$1&A95,抽出!$B$4:$O$903,10,FALSE) ->  | R95: =VLOOKUP($N$1&$S$1&A95,抽出!$B$4:$O$903,11,FALSE) ->  | S95: =VLOOKUP($N$1&$S$1&A95,抽出!$B$4:$O$903,12,FALSE) ->  | V95: =VLOOKUP($N$1&$S$1&A95,抽出!$B$4:$O$903,13,FALSE) ->  | W95: =VLOOKUP($N$1&$S$1&A95,抽出!$B$4:$O$903,14,FALSE) -> 
A96: 93 | B96: =IF(COUNTIF($K$4:N96,K96)=1,1,0) -> 0 | C96: =IF(B96=0,"",SUM($B$4:B96)) ->  | D96: =VLOOKUP($N$1&$S$1&A96,抽出!$B$4:$O$903,6,FALSE) ->  | G96: =VLOOKUP($N$1&$S$1&A96,抽出!$B$4:$O$903,7,FALSE) ->  | I96: =VLOOKUP($N$1&$S$1&A96,抽出!$B$4:$O$903,8,FALSE) ->  | K96: =VLOOKUP($N$1&$S$1&A96,抽出!$B$4:$O$903,9,FALSE) ->  | O96: =VLOOKUP($N$1&$S$1&A96,抽出!$B$4:$O$903,10,FALSE) ->  | R96: =VLOOKUP($N$1&$S$1&A96,抽出!$B$4:$O$903,11,FALSE) ->  | S96: =VLOOKUP($N$1&$S$1&A96,抽出!$B$4:$O$903,12,FALSE) ->  | V96: =VLOOKUP($N$1&$S$1&A96,抽出!$B$4:$O$903,13,FALSE) ->  | W96: =VLOOKUP($N$1&$S$1&A96,抽出!$B$4:$O$903,14,FALSE) -> 
A97: 94 | B97: =IF(COUNTIF($K$4:N97,K97)=1,1,0) -> 0 | C97: =IF(B97=0,"",SUM($B$4:B97)) ->  | D97: =VLOOKUP($N$1&$S$1&A97,抽出!$B$4:$O$903,6,FALSE) ->  | G97: =VLOOKUP($N$1&$S$1&A97,抽出!$B$4:$O$903,7,FALSE) ->  | I97: =VLOOKUP($N$1&$S$1&A97,抽出!$B$4:$O$903,8,FALSE) ->  | K97: =VLOOKUP($N$1&$S$1&A97,抽出!$B$4:$O$903,9,FALSE) ->  | O97: =VLOOKUP($N$1&$S$1&A97,抽出!$B$4:$O$903,10,FALSE) ->  | R97: =VLOOKUP($N$1&$S$1&A97,抽出!$B$4:$O$903,11,FALSE) ->  | S97: =VLOOKUP($N$1&$S$1&A97,抽出!$B$4:$O$903,12,FALSE) ->  | V97: =VLOOKUP($N$1&$S$1&A97,抽出!$B$4:$O$903,13,FALSE) ->  | W97: =VLOOKUP($N$1&$S$1&A97,抽出!$B$4:$O$903,14,FALSE) -> 
A98: 95 | B98: =IF(COUNTIF($K$4:N98,K98)=1,1,0) -> 0 | C98: =IF(B98=0,"",SUM($B$4:B98)) ->  | D98: =VLOOKUP($N$1&$S$1&A98,抽出!$B$4:$O$903,6,FALSE) ->  | G98: =VLOOKUP($N$1&$S$1&A98,抽出!$B$4:$O$903,7,FALSE) ->  | I98: =VLOOKUP($N$1&$S$1&A98,抽出!$B$4:$O$903,8,FALSE) ->  | K98: =VLOOKUP($N$1&$S$1&A98,抽出!$B$4:$O$903,9,FALSE) ->  | O98: =VLOOKUP($N$1&$S$1&A98,抽出!$B$4:$O$903,10,FALSE) ->  | R98: =VLOOKUP($N$1&$S$1&A98,抽出!$B$4:$O$903,11,FALSE) ->  | S98: =VLOOKUP($N$1&$S$1&A98,抽出!$B$4:$O$903,12,FALSE) ->  | V98: =VLOOKUP($N$1&$S$1&A98,抽出!$B$4:$O$903,13,FALSE) ->  | W98: =VLOOKUP($N$1&$S$1&A98,抽出!$B$4:$O$903,14,FALSE) -> 
A99: 96 | B99: =IF(COUNTIF($K$4:N99,K99)=1,1,0) -> 0 | C99: =IF(B99=0,"",SUM($B$4:B99)) ->  | D99: =VLOOKUP($N$1&$S$1&A99,抽出!$B$4:$O$903,6,FALSE) ->  | G99: =VLOOKUP($N$1&$S$1&A99,抽出!$B$4:$O$903,7,FALSE) ->  | I99: =VLOOKUP($N$1&$S$1&A99,抽出!$B$4:$O$903,8,FALSE) ->  | K99: =VLOOKUP($N$1&$S$1&A99,抽出!$B$4:$O$903,9,FALSE) ->  | O99: =VLOOKUP($N$1&$S$1&A99,抽出!$B$4:$O$903,10,FALSE) ->  | R99: =VLOOKUP($N$1&$S$1&A99,抽出!$B$4:$O$903,11,FALSE) ->  | S99: =VLOOKUP($N$1&$S$1&A99,抽出!$B$4:$O$903,12,FALSE) ->  | V99: =VLOOKUP($N$1&$S$1&A99,抽出!$B$4:$O$903,13,FALSE) ->  | W99: =VLOOKUP($N$1&$S$1&A99,抽出!$B$4:$O$903,14,FALSE) -> 
A100: 97 | B100: =IF(COUNTIF($K$4:N100,K100)=1,1,0) -> 0 | C100: =IF(B100=0,"",SUM($B$4:B100)) ->  | D100: =VLOOKUP($N$1&$S$1&A100,抽出!$B$4:$O$903,6,FALSE) ->  | G100: =VLOOKUP($N$1&$S$1&A100,抽出!$B$4:$O$903,7,FALSE) ->  | I100: =VLOOKUP($N$1&$S$1&A100,抽出!$B$4:$O$903,8,FALSE) ->  | K100: =VLOOKUP($N$1&$S$1&A100,抽出!$B$4:$O$903,9,FALSE) ->  | O100: =VLOOKUP($N$1&$S$1&A100,抽出!$B$4:$O$903,10,FALSE) ->  | R100: =VLOOKUP($N$1&$S$1&A100,抽出!$B$4:$O$903,11,FALSE) ->  | S100: =VLOOKUP($N$1&$S$1&A100,抽出!$B$4:$O$903,12,FALSE) ->  | V100: =VLOOKUP($N$1&$S$1&A100,抽出!$B$4:$O$903,13,FALSE) ->  | W100: =VLOOKUP($N$1&$S$1&A100,抽出!$B$4:$O$903,14,FALSE) -> 
A101: 98 | B101: =IF(COUNTIF($K$4:N101,K101)=1,1,0) -> 0 | C101: =IF(B101=0,"",SUM($B$4:B101)) ->  | D101: =VLOOKUP($N$1&$S$1&A101,抽出!$B$4:$O$903,6,FALSE) ->  | G101: =VLOOKUP($N$1&$S$1&A101,抽出!$B$4:$O$903,7,FALSE) ->  | I101: =VLOOKUP($N$1&$S$1&A101,抽出!$B$4:$O$903,8,FALSE) ->  | K101: =VLOOKUP($N$1&$S$1&A101,抽出!$B$4:$O$903,9,FALSE) ->  | O101: =VLOOKUP($N$1&$S$1&A101,抽出!$B$4:$O$903,10,FALSE) ->  | R101: =VLOOKUP($N$1&$S$1&A101,抽出!$B$4:$O$903,11,FALSE) ->  | S101: =VLOOKUP($N$1&$S$1&A101,抽出!$B$4:$O$903,12,FALSE) ->  | V101: =VLOOKUP($N$1&$S$1&A101,抽出!$B$4:$O$903,13,FALSE) ->  | W101: =VLOOKUP($N$1&$S$1&A101,抽出!$B$4:$O$903,14,FALSE) -> 
A102: 99 | B102: =IF(COUNTIF($K$4:N102,K102)=1,1,0) -> 0 | C102: =IF(B102=0,"",SUM($B$4:B102)) ->  | D102: =VLOOKUP($N$1&$S$1&A102,抽出!$B$4:$O$903,6,FALSE) ->  | G102: =VLOOKUP($N$1&$S$1&A102,抽出!$B$4:$O$903,7,FALSE) ->  | I102: =VLOOKUP($N$1&$S$1&A102,抽出!$B$4:$O$903,8,FALSE) ->  | K102: =VLOOKUP($N$1&$S$1&A102,抽出!$B$4:$O$903,9,FALSE) ->  | O102: =VLOOKUP($N$1&$S$1&A102,抽出!$B$4:$O$903,10,FALSE) ->  | R102: =VLOOKUP($N$1&$S$1&A102,抽出!$B$4:$O$903,11,FALSE) ->  | S102: =VLOOKUP($N$1&$S$1&A102,抽出!$B$4:$O$903,12,FALSE) ->  | V102: =VLOOKUP($N$1&$S$1&A102,抽出!$B$4:$O$903,13,FALSE) ->  | W102: =VLOOKUP($N$1&$S$1&A102,抽出!$B$4:$O$903,14,FALSE) -> 
A103: 100 | B103: =IF(COUNTIF($K$4:N103,K103)=1,1,0) -> 0 | C103: =IF(B103=0,"",SUM($B$4:B103)) ->  | D103: =VLOOKUP($N$1&$S$1&A103,抽出!$B$4:$O$903,6,FALSE) ->  | G103: =VLOOKUP($N$1&$S$1&A103,抽出!$B$4:$O$903,7,FALSE) ->  | I103: =VLOOKUP($N$1&$S$1&A103,抽出!$B$4:$O$903,8,FALSE) ->  | K103: =VLOOKUP($N$1&$S$1&A103,抽出!$B$4:$O$903,9,FALSE) ->  | O103: =VLOOKUP($N$1&$S$1&A103,抽出!$B$4:$O$903,10,FALSE) ->  | R103: =VLOOKUP($N$1&$S$1&A103,抽出!$B$4:$O$903,11,FALSE) ->  | S103: =VLOOKUP($N$1&$S$1&A103,抽出!$B$4:$O$903,12,FALSE) ->  | V103: =VLOOKUP($N$1&$S$1&A103,抽出!$B$4:$O$903,13,FALSE) ->  | W103: =VLOOKUP($N$1&$S$1&A103,抽出!$B$4:$O$903,14,FALSE) -> 

Sheet 抽出 (hidden)
B2: 1 | C2: 2 | D2: 3 | E2: 4 | F2: 5 | G2: 6 | H2: 7 | I2: 8 | J2: 9 | K2: 10 | L2: 11 | M2: 12 | N2: 13 | O2: 14
B3: クラス＋種目名＋種目内順位 | D3: クラス＋種目名 | E3: 記録＋行番号 | F3: 種目内順位 | G3: 競技会名 | H3: 競技場 | I3: 実施日 | J3: 選手名 | K3: 記録 | L3: R | M3: 所属 | N3: 学年 | O3: 風
A4: 1 | B4: =D4&F4 -> 中学女子ｼﾞｬﾍﾞﾘｯｸｽﾛｰ14 | C4: =J4&COUNTIF($J$4:J4,J4) -> 伊藤椿1 | D4: =データ貼付!D2&データ貼付!E2 -> 中学女子ｼﾞｬﾍﾞﾘｯｸｽﾛｰ | E4: =データ貼付!G2+ROW()/1000000 -> 1619.000004 | F4: =SUMPRODUCT(($D$4:$D$903=D4)*($E$4:$E$903>E4))+1 -> 14 | G4: =データ貼付!A2 -> 選手権 | H4: =データ貼付!B2 -> 北見 | I4: =データ貼付!C2 -> 43596 | J4: =データ貼付!F2 -> 伊藤椿 | K4: =データ貼付!G2 -> 1619 | L4: =データ貼付!H2 -> 決 | M4: =データ貼付!I2 -> 湧別中 | N4: =データ貼付!J2 -> 2 | O4: =データ貼付!K2 -> 0
A5: 2 | B5: =D5&F5 -> 中学女子ｼﾞｬﾍﾞﾘｯｸｽﾛｰ16 | C5: =J5&COUNTIF($J$4:J5,J5) -> 伊藤優果1 | D5: =データ貼付!D3&データ貼付!E3 -> 中学女子ｼﾞｬﾍﾞﾘｯｸｽﾛｰ | E5: =データ貼付!G3+ROW()/1000000 -> 1235.000005 | F5: =SUMPRODUCT(($D$4:$D$903=D5)*($E$4:$E$903>E5))+1 -> 16 | G5: =データ貼付!A3 -> 記録会３戦 | H5: =データ貼付!B3 -> 網走 | I5: =データ貼付!C3 -> 43660 | J5: =データ貼付!F3 -> 伊藤優果 | K5: =データ貼付!G3 -> 1235 | L5: =データ貼付!H3 -> 決 | M5: =データ貼付!I3 -> 北見北光中 | N5: =データ貼付!J3 -> 1 | O5: =データ貼付!K3 -> 0
A6: 3 | B6: 中学女子ｼﾞｬﾍﾞﾘｯｸｽﾛｰ2 | C6: =J6&COUNTIF($J$4:J6,J6) -> 伊藤凛音1 | D6: =データ貼付!D4&データ貼付!E4 -> 中学女子ｼﾞｬﾍﾞﾘｯｸｽﾛｰ | E6: =データ貼付!G4+ROW()/1000000 -> 2597.000006 | F6: 2 | G6: =データ貼付!A4 -> 秋季陸上 | H6: =データ貼付!B4 -> 網走 | I6: =データ貼付!C4 -> 43715 | J6: =データ貼付!F4 -> 伊藤凛音 | K6: =データ貼付!G4 -> 2597 | L6: =データ貼付!H4 -> 決 | M6: =データ貼付!I4 -> 北見南中 | N6: =データ貼付!J4 -> 1 | O6: =データ貼付!K4 -> 0
A7: 4 | B7: 中学男子ｼﾞｬﾍﾞﾘｯｸｽﾛｰ14 | C7: =J7&COUNTIF($J$4:J7,J7) -> 稲垣璃久1 | D7: =データ貼付!D5&データ貼付!E5 -> 中学男子ｼﾞｬﾍﾞﾘｯｸｽﾛｰ | E7: =データ貼付!G5+ROW()/1000000 -> 3074.000007 | F7: 14 | G7: =データ貼付!A5 -> 記録会４戦 | H7: =データ貼付!B5 -> 北見 | I7: =データ貼付!C5 -> 43681 | J7: =データ貼付!F5 -> 稲垣璃久 | K7: =データ貼付!G5 -> 3074 | L7: =データ貼付!H5 -> 決 | M7: =データ貼付!I5 -> 北見北中 | N7: =データ貼付!J5 -> 2 | O7: =データ貼付!K5 -> 0
A8: 5 | B8: 中学男子ｼﾞｬﾍﾞﾘｯｸｽﾛｰ3 | C8: =J8&COUNTIF($J$4:J8,J8) -> 遠藤寿1 | D8: =データ貼付!D6&データ貼付!E6 -> 中学男子ｼﾞｬﾍﾞﾘｯｸｽﾛｰ | E8: =データ貼付!G6+ROW()/1000000 -> 4050.000008 | F8: 3 | G8: =データ貼付!A6 -> フィールド記録会 | H8: =データ貼付!B6 -> 網走 | I8: =データ貼付!C6 -> 43624 | J8: =データ貼付!F6 -> 遠藤寿 | K8: =データ貼付!G6 -> 4050 | L8: =データ貼付!H6 -> 決 | M8: =データ貼付!I6 -> 網走第二中 | N8: =データ貼付!J6 -> 3 | O8: =データ貼付!K6 -> 0
A9: 6 | B9: 中学男子ｼﾞｬﾍﾞﾘｯｸｽﾛｰ13 | C9: =J9&COUNTIF($J$4:J9,J9) -> 遠藤潤人1 | D9: =データ貼付!D7&データ貼付!E7 -> 中学男子ｼﾞｬﾍﾞﾘｯｸｽﾛｰ | E9: =データ貼付!G7+ROW()/1000000 -> 3098.000009 | F9: 13 | G9: =データ貼付!A7 -> 中学新人 | H9: =データ貼付!B7 -> 網走 | I9: =データ貼付!C7 -> 43700 | J9: =データ貼付!F7 -> 遠藤潤人 | K9: =データ貼付!G7 -> 3098 | L9: =データ貼付!H7 -> 決 | M9: =データ貼付!I7 -> 北見北光中 | N9: =データ貼付!J7 -> 2 | O9: =データ貼付!K7 -> 0
A10: 7 | B10: 中学女子ｼﾞｬﾍﾞﾘｯｸｽﾛｰ10 | C10: =J10&COUNTIF($J$4:J10,J10) -> 横山藍梨1 | D10: =データ貼付!D8&データ貼付!E8 -> 中学女子ｼﾞｬﾍﾞﾘｯｸｽﾛｰ | E10: =データ貼付!G8+ROW()/1000000 -> 1813.00001 | F10: 10 | G10: =データ貼付!A8 -> 記録会３戦 | H10: =データ貼付!B8 -> 網走 | I10: =データ貼付!C8 -> 43660 | J10: =データ貼付!F8 -> 横山藍梨 | K10: =データ貼付!G8 -> 1813 | L10: =データ貼付!H8 -> 決 | M10: =データ貼付!I8 -> 北見北光中 | N10: =データ貼付!J8 -> 1 | O10: =データ貼付!K8 -> 0
A11: 8 | B11: 中学男子ｼﾞｬﾍﾞﾘｯｸｽﾛｰ29 | C11: =J11&COUNTIF($J$4:J11,J11) -> 関澤陸1 | D11: =データ貼付!D9&データ貼付!E9 -> 中学男子ｼﾞｬﾍﾞﾘｯｸｽﾛｰ | E11: =データ貼付!G9+ROW()/1000000 -> 2361.000011 | F11: 29 | G11: =データ貼付!A9 -> 通信陸上 | H11: =データ貼付!B9 -> 網走 | I11: =データ貼付!C9 -> 43644 | J11: =データ貼付!F9 -> 関澤陸 | K11: =データ貼付!G9 -> 2361 | L11: =データ貼付!H9 -> 決 | M11: =データ貼付!I9 -> 北見光西中 | N11: =データ貼付!J9 -> 3 | O11: =データ貼付!K9 -> 0
A12: 9 | B12: 中学女子ｼﾞｬﾍﾞﾘｯｸｽﾛｰ3 | C12: =J12&COUNTIF($J$4:J12,J12) -> 岩越茜莉1 | D12: =データ貼付!D10&データ貼付!E10 -> 中学女子ｼﾞｬﾍﾞﾘｯｸｽﾛｰ | E12: =データ貼付!G10+ROW()/1000000 -> 2559.000012 | F12: 3 | G12: =データ貼付!A10 -> フィールド記録会 | H12: =データ貼付!B10 -> 網走 | I12: =データ貼付!C10 -> 43624 | J12: =データ貼付!F10 -> 岩越茜莉 | K12: =データ貼付!G10 -> 2559 | L12: =データ貼付!H10 -> 決 | M12: =データ貼付!I10 -> 雄武中 | N12: =データ貼付!J10 -> 3 | O12: =データ貼付!K10 -> 0
A13: 10 | B13: 中学女子ｼﾞｬﾍﾞﾘｯｸｽﾛｰ4 | C13: =J13&COUNTIF($J$4:J13,J13) -> 菊池優璃1 | D13: =データ貼付!D11&データ貼付!E11 -> 中学女子ｼﾞｬﾍﾞﾘｯｸｽﾛｰ | E13: =データ貼付!G11+ROW()/1000000 -> 2404.000013 | F13: 4 | G13: =データ貼付!A11 -> フィールド記録会 | H13: =データ貼付!B11 -> 網走 | I13: =データ貼付!C11 -> 43624 | J13: =データ貼付!F11 -> 菊池優璃 | K13: =データ貼付!G11 -> 2404 | L13: =データ貼付!H11 -> 決 | M13: =データ貼付!I11 -> 網走第四中 | N13: =データ貼付!J11 -> 2 | O13: =データ貼付!K11 -> 0
A14: 11 | B14: 中学女子ｼﾞｬﾍﾞﾘｯｸｽﾛｰ6 | C14: =J14&COUNTIF($J$4:J14,J14) -> 吉鷹陽菜1 | D14: =データ貼付!D12&データ貼付!E12 -> 中学女子ｼﾞｬﾍﾞﾘｯｸｽﾛｰ | E14: =データ貼付!G12+ROW()/1000000 -> 2337.000014 | F14: 6 | G14: =データ貼付!A12 -> 秋季陸上 | H14: =データ貼付!B12 -> 網走 | I14: =データ貼付!C12 -> 43715 | J14: =データ貼付!F12 -> 吉鷹陽菜 | K14: =データ貼付!G12 -> 2337 | L14: =データ貼付!H12 -> 決 | M14: =データ貼付!I12 -> 北見光西中 | N14: =データ貼付!J12 -> 2 | O14: =データ貼付!K12 -> 0
A15: 12 | B15: 中学男子ｼﾞｬﾍﾞﾘｯｸｽﾛｰ25 | C15: =J15&COUNTIF($J$4:J15,J15) -> 栗原明慎1 | D15: =データ貼付!D13&データ貼付!E13 -> 中学男子ｼﾞｬﾍﾞﾘｯｸｽﾛｰ | E15: =データ貼付!G13+ROW()/1000000 -> 2580.000015 | F15: 25 | G15: =データ貼付!A13 -> 通信陸上 | H15: =データ貼付!B13 -> 網走 | I15: =データ貼付!C13 -> 43644 | J15: =データ貼付!F13 -> 栗原明慎 | K15: =データ貼付!G13 -> 2580 | L15: =データ貼付!H13 -> 決 | M15: =データ貼付!I13 -> 北見北光中 | N15: =データ貼付!J13 -> 1 | O15: =データ貼付!K13 -> 0
A16: 13 | B16: 中学女子ｼﾞｬﾍﾞﾘｯｸｽﾛｰ1 | C16: =J16&COUNTIF($J$4:J16,J16) -> 穴澤日菜1 | D16: =データ貼付!D14&データ貼付!E14 -> 中学女子ｼﾞｬﾍﾞﾘｯｸｽﾛｰ | E16: =データ貼付!G14+ROW()/1000000 -> 2769.000016 | F16: 1 | G16: =データ貼付!A14 -> 秋季陸上 | H16: =データ貼付!B14 -> 網走 | I16: =データ貼付!C14 -> 43715 | J16: =データ貼付!F14 -> 穴澤日菜 | K16: =データ貼付!G14 -> 2769 | L16: =データ貼付!H14 -> 決 | M16: =データ貼付!I14 -> 北見南中 | N16: =データ貼付!J14 -> 1 | O16: =データ貼付!K14 -> 0
A17: 14 | B17: 中学男子ｼﾞｬﾍﾞﾘｯｸｽﾛｰ19 | C17: =J17&COUNTIF($J$4:J17,J17) -> 工藤之雅1 | D17: =データ貼付!D15&データ貼付!E15 -> 中学男子ｼﾞｬﾍﾞﾘｯｸｽﾛｰ | E17: =データ貼付!G15+ROW()/1000000 -> 2904.000017 | F17: 19 | G17: =データ貼付!A15 -> 通信陸上 | H17: =データ貼付!B15 -> 網走 | I17: =データ貼付!C15 -> 43644 | J17: =データ貼付!F15 -> 工藤之雅 | K17: =データ貼付!G15 -> 2904 | L17: =データ貼付!H15 -> 決 | M17: =データ貼付!I15 -> 北見北中 | N17: =データ貼付!J15 -> 2 | O17: =データ貼付!K15 -> 0
A18: 15 | B18: 中学男子ｼﾞｬﾍﾞﾘｯｸｽﾛｰ15 | C18: =J18&COUNTIF($J$4:J18,J18) -> 黒田悠羽1 | D18: =データ貼付!D16&データ貼付!E16 -> 中学男子ｼﾞｬﾍﾞﾘｯｸｽﾛｰ | E18: =データ貼付!G16+ROW()/1000000 -> 2974.000018 | F18: 15 | G18: =データ貼付!A16 -> 記録会４戦 | H18: =データ貼付!B16 -> 北見 | I18: =データ貼付!C16 -> 43681 | J18: =データ貼付!F16 -> 黒田悠羽 | K18: =データ貼付!G16 -> 2974 | L18: =データ貼付!H16 -> 決 | M18: =データ貼付!I16 -> 北見常呂中 | N18: =データ貼付!J16 -> 1 | O18: =データ貼付!K16 -> 0
A19: 16 | B19: 中学男子ｼﾞｬﾍﾞﾘｯｸｽﾛｰ32 | C19: =J19&COUNTIF($J$4:J19,J19) -> 佐藤広大1 | D19: =データ貼付!D17&データ貼付!E17 -> 中学男子ｼﾞｬﾍﾞﾘｯｸｽﾛｰ | E19: =データ貼付!G17+ROW()/1000000 -> 2183.000019 | F19: 32 | G19: =データ貼付!A17 -> 秋季陸上 | H19: =データ貼付!B17 -> 網走 | I19: =データ貼付!C17 -> 43715 | J19: =データ貼付!F17 -> 佐藤広大 | K19: =データ貼付!G17 -> 2183 | L19: =データ貼付!H17 -> 決 | M19: =データ貼付!I17 -> 遠軽中 | N19: =データ貼付!J17 -> 2 | O19: =データ貼付!K17 -> 0
A20: 17 | B20: 中学男子ｼﾞｬﾍﾞﾘｯｸｽﾛｰ28 | C20: =J20&COUNTIF($J$4:J20,J20) -> 佐藤大悟1 | D20: =データ貼付!D18&データ貼付!E18 -> 中学男子ｼﾞｬﾍﾞﾘｯｸｽﾛｰ | E20: =データ貼付!G18+ROW()/1000000 -> 2402.00002 | F20: 28 | G20: =データ貼付!A18 -> 通信陸上 | H20: =データ貼付!B18 -> 網走 | I20: =データ貼付!C18 -> 43644 | J20: =データ貼付!F18 -> 佐藤大悟 | K20: =データ貼付!G18 -> 2402 | L20: =データ貼付!H18 -> 決 | M20: =データ貼付!I18 -> 北見光西中 | N20: =データ貼付!J18 -> 1 | O20: =データ貼付!K18 -> 0
A21: 18 | B21: 中学男子ｼﾞｬﾍﾞﾘｯｸｽﾛｰ48 | C21: =J21&COUNTIF($J$4:J21,J21) -> 三原立暉1 | D21: =データ貼付!D19&データ貼付!E19 -> 中学男子ｼﾞｬﾍﾞﾘｯｸｽﾛｰ | E21: =データ貼付!G19+ROW()/1000000 -> 937.000021 | F21: 48 | G21: =データ貼付!A19 -> 通信陸上 | H21: =データ貼付!B19 -> 網走 | I21: =データ貼付!C19 -> 43644 | J21: =データ貼付!F19 -> 三原立暉 | K21: =データ貼付!G19 -> 937 | L21: =データ貼付!H19 -> 決 | M21: =データ貼付!I19 -> 網走第一中 | N21: =データ貼付!J19 -> 1 | O21: =データ貼付!K19 -> 0
A22: 19 | B22: 中学女子ｼﾞｬﾍﾞﾘｯｸｽﾛｰ5 | C22: =J22&COUNTIF($J$4:J22,J22) -> 三塚ありさ1 | D22: =データ貼付!D20&データ貼付!E20 -> 中学女子ｼﾞｬﾍﾞﾘｯｸｽﾛｰ | E22: =データ貼付!G20+ROW()/1000000 -> 2392.000022 | F22: 5 | G22: =データ貼付!A20 -> 秋季陸上 | H22: =データ貼付!B20 -> 網走 | I22: =データ貼付!C20 -> 43715 | J22: =データ貼付!F20 -> 三塚ありさ | K22: =データ貼付!G20 -> 2392 | L22: =データ貼付!H20 -> 決 | M22: =データ貼付!I20 -> 網走第四中 | N22: =データ貼付!J20 -> 1 | O22: =データ貼付!K20 -> 0
A23: 20 | B23: 中学男子ｼﾞｬﾍﾞﾘｯｸｽﾛｰ7 | C23: =J23&COUNTIF($J$4:J23,J23) -> 三塚知輝1 | D23: =データ貼付!D21&データ貼付!E21 -> 中学男子ｼﾞｬﾍﾞﾘｯｸｽﾛｰ | E23: =データ貼付!G21+ROW()/1000000 -> 3648.000023 | F23: 7 | G23: =データ貼付!A21 -> 選手権 | H23: =データ貼付!B21 -> 北見 | I23: =データ貼付!C21 -> 43596 | J23: =データ貼付!F21 -> 三塚知輝 | K23: =データ貼付!G21 -> 3648 | L23: =データ貼付!H21 -> 決 | M23: =データ貼付!I21 -> 網走第四中 | N23: =データ貼付!J21 -> 3 | O23: =データ貼付!K21 -> 0
A24: 21 | B24: 中学女子ｼﾞｬﾍﾞﾘｯｸｽﾛｰ18 | C24: =J24&COUNTIF($J$4:J24,J24) -> 山村奈々1 | D24: =データ貼付!D22&データ貼付!E22 -> 中学女子ｼﾞｬﾍﾞﾘｯｸｽﾛｰ | E24: =データ貼付!G22+ROW()/1000000 -> 1058.000024 | F24: 18 | G24: =データ貼付!A22 -> 中学新人 | H24: =データ貼付!B22 -> 網走 | I24: =データ貼付!C22 -> 43700 | J24: =データ貼付!F22 -> 山村奈々 | K24: =データ貼付!G22 -> 1058 | L24: =データ貼付!H22 -> 決 | M24: =データ貼付!I22 -> 北見北光中 | N24: =データ貼付!J22 -> 1 | O24: =データ貼付!K22 -> 0
A25: 22 | B25: 中学男子ｼﾞｬﾍﾞﾘｯｸｽﾛｰ6 | C25: =J25&COUNTIF($J$4:J25,J25) -> 山本遥1 | D25: =データ貼付!D23&データ貼付!E23 -> 中学男子ｼﾞｬﾍﾞﾘｯｸｽﾛｰ | E25: =データ貼付!G23+ROW()/1000000 -> 3675.000025 | F25: 6 | G25: =データ貼付!A23 -> 通信陸上 | H25: =データ貼付!B23 -> 網走 | I25: =データ貼付!C23 -> 43644 | J25: =データ貼付!F23 -> 山本遥 | K25: =データ貼付!G23 -> 3675 | L25: =データ貼付!H23 -> 決 | M25: =データ貼付!I23 -> 北見南中 | N25: =データ貼付!J23 -> 2 | O25: =データ貼付!K23 -> 0
A26: 23 | B26: 中学男子ｼﾞｬﾍﾞﾘｯｸｽﾛｰ43 | C26: =J26&COUNTIF($J$4:J26,J26) -> 山﨑大翔1 | D26: =データ貼付!D24&データ貼付!E24 -> 中学男子ｼﾞｬﾍﾞﾘｯｸｽﾛｰ | E26: =データ貼付!G24+ROW()/1000000 -> 1740.000026 | F26: 43 | G26: =データ貼付!A24 -> 記録会４戦 | H26: =データ貼付!B24 -> 北見 | I26: =データ貼付!C24 -> 43681 | J26: =データ貼付!F24 -> 山﨑大翔 | K26: =データ貼付!G24 -> 1740 | L26: =データ貼付!H24 -> 決 | M26: =データ貼付!I24 -> 北見北光中 | N26: =データ貼付!J24 -> 1 | O26: =データ貼付!K24 -> 0
A27: 24 | B27: 中学男子ｼﾞｬﾍﾞﾘｯｸｽﾛｰ42 | C27: =J27&COUNTIF($J$4:J27,J27) -> 山﨑歩来夢1 | D27: =データ貼付!D25&データ貼付!E25 -> 中学男子ｼﾞｬﾍﾞﾘｯｸｽﾛｰ | E27: =データ貼付!G25+ROW()/1000000 -> 1760.000027 | F27: 42 | G27: =データ貼付!A25 -> 選手権 | H27: =データ貼付!B25 -> 北見 | I27: =データ貼付!C25 -> 43596 | J27: =データ貼付!F25 -> 山﨑歩来夢 | K27: =データ貼付!G25 -> 1760 | L27: =データ貼付!H25 -> 決 | M27: =データ貼付!I25 -> 雄武中 | N27: =データ貼付!J25 -> 2 | O27: =データ貼付!K25 -> 0
A28: 25 | B28: 中学男子ｼﾞｬﾍﾞﾘｯｸｽﾛｰ2 | C28: =J28&COUNTIF($J$4:J28,J28) -> 四ツ倉快1 | D28: =データ貼付!D26&データ貼付!E26 -> 中学男子ｼﾞｬﾍﾞﾘｯｸｽﾛｰ | E28: =データ貼付!G26+ROW()/1000000 -> 4235.000028 | F28: 2 | G28: =データ貼付!A26 -> 通信陸上 | H28: =データ貼付!B26 -> 網走 | I28: =データ貼付!C26 -> 43644 | J28: =データ貼付!F26 -> 四ツ倉快 | K28: =データ貼付!G26 -> 4235 | L28: =データ貼付!H26 -> 決 | M28: =データ貼付!I26 -> 網走第四中 | N28: =データ貼付!J26 -> 3 | O28: =データ貼付!K26 -> 0
A29: 26 | B29: 中学男子ｼﾞｬﾍﾞﾘｯｸｽﾛｰ9 | C29: =J29&COUNTIF($J$4:J29,J29) -> 酒井柊優1 | D29: =データ貼付!D27&データ貼付!E27 -> 中学男子ｼﾞｬﾍﾞﾘｯｸｽﾛｰ | E29: =データ貼付!G27+ROW()/1000000 -> 3354.000029 | F29: 9 | G29: =データ貼付!A27 -> フィールド記録会 | H29: =データ貼付!B27 -> 網走 | I29: =データ貼付!C27 -> 43624 | J29: =データ貼付!F27 -> 酒井柊優 | K29: =データ貼付!G27 -> 3354 | L29: =データ貼付!H27 -> 決 | M29: =データ貼付!I27 -> 北見東陵中 | N29: =データ貼付!J27 -> 1 | O29: =データ貼付!K27 -> 0
A30: 27 | B30: 中学男子ｼﾞｬﾍﾞﾘｯｸｽﾛｰ4 | C30: =J30&COUNTIF($J$4:J30,J30) -> 出倉蓮音1 | D30: =データ貼付!D28&データ貼付!E28 -> 中学男子ｼﾞｬﾍﾞﾘｯｸｽﾛｰ | E30: =データ貼付!G28+ROW()/1000000 -> 3745.00003 | F30: 4 | G30: =データ貼付!A28 -> 秋季陸上 | H30: =データ貼付!B28 -> 網走 | I30: =データ貼付!C28 -> 43715 | J30: =データ貼付!F28 -> 出倉蓮音 | K30: =データ貼付!G28 -> 3745 | L30: =データ貼付!H28 -> 決 | M30: =データ貼付!I28 -> 湧別中 | N30: =データ貼付!J28 -> 2 | O30: =データ貼付!K28 -> 0
A31: 28 | B31: 中学男子ｼﾞｬﾍﾞﾘｯｸｽﾛｰ36 | C31: =J31&COUNTIF($J$4:J31,J31) -> 楯身優1 | D31: =データ貼付!D29&データ貼付!E29 -> 中学男子ｼﾞｬﾍﾞﾘｯｸｽﾛｰ | E31: =データ貼付!G29+ROW()/1000000 -> 2043.000031 | F31: 36 | G31: =データ貼付!A29 -> 選手権 | H31: =データ貼付!B29 -> 北見 | I31: =データ貼付!C29 -> 43596 | J31: =データ貼付!F29 -> 楯身優 | K31: =データ貼付!G29 -> 2043 | L31: =データ貼付!H29 -> 決 | M31: =データ貼付!I29 -> 北見北中 | N31: =データ貼付!J29 -> 2 | O31: =データ貼付!K29 -> 0
A32: 29 | B32: 中学男子ｼﾞｬﾍﾞﾘｯｸｽﾛｰ1 | C32: =J32&COUNTIF($J$4:J32,J32) -> 小原拓真1 | D32: =データ貼付!D30&データ貼付!E30 -> 中学男子ｼﾞｬﾍﾞﾘｯｸｽﾛｰ | E32: =データ貼付!G30+ROW()/1000000 -> 5018.000032 | F32: 1 | G32: =データ貼付!A30 -> 秋季陸上 | H32: =データ貼付!B30 -> 網走 | I32: =データ貼付!C30 -> 43715 | J32: =データ貼付!F30 -> 小原拓真 | K32: =データ貼付!G30 -> 5018 | L32: =データ貼付!H30 -> 決 | M32: =データ貼付!I30 -> 北見常呂中 | N32: =データ貼付!J30 -> 2 | O32: =データ貼付!K30 -> 0
A33: 30 | B33: 中学女子ｼﾞｬﾍﾞﾘｯｸｽﾛｰ12 | C33: =J33&COUNTIF($J$4:J33,J33) -> 小川璃子1 | D33: =データ貼付!D31&データ貼付!E31 -> 中学女子ｼﾞｬﾍﾞﾘｯｸｽﾛｰ | E33: =データ貼付!G31+ROW()/1000000 -> 1686.000033 | F33: 12 | G33: =データ貼付!A31 -> 通信陸上 | H33: =データ貼付!B31 -> 網走 | I33: =データ貼付!C31 -> 43645 | J33: =データ貼付!F31 -> 小川璃子 | K33: =データ貼付!G31 -> 1686 | L33: =データ貼付!H31 -> 決 | M33: =データ貼付!I31 -> 網走第三中 | N33: =データ貼付!J31 -> 3 | O33: =データ貼付!K31 -> 0
A34: 31 | B34: 中学男子ｼﾞｬﾍﾞﾘｯｸｽﾛｰ45 | C34: =J34&COUNTIF($J$4:J34,J34) -> 小林樹生1 | D34: =データ貼付!D32&データ貼付!E32 -> 中学男子ｼﾞｬﾍﾞﾘｯｸｽﾛｰ | E34: =データ貼付!G32+ROW()/1000000 -> 1694.000034 | F34: 45 | G34: =データ貼付!A32 -> 中学新人 | H34: =データ貼付!B32 -> 網走 | I34: =データ貼付!C32 -> 43700 | J34: =データ貼付!F32 -> 小林樹生 | K34: =データ貼付!G32 -> 1694 | L34: =データ貼付!H32 -> 決 | M34: =データ貼付!I32 -> 雄武中 | N34: =データ貼付!J32 -> 1 | O34: =データ貼付!K32 -> 0
A35: 32 | B35: 中学男子ｼﾞｬﾍﾞﾘｯｸｽﾛｰ44 | C35: =J35&COUNTIF($J$4:J35,J35) -> 松田陽向太1 | D35: =データ貼付!D33&データ貼付!E33 -> 中学男子ｼﾞｬﾍﾞﾘｯｸｽﾛｰ | E35: =データ貼付!G33+ROW()/1000000 -> 1709.000035 | F35: 44 | G35: =データ貼付!A33 -> 通信陸上 | H35: =データ貼付!B33 -> 網走 | I35: =データ貼付!C33 -> 43644 | J35: =データ貼付!F33 -> 松田陽向太 | K35: =データ貼付!G33 -> 1709 | L35: =データ貼付!H33 -> 決 | M35: =データ貼付!I33 -> 北見東陵中 | N35: =データ貼付!J33 -> 1 | O35: =データ貼付!K33 -> 0
A36: 33 | B36: 中学男子ｼﾞｬﾍﾞﾘｯｸｽﾛｰ40 | C36: =J36&COUNTIF($J$4:J36,J36) -> 須田琉生1 | D36: =データ貼付!D34&データ貼付!E34 -> 中学男子ｼﾞｬﾍﾞﾘｯｸｽﾛｰ | E36: =データ貼付!G34+ROW()/1000000 -> 1865.000036 | F36: 40 | G36: =データ貼付!A34 -> 中学新人 | H36: =データ貼付!B34 -> 網走 | I36: =データ貼付!C34 -> 43700 | J36: =データ貼付!F34 -> 須田琉生 | K36: =データ貼付!G34 -> 1865 | L36: =データ貼付!H34 -> 決 | M36: =データ貼付!I34 -> 網走第一中 | N36: =データ貼付!J34 -> 1 | O36: =データ貼付!K34 -> 0
A37: 34 | B37: 中学男子ｼﾞｬﾍﾞﾘｯｸｽﾛｰ17 | C37: =J37&COUNTIF($J$4:J37,J37) -> 須藤晴人1 | D37: =データ貼付!D35&データ貼付!E35 -> 中学男子ｼﾞｬﾍﾞﾘｯｸｽﾛｰ | E37: =データ貼付!G35+ROW()/1000000 -> 2954.000037 | F37: 17 | G37: =データ貼付!A35 -> 選手権 | H37: =データ貼付!B35 -> 北見 | I37: =データ貼付!C35 -> 43596 | J37: =データ貼付!F35 -> 須藤晴人 | K37: =データ貼付!G35 -> 2954 | L37: =データ貼付!H35 -> 決 | M37: =データ貼付!I35 -> 北見北中 | N37: =データ貼付!J35 -> 2 | O37: =データ貼付!K35 -> 0
A38: 35 | B38: 中学男子ｼﾞｬﾍﾞﾘｯｸｽﾛｰ37 | C38: =J38&COUNTIF($J$4:J38,J38) -> 正壽晃希1 | D38: =データ貼付!D36&データ貼付!E36 -> 中学男子ｼﾞｬﾍﾞﾘｯｸｽﾛｰ | E38: =データ貼付!G36+ROW()/1000000 -> 2034.000038 | F38: 37 | G38: =データ貼付!A36 -> 記録会４戦 | H38: =データ貼付!B36 -> 北見 | I38: =データ貼付!C36 -> 43681 | J38: =データ貼付!F36 -> 正壽晃希 | K38: =データ貼付!G36 -> 2034 | L38: =データ貼付!H36 -> 決 | M38: =データ貼付!I36 -> 北見北光中 | N38: =データ貼付!J36 -> 1 | O38: =データ貼付!K36 -> 0
A39: 36 | B39: 中学男子ｼﾞｬﾍﾞﾘｯｸｽﾛｰ24 | C39: =J39&COUNTIF($J$4:J39,J39) -> 石橋誠司1 | D39: =データ貼付!D37&データ貼付!E37 -> 中学男子ｼﾞｬﾍﾞﾘｯｸｽﾛｰ | E39: =データ貼付!G37+ROW()/1000000 -> 2669.000039 | F39: 24 | G39: =データ貼付!A37 -> 中学新人 | H39: =データ貼付!B37 -> 網走 | I39: =データ貼付!C37 -> 43700 | J39: =データ貼付!F37 -> 石橋誠司 | K39: =データ貼付!G37 -> 2669 | L39: =データ貼付!H37 -> 決 | M39: =データ貼付!I37 -> 雄武中 | N39: =データ貼付!J37 -> 1 | O39: =データ貼付!K37 -> 0
A40: 37 | B40: 中学男子ｼﾞｬﾍﾞﾘｯｸｽﾛｰ5 | C40: =J40&COUNTIF($J$4:J40,J40) -> 石原遥翔1 | D40: =データ貼付!D38&データ貼付!E38 -> 中学男子ｼﾞｬﾍﾞﾘｯｸｽﾛｰ | E40: =データ貼付!G38+ROW()/1000000 -> 3731.00004 | F40: 5 | G40: =データ貼付!A38 -> フィールド記録会 | H40: =データ貼付!B38 -> 網走 | I40: =データ貼付!C38 -> 43624 | J40: =データ貼付!F38 -> 石原遥翔 | K40: =データ貼付!G38 -> 3731 | L40: =データ貼付!H38 -> 決 | M40: =データ貼付!I38 -> 網走第四中 | N40: =データ貼付!J38 -> 1 | O40: =データ貼付!K38 -> 0
A41: 38 | B41: 中学男子ｼﾞｬﾍﾞﾘｯｸｽﾛｰ27 | C41: =J41&COUNTIF($J$4:J41,J41) -> 石田琉二1 | D41: =データ貼付!D39&データ貼付!E39 -> 中学男子ｼﾞｬﾍﾞﾘｯｸｽﾛｰ | E41: =データ貼付!G39+ROW()/1000000 -> 2553.000041 | F41: 27 | G41: =データ貼付!A39 -> 記録会３戦 | H41: =データ貼付!B39 -> 網走 | I41: =データ貼付!C39 -> 43660 | J41: =データ貼付!F39 -> 石田琉二 | K41: =データ貼付!G39 -> 2553 | L41: =データ貼付!H39 -> 決 | M41: =データ貼付!I39 -> 北見北中 | N41: =データ貼付!J39 -> 1 | O41: =データ貼付!K39 -> 0
A42: 39 | B42: 中学男子ｼﾞｬﾍﾞﾘｯｸｽﾛｰ20 | C42: =J42&COUNTIF($J$4:J42,J42) -> 千葉涼1 | D42: =データ貼付!D40&データ貼付!E40 -> 中学男子ｼﾞｬﾍﾞﾘｯｸｽﾛｰ | E42: =データ貼付!G40+ROW()/1000000 -> 2901.000042 | F42: 20 | G42: =データ貼付!A40 -> 記録会４戦 | H42: =データ貼付!B40 -> 北見 | I42: =データ貼付!C40 -> 43681 | J42: =データ貼付!F40 -> 千葉涼 | K42: =データ貼付!G40 -> 2901 | L42: =データ貼付!H40 -> 決 | M42: =データ貼付!I40 -> 北見光西中 | N42: =データ貼付!J40 -> 1 | O42: =データ貼付!K40 -> 0
A43: 40 | B43: 中学男子ｼﾞｬﾍﾞﾘｯｸｽﾛｰ8 | C43: =J43&COUNTIF($J$4:J43,J43) -> 倉本静鬼1 | D43: =データ貼付!D41&データ貼付!E41 -> 中学男子ｼﾞｬﾍﾞﾘｯｸｽﾛｰ | E43: =データ貼付!G41+ROW()/1000000 -> 3471.000043 | F43: 8 | G43: =データ貼付!A41 -> 選手権 | H43: =データ貼付!B41 -> 北見 | I43: =データ貼付!C41 -> 43596 | J43: =データ貼付!F41 -> 倉本静鬼 | K43: =データ貼付!G41 -> 3471 | L43: =データ貼付!H41 -> 決 | M43: =データ貼付!I41 -> 北見東陵中 | N43: =データ貼付!J41 -> 2 | O43: =データ貼付!K41 -> 0
A44: 41 | B44: 中学女子ｼﾞｬﾍﾞﾘｯｸｽﾛｰ19 | C44: =J44&COUNTIF($J$4:J44,J44) -> 草岡美紀1 | D44: =データ貼付!D42&データ貼付!E42 -> 中学女子ｼﾞｬﾍﾞﾘｯｸｽﾛｰ | E44: =データ貼付!G42+ROW()/1000000 -> 893.000044 | F44: 19 | G44: =データ貼付!A42 -> フィールド記録会 | H44: =データ貼付!B42 -> 網走 | I44: =データ貼付!C42 -> 43624 | J44: =データ貼付!F42 -> 草岡美紀 | K44: =データ貼付!G42 -> 893 | L44: =データ貼付!H42 -> 決 | M44: =データ貼付!I42 -> 網走第二中 | N44: =データ貼付!J42 -> 1 | O44: =データ貼付!K42 -> 0
A45: 42 | B45: 中学男子ｼﾞｬﾍﾞﾘｯｸｽﾛｰ41 | C45: =J45&COUNTIF($J$4:J45,J45) -> 草薙怜冶1 | D45: =データ貼付!D43&データ貼付!E43 -> 中学男子ｼﾞｬﾍﾞﾘｯｸｽﾛｰ | E45: =データ貼付!G43+ROW()/1000000 -> 1848.000045 | F45: 41 | G45: =データ貼付!A43 -> 通信陸上 | H45: =データ貼付!B43 -> 網走 | I45: =データ貼付!C43 -> 43644 | J45: =データ貼付!F43 -> 草薙怜冶 | K45: =データ貼付!G43 -> 1848 | L45: =データ貼付!H43 -> 決 | M45: =データ貼付!I43 -> 湧別中 | N45: =データ貼付!J43 -> 1 | O45: =データ貼付!K43 -> 0
A46: 43 | B46: 中学女子ｼﾞｬﾍﾞﾘｯｸｽﾛｰ13 | C46: =J46&COUNTIF($J$4:J46,J46) -> 多田麻菜花1 | D46: =データ貼付!D44&データ貼付!E44 -> 中学女子ｼﾞｬﾍﾞﾘｯｸｽﾛｰ | E46: =データ貼付!G44+ROW()/1000000 -> 1658.000046 | F46: 13 | G46: =データ貼付!A44 -> 記録会４戦 | H46: =データ貼付!B44 -> 北見 | I46: =データ貼付!C44 -> 43681 | J46: =データ貼付!F44 -> 多田麻菜花 | K46: =データ貼付!G44 -> 1658 | L46: =データ貼付!H44 -> 決 | M46: =データ貼付!I44 -> 北見北光中 | N46: =データ貼付!J44 -> 3 | O46: =データ貼付!K44 -> 0
A47: 44 | B47: 中学男子ｼﾞｬﾍﾞﾘｯｸｽﾛｰ21 | C47: =J47&COUNTIF($J$4:J47,J47) -> 中井啓晴1 | D47: =データ貼付!D45&データ貼付!E45 -> 中学男子ｼﾞｬﾍﾞﾘｯｸｽﾛｰ | E47: =データ貼付!G45+ROW()/1000000 -> 2783.000047 | F47: 21 | G47: =データ貼付!A45 -> 通信陸上 | H47: =データ貼付!B45 -> 網走 | I47: =データ貼付!C45 -> 43644 | J47: =データ貼付!F45 -> 中井啓晴 | K47: =データ貼付!G45 -> 2783 | L47: =データ貼付!H45 -> 決 | M47: =データ貼付!I45 -> 北見小泉中 | N47: =データ貼付!J45 -> 3 | O47: =データ貼付!K45 -> 0
A48: 45 | B48: 中学男子ｼﾞｬﾍﾞﾘｯｸｽﾛｰ11 | C48: =J48&COUNTIF($J$4:J48,J48) -> 中原太亜1 | D48: =データ貼付!D46&データ貼付!E46 -> 中学男子ｼﾞｬﾍﾞﾘｯｸｽﾛｰ | E48: =データ貼付!G46+ROW()/1000000 -> 3253.000048 | F48: 11 | G48: =データ貼付!A46 -> 通信陸上 | H48: =データ貼付!B46 -> 網走 | I48: =データ貼付!C46 -> 43644 | J48: =データ貼付!F46 -> 中原太亜 | K48: =データ貼付!G46 -> 3253 | L48: =データ貼付!H46 -> 決 | M48: =データ貼付!I46 -> 北見常呂中 | N48: =データ貼付!J46 -> 2 | O48: =データ貼付!K46 -> 0
A49: 46 | B49: 中学女子ｼﾞｬﾍﾞﾘｯｸｽﾛｰ8 | C49: =J49&COUNTIF($J$4:J49,J49) -> 中村悠南1 | D49: =データ貼付!D47&データ貼付!E47 -> 中学女子ｼﾞｬﾍﾞﾘｯｸｽﾛｰ | E49: =データ貼付!G47+ROW()/1000000 -> 1927.000049 | F49: 8 | G49: =データ貼付!A47 -> 通信陸上 | H49: =データ貼付!B47 -> 網走 | I49: =データ貼付!C47 -> 43645 | J49: =データ貼付!F47 -> 中村悠南 | K49: =データ貼付!G47 -> 1927 | L49: =データ貼付!H47 -> 決 | M49: =データ貼付!I47 -> 網走第三中 | N49: =データ貼付!J47 -> 3 | O49: =データ貼付!K47 -> 0
A50: 47 | B50: 中学男子ｼﾞｬﾍﾞﾘｯｸｽﾛｰ18 | C50: =J50&COUNTIF($J$4:J50,J50) -> 中野大地1 | D50: =データ貼付!D48&データ貼付!E48 -> 中学男子ｼﾞｬﾍﾞﾘｯｸｽﾛｰ | E50: =データ貼付!G48+ROW()/1000000 -> 2939.00005 | F50: 18 | G50: =データ貼付!A48 -> 通信陸上 | H50: =データ貼付!B48 -> 網走 | I50: =データ貼付!C48 -> 43644 | J50: =データ貼付!F48 -> 中野大地 | K50: =データ貼付!G48 -> 2939 | L50: =データ貼付!H48 -> 決 | M50: =データ貼付!I48 -> 北見北光中 | N50: =データ貼付!J48 -> 1 | O50: =データ貼付!K48 -> 0
A51: 48 | B51: 中学男子ｼﾞｬﾍﾞﾘｯｸｽﾛｰ31 | C51: =J51&COUNTIF($J$4:J51,J51) -> 田中達也1 | D51: =データ貼付!D49&データ貼付!E49 -> 中学男子ｼﾞｬﾍﾞﾘｯｸｽﾛｰ | E51: =データ貼付!G49+ROW()/1000000 -> 2282.000051 | F51: 31 | G51: =データ貼付!A49 -> 記録会３戦 | H51: =データ貼付!B49 -> 網走 | I51: =データ貼付!C49 -> 43660 | J51: =データ貼付!F49 -> 田中達也 | K51: =データ貼付!G49 -> 2282 | L51: =データ貼付!H49 -> 決 | M51: =データ貼付!I49 -> 網走第一中 | N51: =データ貼付!J49 -> 3 | O51: =データ貼付!K49 -> 0
A52: 49 | B52: 中学男子ｼﾞｬﾍﾞﾘｯｸｽﾛｰ30 | C52: =J52&COUNTIF($J$4:J52,J52) -> 田中智也1 | D52: =データ貼付!D50&データ貼付!E50 -> 中学男子ｼﾞｬﾍﾞﾘｯｸｽﾛｰ | E52: =データ貼付!G50+ROW()/1000000 -> 2310.000052 | F52: 30 | G52: =データ貼付!A50 -> 秋季陸上 | H52: =データ貼付!B50 -> 網走 | I52: =データ貼付!C50 -> 43715 | J52: =データ貼付!F50 -> 田中智也 | K52: =データ貼付!G50 -> 2310 | L52: =データ貼付!H50 -> 決 | M52: =データ貼付!I50 -> 網走第一中 | N52: =データ貼付!J50 -> 1 | O52: =データ貼付!K50 -> 0
A53: 50 | B53: 中学女子ｼﾞｬﾍﾞﾘｯｸｽﾛｰ11 | C53: =J53&COUNTIF($J$4:J53,J53) -> 田中陽菜1 | D53: =データ貼付!D51&データ貼付!E51 -> 中学女子ｼﾞｬﾍﾞﾘｯｸｽﾛｰ | E53: =データ貼付!G51+ROW()/1000000 -> 1783.000053 | F53: 11 | G53: =データ貼付!A51 -> 通信陸上 | H53: =データ貼付!B51 -> 網走 | I53: =データ貼付!C51 -> 43645 | J53: =データ貼付!F51 -> 田中陽菜 | K53: =データ貼付!G51 -> 1783 | L53: =データ貼付!H51 -> 決 | M53: =データ貼付!I51 -> 北見光西中 | N53: =データ貼付!J51 -> 1 | O53: =データ貼付!K51 -> 0
A54: 51 | B54: 中学男子ｼﾞｬﾍﾞﾘｯｸｽﾛｰ10 | C54: =J54&COUNTIF($J$4:J54,J54) -> 渡邉日向1 | D54: =データ貼付!D52&データ貼付!E52 -> 中学男子ｼﾞｬﾍﾞﾘｯｸｽﾛｰ | E54: =データ貼付!G52+ROW()/1000000 -> 3268.000054 | F54: 10 | G54: =データ貼付!A52 -> 選手権 | H54: =データ貼付!B52 -> 北見 | I54: =データ貼付!C52 -> 43596 | J54: =データ貼付!F52 -> 渡邉日向 | K54: =データ貼付!G52 -> 3268 | L54: =データ貼付!H52 -> 決 | M54: =データ貼付!I52 -> 網走第四中 | N54: =データ貼付!J52 -> 1 | O54: =データ貼付!K52 -> 0
A55: 52 | B55: 中学男子ｼﾞｬﾍﾞﾘｯｸｽﾛｰ12 | C55: =J55&COUNTIF($J$4:J55,J55) -> 楠本悠斗1 | D55: =データ貼付!D53&データ貼付!E53 -> 中学男子ｼﾞｬﾍﾞﾘｯｸｽﾛｰ | E55: =データ貼付!G53+ROW()/1000000 -> 3168.000055 | F55: 12 | G55: =データ貼付!A53 -> 記録会３戦 | H55: =データ貼付!B53 -> 網走 | I55: =データ貼付!C53 -> 43660 | J55: =データ貼付!F53 -> 楠本悠斗 | K55: =データ貼付!G53 -> 3168 | L55: =データ貼付!H53 -> 決 | M55: =データ貼付!I53 -> 北見小泉中 | N55: =データ貼付!J53 -> 3 | O55: =データ貼付!K53 -> 0
A56: 53 | B56: 中学男子ｼﾞｬﾍﾞﾘｯｸｽﾛｰ16 | C56: =J56&COUNTIF($J$4:J56,J56) -> 日野俐唯斗1 | D56: =データ貼付!D54&データ貼付!E54 -> 中学男子ｼﾞｬﾍﾞﾘｯｸｽﾛｰ | E56: =データ貼付!G54+ROW()/1000000 -> 2954.000056 | F56: 16 | G56: =データ貼付!A54 -> 通信陸上 | H56: =データ貼付!B54 -> 網走 | I56: =データ貼付!C54 -> 43644 | J56: =データ貼付!F54 -> 日野俐唯斗 | K56: =データ貼付!G54 -> 2954 | L56: =データ貼付!H54 -> 決 | M56: =データ貼付!I54 -> 北見北光中 | N56: =データ貼付!J54 -> 1 | O56: =データ貼付!K54 -> 0
A57: 54 | B57: 中学女子ｼﾞｬﾍﾞﾘｯｸｽﾛｰ9 | C57: =J57&COUNTIF($J$4:J57,J57) -> 畠野美優1 | D57: =データ貼付!D55&データ貼付!E55 -> 中学女子ｼﾞｬﾍﾞﾘｯｸｽﾛｰ | E57: =データ貼付!G55+ROW()/1000000 -> 1922.000057 | F57: 9 | G57: =データ貼付!A55 -> 通信陸上 | H57: =データ貼付!B55 -> 網走 | I57: =データ貼付!C55 -> 43645 | J57: =データ貼付!F55 -> 畠野美優 | K57: =データ貼付!G55 -> 1922 | L57: =データ貼付!H55 -> 決 | M57: =データ貼付!I55 -> 北見光西中 | N57: =データ貼付!J55 -> 2 | O57: =データ貼付!K55 -> 0
A58: 55 | B58: 中学男子ｼﾞｬﾍﾞﾘｯｸｽﾛｰ23 | C58: =J58&COUNTIF($J$4:J58,J58) -> 美濃詠隼1 | D58: =データ貼付!D56&データ貼付!E56 -> 中学男子ｼﾞｬﾍﾞﾘｯｸｽﾛｰ | E58: =データ貼付!G56+ROW()/1000000 -> 2682.000058 | F58: 23 | G58: =データ貼付!A56 -> 通信陸上 | H58: =データ貼付!B56 -> 網走 | I58: =データ貼付!C56 -> 43644 | J58: =データ貼付!F56 -> 美濃詠隼 | K58: =データ貼付!G56 -> 2682 | L58: =データ貼付!H56 -> 決 | M58: =データ貼付!I56 -> 雄武中 | N58: =データ貼付!J56 -> 1 | O58: =データ貼付!K56 -> 0
A59: 56 | B59: 中学男子ｼﾞｬﾍﾞﾘｯｸｽﾛｰ38 | C59: =J59&COUNTIF($J$4:J59,J59) -> 福田悠介1 | D59: =データ貼付!D57&データ貼付!E57 -> 中学男子ｼﾞｬﾍﾞﾘｯｸｽﾛｰ | E59: =データ貼付!G57+ROW()/1000000 -> 2018.000059 | F59: 38 | G59: =データ貼付!A57 -> 選手権 | H59: =データ貼付!B57 -> 北見 | I59: =データ貼付!C57 -> 43596 | J59: =データ貼付!F57 -> 福田悠介 | K59: =データ貼付!G57 -> 2018 | L59: =データ貼付!H57 -> 決 | M59: =データ貼付!I57 -> 網走第一中 | N59: =データ貼付!J57 -> 2 | O59: =データ貼付!K57 -> 0
A60: 57 | B60: 中学男子ｼﾞｬﾍﾞﾘｯｸｽﾛｰ33 | C60: =J60&COUNTIF($J$4:J60,J60) -> 平形洸人1 | D60: =データ貼付!D58&データ貼付!E58 -> 中学男子ｼﾞｬﾍﾞﾘｯｸｽﾛｰ | E60: =データ貼付!G58+ROW()/1000000 -> 2173.00006 | F60: 33 | G60: =データ貼付!A58 -> 通信陸上 | H60: =データ貼付!B58 -> 網走 | I60: =データ貼付!C58 -> 43644 | J60: =データ貼付!F58 -> 平形洸人 | K60: =データ貼付!G58 -> 2173 | L60: =データ貼付!H58 -> 決 | M60: =データ貼付!I58 -> 湧別中 | N60: =データ貼付!J58 -> 1 | O60: =データ貼付!K58 -> 0
A61: 58 | B61: 中学男子ｼﾞｬﾍﾞﾘｯｸｽﾛｰ34 | C61: =J61&COUNTIF($J$4:J61,J61) -> 平佐太一1 | D61: =データ貼付!D59&データ貼付!E59 -> 中学男子ｼﾞｬﾍﾞﾘｯｸｽﾛｰ | E61: =データ貼付!G59+ROW()/1000000 -> 2053.000061 | F61: 34 | G61: =データ貼付!A59 -> 選手権 | H61: =データ貼付!B59 -> 北見 | I61: =データ貼付!C59 -> 43596 | J61: =データ貼付!F59 -> 平佐太一 | K61: =データ貼付!G59 -> 2053 | L61: =データ貼付!H59 -> 決 | M61: =データ貼付!I59 -> 網走第三中 | N61: =データ貼付!J59 -> 2 | O61: =データ貼付!K59 -> 0
A62: 59 | B62: 中学男子ｼﾞｬﾍﾞﾘｯｸｽﾛｰ47 | C62: =J62&COUNTIF($J$4:J62,J62) -> 保里和実1 | D62: =データ貼付!D60&データ貼付!E60 -> 中学男子ｼﾞｬﾍﾞﾘｯｸｽﾛｰ | E62: =データ貼付!G60+ROW()/1000000 -> 1285.000062 | F62: 47 | G62: =データ貼付!A60 -> 選手権 | H62: =データ貼付!B60 -> 北見 | I62: =データ貼付!C60 -> 43596 | J62: =データ貼付!F60 -> 保里和実 | K62: =データ貼付!G60 -> 1285 | L62: =データ貼付!H60 -> 決 | M62: =データ貼付!I60 -> 遠軽中 | N62: =データ貼付!J60 -> 3 | O62: =データ貼付!K60 -> 0
A63: 60 | B63: 中学男子ｼﾞｬﾍﾞﾘｯｸｽﾛｰ39 | C63: =J63&COUNTIF($J$4:J63,J63) -> 豊田琉偉1 | D63: =データ貼付!D61&データ貼付!E61 -> 中学男子ｼﾞｬﾍﾞﾘｯｸｽﾛｰ | E63: =データ貼付!G61+ROW()/1000000 -> 1891.000063 | F63: 39 | G63: =データ貼付!A61 -> 通信陸上 | H63: =データ貼付!B61 -> 網走 | I63: =データ貼付!C61 -> 43644 | J63: =データ貼付!F61 -> 豊田琉偉 | K63: =データ貼付!G61 -> 1891 | L63: =データ貼付!H61 -> 決 | M63: =データ貼付!I61 -> 遠軽中 | N63: =データ貼付!J61 -> 3 | O63: =データ貼付!K61 -> 0
A64: 61 | B64: 中学男子ｼﾞｬﾍﾞﾘｯｸｽﾛｰ22 | C64: =J64&COUNTIF($J$4:J64,J64) -> 堀口慎之助1 | D64: =データ貼付!D62&データ貼付!E62 -> 中学男子ｼﾞｬﾍﾞﾘｯｸｽﾛｰ | E64: =データ貼付!G62+ROW()/1000000 -> 2768.000064 | F64: 22 | G64: =データ貼付!A62 -> 選手権 | H64: =データ貼付!B62 -> 北見 | I64: =データ貼付!C62 -> 43596 | J64: =データ貼付!F62 -> 堀口慎之助 | K64: =データ貼付!G62 -> 2768 | L64: =データ貼付!H62 -> 決 | M64: =データ貼付!I62 -> 北見小泉中 | N64: =データ貼付!J62 -> 3 | O64: =データ貼付!K62 -> 0
A65: 62 | B65: 中学女子ｼﾞｬﾍﾞﾘｯｸｽﾛｰ15 | C65: =J65&COUNTIF($J$4:J65,J65) -> 本間唯央奈1 | D65: =データ貼付!D63&データ貼付!E63 -> 中学女子ｼﾞｬﾍﾞﾘｯｸｽﾛｰ | E65: =データ貼付!G63+ROW()/1000000 -> 1546.000065 | F65: 15 | G65: =データ貼付!A63 -> 記録会４戦 | H65: =データ貼付!B63 -> 北見 | I65: =データ貼付!C63 -> 43681 | J65: =データ貼付!F63 -> 本間唯央奈 | K65: =データ貼付!G63 -> 1546 | L65: =データ貼付!H63 -> 決 | M65: =データ貼付!I63 -> 北見北光中 | N65: =データ貼付!J63 -> 3 | O65: =データ貼付!K63 -> 0
A66: 63 | B66: 中学女子ｼﾞｬﾍﾞﾘｯｸｽﾛｰ7 | C66: =J66&COUNTIF($J$4:J66,J66) -> 木村紗彩1 | D66: =データ貼付!D64&データ貼付!E64 -> 中学女子ｼﾞｬﾍﾞﾘｯｸｽﾛｰ | E66: =データ貼付!G64+ROW()/1000000 -> 2068.000066 | F66: 7 | G66: =データ貼付!A64 -> 記録会４戦 | H66: =データ貼付!B64 -> 北見 | I66: =データ貼付!C64 -> 43681 | J66: =データ貼付!F64 -> 木村紗彩 | K66: =データ貼付!G64 -> 2068 | L66: =データ貼付!H64 -> 決 | M66: =データ貼付!I64 -> 網走第四中 | N66: =データ貼付!J64 -> 2 | O66: =データ貼付!K64 -> 0
A67: 64 | B67: 中学男子ｼﾞｬﾍﾞﾘｯｸｽﾛｰ35 | C67: =J67&COUNTIF($J$4:J67,J67) -> 木内健太郎1 | D67: =データ貼付!D65&データ貼付!E65 -> 中学男子ｼﾞｬﾍﾞﾘｯｸｽﾛｰ | E67: =データ貼付!G65+ROW()/1000000 -> 2045.000067 | F67: 35 | G67: =データ貼付!A65 -> 通信陸上 | H67: =データ貼付!B65 -> 網走 | I67: =データ貼付!C65 -> 43644 | J67: =データ貼付!F65 -> 木内健太郎 | K67: =データ貼付!G65 -> 2045 | L67: =データ貼付!H65 -> 決 | M67: =データ貼付!I65 -> 遠軽中 | N67: =データ貼付!J65 -> 2 | O67: =データ貼付!K65 -> 0
A68: 65 | B68: 中学男子ｼﾞｬﾍﾞﾘｯｸｽﾛｰ26 | C68: =J68&COUNTIF($J$4:J68,J68) -> 野村駿1 | D68: =データ貼付!D66&データ貼付!E66 -> 中学男子ｼﾞｬﾍﾞﾘｯｸｽﾛｰ | E68: =データ貼付!G66+ROW()/1000000 -> 2558.000068 | F68: 26 | G68: =データ貼付!A66 -> 秋季陸上 | H68: =データ貼付!B66 -> 網走 | I68: =データ貼付!C66 -> 43715 | J68: =データ貼付!F66 -> 野村駿 | K68: =データ貼付!G66 -> 2558 | L68: =データ貼付!H66 -> 決 | M68: =データ貼付!I66 -> 北見東陵中 | N68: =データ貼付!J66 -> 1 | O68: =データ貼付!K66 -> 0
A69: 66 | B69: =D69&F69 -> 中学男子ｼﾞｬﾍﾞﾘｯｸｽﾛｰ46 | C69: =J69&COUNTIF($J$4:J69,J69) -> 髙橋龍之介1 | D69: =データ貼付!D67&データ貼付!E67 -> 中学男子ｼﾞｬﾍﾞﾘｯｸｽﾛｰ | E69: =データ貼付!G67+ROW()/1000000 -> 1498.000069 | F69: =SUMPRODUCT(($D$4:$D$903=D69)*($E$4:$E$903>E69))+1 -> 46 | G69: =データ貼付!A67 -> フィールド記録会 | H69: =データ貼付!B67 -> 網走 | I69: =データ貼付!C67 -> 43624 | J69: =データ貼付!F67 -> 髙橋龍之介 | K69: =データ貼付!G67 -> 1498 | L69: =データ貼付!H67 -> 決 | M69: =データ貼付!I67 -> 網走第四中 | N69: =データ貼付!J67 -> 1 | O69: =データ貼付!K67 -> 0
A70: 67 | B70: 中学女子ｼﾞｬﾍﾞﾘｯｸｽﾛｰ17 | C70: =J70&COUNTIF($J$4:J70,J70) -> 髙田沙七1 | D70: =データ貼付!D68&データ貼付!E68 -> 中学女子ｼﾞｬﾍﾞﾘｯｸｽﾛｰ | E70: =データ貼付!G68+ROW()/1000000 -> 1135.00007 | F70: 17 | G70: =データ貼付!A68 -> 記録会４戦 | H70: =データ貼付!B68 -> 北見 | I70: =データ貼付!C68 -> 43681 | J70: =データ貼付!F68 -> 髙田沙七 | K70: =データ貼付!G68 -> 1135 | L70: =データ貼付!H68 -> 決 | M70: =データ貼付!I68 -> 北見北光中 | N70: =データ貼付!J68 -> 3 | O70: =データ貼付!K68 -> 0
A71: 68 | B71: 小学男子ｼﾞｬﾍﾞﾘｯｸﾎﾞｰﾙ投12 | C71: =J71&COUNTIF($J$4:J71,J71) -> 阿部空晴1 | D71: =データ貼付!D69&データ貼付!E69 -> 小学男子ｼﾞｬﾍﾞﾘｯｸﾎﾞｰﾙ投 | E71: =データ貼付!G69+ROW()/1000000 -> 3559.000071 | F71: 12 | G71: =データ貼付!A69 -> 選手権 | H71: =データ貼付!B69 -> 北見 | I71: =データ貼付!C69 -> 43596 | J71: =データ貼付!F69 -> 阿部空晴 | K71: =データ貼付!G69 -> 3559 | L71: =データ貼付!H69 -> 決 | M71: =データ貼付!I69 -> 美幌RC | N71: =データ貼付!J69 -> 6 | O71: =データ貼付!K69 -> 0
A72: 69 | B72: 小学男子ｼﾞｬﾍﾞﾘｯｸﾎﾞｰﾙ投20 | C72: =J72&COUNTIF($J$4:J72,J72) -> 安井一晴1 | D72: =データ貼付!D70&データ貼付!E70 -> 小学男子ｼﾞｬﾍﾞﾘｯｸﾎﾞｰﾙ投 | E72: =データ貼付!G70+ROW()/1000000 -> 3139.000072 | F72: 20 | G72: =データ貼付!A70 -> 小学生ｵﾎｰﾂｸ | H72: =データ貼付!B70 -> 北見 | I72: =データ貼付!C70 -> 43632 | J72: =データ貼付!F70 -> 安井一晴 | K72: =データ貼付!G70 -> 3139 | L72: =データ貼付!H70 -> 決 | M72: =データ貼付!I70 -> ｵﾎｰﾂｸｷｯｽﾞ | N72: =データ貼付!J70 -> 4 | O72: =データ貼付!K70 -> 0
A73: 70 | B73: 小学女子ｼﾞｬﾍﾞﾘｯｸﾎﾞｰﾙ投1 | C73: =J73&COUNTIF($J$4:J73,J73) -> 安藤和1 | D73: =データ貼付!D71&データ貼付!E71 -> 小学女子ｼﾞｬﾍﾞﾘｯｸﾎﾞｰﾙ投 | E73: =データ貼付!G71+ROW()/1000000 -> 3928.000073 | F73: 1 | G73: =データ貼付!A71 -> 全道小学 | H73: =データ貼付!B71 -> 札幌 | I73: =データ貼付!C71 -> 43661 | J73: =データ貼付!F71 -> 安藤和 | K73: =データ貼付!G71 -> 3928 | L73: =データ貼付!H71 -> 決 | M73: =データ貼付!I71 -> 清里陸上少年団 | N73: =データ貼付!J71 -> 6 | O73: =データ貼付!K71 -> 0
A74: 71 | B74: 小学男子ｼﾞｬﾍﾞﾘｯｸﾎﾞｰﾙ投15 | C74: =J74&COUNTIF($J$4:J74,J74) -> 伊藤悦大1 | D74: =データ貼付!D72&データ貼付!E72 -> 小学男子ｼﾞｬﾍﾞﾘｯｸﾎﾞｰﾙ投 | E74: =データ貼付!G72+ROW()/1000000 -> 3337.000074 | F74: 15 | G74: =データ貼付!A72 -> 小学生ｵﾎｰﾂｸ | H74: =データ貼付!B72 -> 北見 | I74: =データ貼付!C72 -> 43632 | J74: =データ貼付!F72 -> 伊藤悦大 | K74: =データ貼付!G72 -> 3337 | L74: =データ貼付!H72 -> 決 | M74: =データ貼付!I72 -> ｵﾎｰﾂｸｷｯｽﾞ | N74: =データ貼付!J72 -> 4 | O74: =データ貼付!K72 -> 0
A75: 72 | B75: 小学男子ｼﾞｬﾍﾞﾘｯｸﾎﾞｰﾙ投36 | C75: =J75&COUNTIF($J$4:J75,J75) -> 伊藤榮音1 | D75: =データ貼付!D73&データ貼付!E73 -> 小学男子ｼﾞｬﾍﾞﾘｯｸﾎﾞｰﾙ投 | E75: =データ貼付!G73+ROW()/1000000 -> 2307.000075 | F75: 36 | G75: =データ貼付!A73 -> 全道小学 | H75: =データ貼付!B73 -> 札幌 | I75: =データ貼付!C73 -> 43661 | J75: =データ貼付!F73 -> 伊藤榮音 | K75: =データ貼付!G73 -> 2307 | L75: =データ貼付!H73 -> 決 | M75: =データ貼付!I73 -> ｵﾎｰﾂｸｷｯｽﾞ | N75: =データ貼付!J73 -> 6 | O75: =データ貼付!K73 -> 0
A76: 73 | B76: 小学男子ｼﾞｬﾍﾞﾘｯｸﾎﾞｰﾙ投43 | C76: =J76&COUNTIF($J$4:J76,J76) -> 浦田侍暖1 | D76: =データ貼付!D74&データ貼付!E74 -> 小学男子ｼﾞｬﾍﾞﾘｯｸﾎﾞｰﾙ投 | E76: =データ貼付!G74+ROW()/1000000 -> 2019.000076 | F76: 43 | G76: =データ貼付!A74 -> 小学生ｵﾎｰﾂｸ | H76: =データ貼付!B74 -> 北見 | I76: =データ貼付!C74 -> 43632 | J76: =データ貼付!F74 -> 浦田侍暖 | K76: =データ貼付!G74 -> 2019 | L76: =データ貼付!H74 -> 決 | M76: =データ貼付!I74 -> ｵﾎｰﾂｸｷｯｽﾞ | N76: =データ貼付!J74 -> 3 | O76: =データ貼付!K74 -> 0
A77: 74 | B77: 小学男子ｼﾞｬﾍﾞﾘｯｸﾎﾞｰﾙ投11 | C77: =J77&COUNTIF($J$4:J77,J77) -> 浦田誉人1 | D77: =データ貼付!D75&データ貼付!E75 -> 小学男子ｼﾞｬﾍﾞﾘｯｸﾎﾞｰﾙ投 | E77: =データ貼付!G75+ROW()/1000000 -> 3604.000077 | F77: 11 | G77: =データ貼付!A75 -> フィールド記録会 | H77: =データ貼付!B75 -> 網走 | I77: =データ貼付!C75 -> 43624 | J77: =データ貼付!F75 -> 浦田誉人 | K77: =データ貼付!G75 -> 3604 | L77: =データ貼付!H75 -> 決 | M77: =データ貼付!I75 -> 美幌RC | N77: =データ貼付!J75 -> 5 | O77: =データ貼付!K75 -> 0
A78: 75 | B78: 小学男子ｼﾞｬﾍﾞﾘｯｸﾎﾞｰﾙ投2 | C78: =J78&COUNTIF($J$4:J78,J78) -> 角田蓮1 | D78: =データ貼付!D76&データ貼付!E76 -> 小学男子ｼﾞｬﾍﾞﾘｯｸﾎﾞｰﾙ投 | E78: =データ貼付!G76+ROW()/1000000 -> 4504.000078 | F78: 2 | G78: =データ貼付!A76 -> 選手権 | H78: =データ貼付!B76 -> 北見 | I78: =データ貼付!C76 -> 43596 | J78: =データ貼付!F76 -> 角田蓮 | K78: =データ貼付!G76 -> 4504 | L78: =データ貼付!H76 -> 決 | M78: =データ貼付!I76 -> 美幌RC | N78: =データ貼付!J76 -> 6 | O78: =データ貼付!K76 -> 0
A79: 76 | B79: 小学男子ｼﾞｬﾍﾞﾘｯｸﾎﾞｰﾙ投25 | C79: =J79&COUNTIF($J$4:J79,J79) -> 刈屋柊晴1 | D79: =データ貼付!D77&データ貼付!E77 -> 小学男子ｼﾞｬﾍﾞﾘｯｸﾎﾞｰﾙ投 | E79: =データ貼付!G77+ROW()/1000000 -> 2815.000079 | F79: 25 | G79: =データ貼付!A77 -> 選手権 | H79: =データ貼付!B77 -> 北見 | I79: =データ貼付!C77 -> 43596 | J79: =データ貼付!F77 -> 刈屋柊晴 | K79: =データ貼付!G77 -> 2815 | L79: =データ貼付!H77 -> 決 | M79: =データ貼付!I77 -> ｵﾎｰﾂｸｷｯｽﾞ | N79: =データ貼付!J77 -> 4 | O79: =データ貼付!K77 -> 0
A80: 77 | B80: 小学女子ｼﾞｬﾍﾞﾘｯｸﾎﾞｰﾙ投4 | C80: =J80&COUNTIF($J$4:J80,J80) -> 関谷楓花1 | D80: =データ貼付!D78&データ貼付!E78 -> 小学女子ｼﾞｬﾍﾞﾘｯｸﾎﾞｰﾙ投 | E80: =データ貼付!G78+ROW()/1000000 -> 3393.00008 | F80: 4 | G80: =データ貼付!A78 -> フィールド記録会 | H80: =データ貼付!B78 -> 網走 | I80: =データ貼付!C78 -> 43624 | J80: =データ貼付!F78 -> 関谷楓花 | K80: =データ貼付!G78 -> 3393 | L80: =データ貼付!H78 -> 決 | M80: =データ貼付!I78 -> 常呂陸上少年団 | N80: =データ貼付!J78 -> 6 | O80: =データ貼付!K78 -> 0
A81: 78 | B81: 小学男子ｼﾞｬﾍﾞﾘｯｸﾎﾞｰﾙ投10 | C81: =J81&COUNTIF($J$4:J81,J81) -> 吉田仙太1 | D81: =データ貼付!D79&データ貼付!E79 -> 小学男子ｼﾞｬﾍﾞﾘｯｸﾎﾞｰﾙ投 | E81: =データ貼付!G79+ROW()/1000000 -> 3608.000081 | F81: 10 | G81: =データ貼付!A79 -> フィールド記録会 | H81: =データ貼付!B79 -> 網走 | I81: =データ貼付!C79 -> 43624 | J81: =データ貼付!F79 -> 吉田仙太 | K81: =データ貼付!G79 -> 3608 | L81: =データ貼付!H79 -> 決 | M81: =データ貼付!I79 -> 美幌RC | N81: =データ貼付!J79 -> 5 | O81: =データ貼付!K79 -> 0
A82: 79 | B82: 小学女子ｼﾞｬﾍﾞﾘｯｸﾎﾞｰﾙ投10 | C82: =J82&COUNTIF($J$4:J82,J82) -> 久保田颯歩1 | D82: =データ貼付!D80&データ貼付!E80 -> 小学女子ｼﾞｬﾍﾞﾘｯｸﾎﾞｰﾙ投 | E82: =データ貼付!G80+ROW()/1000000 -> 1813.000082 | F82: 10 | G82: =データ貼付!A80 -> フィールド記録会 | H82: =データ貼付!B80 -> 網走 | I82: =データ貼付!C80 -> 43624 | J82: =データ貼付!F80 -> 久保田颯歩 | K82: =データ貼付!G80 -> 1813 | L82: =データ貼付!H80 -> 決 | M82: =データ貼付!I80 -> 知床斜里RC | N82: =データ貼付!J80 -> 5 | O82: =データ貼付!K80 -> 0
A83: 80 | B83: 小学男子ｼﾞｬﾍﾞﾘｯｸﾎﾞｰﾙ投40 | C83: =J83&COUNTIF($J$4:J83,J83) -> 桐山晴良1 | D83: =データ貼付!D81&データ貼付!E81 -> 小学男子ｼﾞｬﾍﾞﾘｯｸﾎﾞｰﾙ投 | E83: =データ貼付!G81+ROW()/1000000 -> 2085.000083 | F83: 40 | G83: =データ貼付!A81 -> 小学生ｵﾎｰﾂｸ | H83: =データ貼付!B81 -> 北見 | I83: =データ貼付!C81 -> 43632 | J83: =データ貼付!F81 -> 桐山晴良 | K83: =データ貼付!G81 -> 2085 | L83: =データ貼付!H81 -> 決 | M83: =データ貼付!I81 -> 美幌XC少年団 | N83: =データ貼付!J81 -> 3 | O83: =データ貼付!K81 -> 0
A84: 81 | B84: 小学男子ｼﾞｬﾍﾞﾘｯｸﾎﾞｰﾙ投23 | C84: =J84&COUNTIF($J$4:J84,J84) -> 後藤大輔1 | D84: =データ貼付!D82&データ貼付!E82 -> 小学男子ｼﾞｬﾍﾞﾘｯｸﾎﾞｰﾙ投 | E84: =データ貼付!G82+ROW()/1000000 -> 2917.000084 | F84: 23 | G84: =データ貼付!A82 -> フィールド記録会 | H84: =データ貼付!B82 -> 網走 | I84: =データ貼付!C82 -> 43624 | J84: =データ貼付!F82 -> 後藤大輔 | K84: =データ貼付!G82 -> 2917 | L84: =データ貼付!H82 -> 決 | M84: =データ貼付!I82 -> 美幌RC | N84: =データ貼付!J82 -> 6 | O84: =データ貼付!K82 -> 0
A85: 82 | B85: 小学男子ｼﾞｬﾍﾞﾘｯｸﾎﾞｰﾙ投7 | C85: =J85&COUNTIF($J$4:J85,J85) -> 工藤龍祈1 | D85: =データ貼付!D83&データ貼付!E83 -> 小学男子ｼﾞｬﾍﾞﾘｯｸﾎﾞｰﾙ投 | E85: =データ貼付!G83+ROW()/1000000 -> 3916.000085 | F85: 7 | G85: =データ貼付!A83 -> 選手権 | H85: =データ貼付!B83 -> 北見 | I85: =データ貼付!C83 -> 43596 | J85: =データ貼付!F83 -> 工藤龍祈 | K85: =データ貼付!G83 -> 3916 | L85: =データ貼付!H83 -> 決 | M85: =データ貼付!I83 -> ｵﾎｰﾂｸｷｯｽﾞ | N85: =データ貼付!J83 -> 4 | O85: =データ貼付!K83 -> 0
A86: 83 | B86: 小学男子ｼﾞｬﾍﾞﾘｯｸﾎﾞｰﾙ投1 | C86: =J86&COUNTIF($J$4:J86,J86) -> 荒木碧巴1 | D86: =データ貼付!D84&データ貼付!E84 -> 小学男子ｼﾞｬﾍﾞﾘｯｸﾎﾞｰﾙ投 | E86: =データ貼付!G84+ROW()/1000000 -> 4668.000086 | F86: 1 | G86: =データ貼付!A84 -> 全道小学 | H86: =データ貼付!B84 -> 札幌 | I86: =データ貼付!C84 -> 43661 | J86: =データ貼付!F84 -> 荒木碧巴 | K86: =データ貼付!G84 -> 4668 | L86: =データ貼付!H84 -> 決 | M86: =データ貼付!I84 -> 知床斜里RC | N86: =データ貼付!J84 -> 6 | O86: =データ貼付!K84 -> 0
A87: 84 | B87: 小学女子ｼﾞｬﾍﾞﾘｯｸﾎﾞｰﾙ投7 | C87: =J87&COUNTIF($J$4:J87,J87) -> 佐々木紀香1 | D87: =データ貼付!D85&データ貼付!E85 -> 小学女子ｼﾞｬﾍﾞﾘｯｸﾎﾞｰﾙ投 | E87: =データ貼付!G85+ROW()/1000000 -> 2445.000087 | F87: 7 | G87: =データ貼付!A85 -> 小学生ｵﾎｰﾂｸ | H87: =データ貼付!B85 -> 北見 | I87: =データ貼付!C85 -> 43632 | J87: =データ貼付!F85 -> 佐々木紀香 | K87: =データ貼付!G85 -> 2445 | L87: =データ貼付!H85 -> 決 | M87: =データ貼付!I85 -> 訓子府陸上少年団 | N87: =データ貼付!J85 -> 6 | O87: =データ貼付!K85 -> 0
A88: 85 | B88: 小学男子ｼﾞｬﾍﾞﾘｯｸﾎﾞｰﾙ投42 | C88: =J88&COUNTIF($J$4:J88,J88) -> 佐々木瞬汰1 | D88: =データ貼付!D86&データ貼付!E86 -> 小学男子ｼﾞｬﾍﾞﾘｯｸﾎﾞｰﾙ投 | E88: =データ貼付!G86+ROW()/1000000 -> 2052.000088 | F88: 42 | G88: =データ貼付!A86 -> 選手権 | H88: =データ貼付!B86 -> 北見 | I88: =データ貼付!C86 -> 43596 | J88: =データ貼付!F86 -> 佐々木瞬汰 | K88: =データ貼付!G86 -> 2052 | L88: =データ貼付!H86 -> 決 | M88: =データ貼付!I86 -> 美幌RC | N88: =データ貼付!J86 -> 4 | O88: =データ貼付!K86 -> 0
A89: 86 | B89: 小学男子ｼﾞｬﾍﾞﾘｯｸﾎﾞｰﾙ投27 | C89: =J89&COUNTIF($J$4:J89,J89) -> 佐々木進之介1 | D89: =データ貼付!D87&データ貼付!E87 -> 小学男子ｼﾞｬﾍﾞﾘｯｸﾎﾞｰﾙ投 | E89: =データ貼付!G87+ROW()/1000000 -> 2764.000089 | F89: 27 | G89: =データ貼付!A87 -> 選手権 | H89: =データ貼付!B87 -> 北見 | I89: =データ貼付!C87 -> 43596 | J89: =データ貼付!F87 -> 佐々木進之介 | K89: =データ貼付!G87 -> 2764 | L89: =データ貼付!H87 -> 決 | M89: =データ貼付!I87 -> 知床斜里RC | N89: =データ貼付!J87 -> 5 | O89: =データ貼付!K87 -> 0
A90: 87 | B90: 小学女子ｼﾞｬﾍﾞﾘｯｸﾎﾞｰﾙ投12 | C90: =J90&COUNTIF($J$4:J90,J90) -> 佐藤琉花1 | D90: =データ貼付!D88&データ貼付!E88 -> 小学女子ｼﾞｬﾍﾞﾘｯｸﾎﾞｰﾙ投 | E90: =データ貼付!G88+ROW()/1000000 -> 1206.00009 | F90: 12 | G90: =データ貼付!A88 -> 小学生ｵﾎｰﾂｸ | H90: =データ貼付!B88 -> 北見 | I90: =データ貼付!C88 -> 43632 | J90: =データ貼付!F88 -> 佐藤琉花 | K90: =データ貼付!G88 -> 1206 | L90: =データ貼付!H88 -> 決 | M90: =データ貼付!I88 -> 美幌RC | N90: =データ貼付!J88 -> 5 | O90: =データ貼付!K88 -> 0
A91: 88 | B91: 小学男子ｼﾞｬﾍﾞﾘｯｸﾎﾞｰﾙ投14 | C91: =J91&COUNTIF($J$4:J91,J91) -> 坂口智洋1 | D91: =データ貼付!D89&データ貼付!E89 -> 小学男子ｼﾞｬﾍﾞﾘｯｸﾎﾞｰﾙ投 | E91: =データ貼付!G89+ROW()/1000000 -> 3493.000091 | F91: 14 | G91: =データ貼付!A89 -> 小学生ｵﾎｰﾂｸ | H91: =データ貼付!B89 -> 北見 | I91: =データ貼付!C89 -> 43632 | J91: =データ貼付!F89 -> 坂口智洋 | K91: =データ貼付!G89 -> 3493 | L91: =データ貼付!H89 -> 決 | M91: =データ貼付!I89 -> 常呂陸上少年団 | N91: =データ貼付!J89 -> 6 | O91: =データ貼付!K89 -> 0
A92: 89 | B92: 小学男子ｼﾞｬﾍﾞﾘｯｸﾎﾞｰﾙ投9 | C92: =J92&COUNTIF($J$4:J92,J92) -> 阪口智洋1 | D92: =データ貼付!D90&データ貼付!E90 -> 小学男子ｼﾞｬﾍﾞﾘｯｸﾎﾞｰﾙ投 | E92: =データ貼付!G90+ROW()/1000000 -> 3661.000092 | F92: 9 | G92: =データ貼付!A90 -> 選手権 | H92: =データ貼付!B90 -> 北見 | I92: =データ貼付!C90 -> 43596 | J92: =データ貼付!F90 -> 阪口智洋 | K92: =データ貼付!G90 -> 3661 | L92: =データ貼付!H90 -> 決 | M92: =データ貼付!I90 -> 常呂陸上少年団 | N92: =データ貼付!J90 -> 6 | O92: =データ貼付!K90 -> 0
A93: 90 | B93: 小学男子ｼﾞｬﾍﾞﾘｯｸﾎﾞｰﾙ投33 | C93: =J93&COUNTIF($J$4:J93,J93) -> 三浦正史1 | D93: =データ貼付!D91&データ貼付!E91 -> 小学男子ｼﾞｬﾍﾞﾘｯｸﾎﾞｰﾙ投 | E93: =データ貼付!G91+ROW()/1000000 -> 2440.000093 | F93: 33 | G93: =データ貼付!A91 -> 小学生ｵﾎｰﾂｸ | H93: =データ貼付!B91 -> 北見 | I93: =データ貼付!C91 -> 43632 | J93: =データ貼付!F91 -> 三浦正史 | K93: =データ貼付!G91 -> 2440 | L93: =データ貼付!H91 -> 決 | M93: =データ貼付!I91 -> 美幌RC | N93: =データ貼付!J91 -> 3 | O93: =データ貼付!K91 -> 0
A94: 91 | B94: 小学男子ｼﾞｬﾍﾞﾘｯｸﾎﾞｰﾙ投6 | C94: =J94&COUNTIF($J$4:J94,J94) -> 山田桔虎1 | D94: =データ貼付!D92&データ貼付!E92 -> 小学男子ｼﾞｬﾍﾞﾘｯｸﾎﾞｰﾙ投 | E94: =データ貼付!G92+ROW()/1000000 -> 3942.000094 | F94: 6 | G94: =データ貼付!A92 -> 選手権 | H94: =データ貼付!B92 -> 北見 | I94: =データ貼付!C92 -> 43596 | J94: =データ貼付!F92 -> 山田桔虎 | K94: =データ貼付!G92 -> 3942 | L94: =データ貼付!H92 -> 決 | M94: =データ貼付!I92 -> 常呂陸上少年団 | N94: =データ貼付!J92 -> 6 | O94: =データ貼付!K92 -> 0
A95: 92 | B95: 小学男子ｼﾞｬﾍﾞﾘｯｸﾎﾞｰﾙ投47 | C95: =J95&COUNTIF($J$4:J95,J95) -> 山田悠翔1 | D95: =データ貼付!D93&データ貼付!E93 -> 小学男子ｼﾞｬﾍﾞﾘｯｸﾎﾞｰﾙ投 | E95: =データ貼付!G93+ROW()/1000000 -> 1711.000095 | F95: 47 | G95: =データ貼付!A93 -> 小学生ｵﾎｰﾂｸ | H95: =データ貼付!B93 -> 北見 | I95: =データ貼付!C93 -> 43632 | J95: =データ貼付!F93 -> 山田悠翔 | K95: =データ貼付!G93 -> 1711 | L95: =データ貼付!H93 -> 決 | M95: =データ貼付!I93 -> 常呂陸上少年団 | N95: =データ貼付!J93 -> 4 | O95: =データ貼付!K93 -> 0
A96: 93 | B96: 小学女子ｼﾞｬﾍﾞﾘｯｸﾎﾞｰﾙ投2 | C96: =J96&COUNTIF($J$4:J96,J96) -> 室田心愛1 | D96: =データ貼付!D94&データ貼付!E94 -> 小学女子ｼﾞｬﾍﾞﾘｯｸﾎﾞｰﾙ投 | E96: =データ貼付!G94+ROW()/1000000 -> 3913.000096 | F96: 2 | G96: =データ貼付!A94 -> 選手権 | H96: =データ貼付!B94 -> 北見 | I96: =データ貼付!C94 -> 43596 | J96: =データ貼付!F94 -> 室田心愛 | K96: =データ貼付!G94 -> 3913 | L96: =データ貼付!H94 -> 決 | M96: =データ貼付!I94 -> 常呂陸上少年団 | N96: =データ貼付!J94 -> 6 | O96: =データ貼付!K94 -> 0
A97: 94 | B97: 小学男子ｼﾞｬﾍﾞﾘｯｸﾎﾞｰﾙ投38 | C97: =J97&COUNTIF($J$4:J97,J97) -> 柴田遥斗1 | D97: =データ貼付!D95&データ貼付!E95 -> 小学男子ｼﾞｬﾍﾞﾘｯｸﾎﾞｰﾙ投 | E97: =データ貼付!G95+ROW()/1000000 -> 2094.000097 | F97: 38 | G97: =データ貼付!A95 -> 選手権 | H97: =データ貼付!B95 -> 北見 | I97: =データ貼付!C95 -> 43596 | J97: =データ貼付!F95 -> 柴田遥斗 | K97: =データ貼付!G95 -> 2094 | L97: =データ貼付!H95 -> 決 | M97: =データ貼付!I95 -> ｵﾎｰﾂｸｷｯｽﾞ | N97: =データ貼付!J95 -> 3 | O97: =データ貼付!K95 -> 0
A98: 95 | B98: 小学男子ｼﾞｬﾍﾞﾘｯｸﾎﾞｰﾙ投4 | C98: =J98&COUNTIF($J$4:J98,J98) -> 若月柚樹1 | D98: =データ貼付!D96&データ貼付!E96 -> 小学男子ｼﾞｬﾍﾞﾘｯｸﾎﾞｰﾙ投 | E98: =データ貼付!G96+ROW()/1000000 -> 4366.000098 | F98: 4 | G98: =データ貼付!A96 -> フィールド記録会 | H98: =データ貼付!B96 -> 網走 | I98: =データ貼付!C96 -> 43624 | J98: =データ貼付!F96 -> 若月柚樹 | K98: =データ貼付!G96 -> 4366 | L98: =データ貼付!H96 -> 決 | M98: =データ貼付!I96 -> 美幌RC | N98: =データ貼付!J96 -> 4 | O98: =データ貼付!K96 -> 0
A99: 96 | B99: 小学男子ｼﾞｬﾍﾞﾘｯｸﾎﾞｰﾙ投13 | C99: =J99&COUNTIF($J$4:J99,J99) -> 小笠原昊1 | D99: =データ貼付!D97&データ貼付!E97 -> 小学男子ｼﾞｬﾍﾞﾘｯｸﾎﾞｰﾙ投 | E99: =データ貼付!G97+ROW()/1000000 -> 3498.000099 | F99: 13 | G99: =データ貼付!A97 -> 小学生ｵﾎｰﾂｸ | H99: =データ貼付!B97 -> 北見 | I99: =データ貼付!C97 -> 43632 | J99: =データ貼付!F97 -> 小笠原昊 | K99: =データ貼付!G97 -> 3498 | L99: =データ貼付!H97 -> 決 | M99: =データ貼付!I97 -> 清里陸上少年団 | N99: =データ貼付!J97 -> 6 | O99: =データ貼付!K97 -> 0
A100: 97 | B100: 小学男子ｼﾞｬﾍﾞﾘｯｸﾎﾞｰﾙ投41 | C100: =J100&COUNTIF($J$4:J100,J100) -> 小原尊琉1 | D100: =データ貼付!D98&データ貼付!E98 -> 小学男子ｼﾞｬﾍﾞﾘｯｸﾎﾞｰﾙ投 | E100: =データ貼付!G98+ROW()/1000000 -> 2065.0001 | F100: 41 | G100: =データ貼付!A98 -> 選手権 | H100: =データ貼付!B98 -> 北見 | I100: =データ貼付!C98 -> 43596 | J100: =データ貼付!F98 -> 小原尊琉 | K100: =データ貼付!G98 -> 2065 | L100: =データ貼付!H98 -> 決 | M100: =データ貼付!I98 -> 常呂陸上少年団 | N100: =データ貼付!J98 -> 4 | O100: =データ貼付!K98 -> 0
A101: 98 | B101: 小学女子ｼﾞｬﾍﾞﾘｯｸﾎﾞｰﾙ投5 | C101: =J101&COUNTIF($J$4:J101,J101) -> 松本琉南1 | D101: =データ貼付!D99&データ貼付!E99 -> 小学女子ｼﾞｬﾍﾞﾘｯｸﾎﾞｰﾙ投 | E101: =データ貼付!G99+ROW()/1000000 -> 3296.000101 | F101: 5 | G101: =データ貼付!A99 -> 全道小学 | H101: =データ貼付!B99 -> 札幌 | I101: =データ貼付!C99 -> 43661 | J101: =データ貼付!F99 -> 松本琉南 | K101: =データ貼付!G99 -> 3296 | L101: =データ貼付!H99 -> 決 | M101: =データ貼付!I99 -> 美幌RC | N101: =データ貼付!J99 -> 5 | O101: =データ貼付!K99 -> 0
A102: 99 | B102: 小学男子ｼﾞｬﾍﾞﾘｯｸﾎﾞｰﾙ投31 | C102: =J102&COUNTIF($J$4:J102,J102) -> 上原佑葵1 | D102: =データ貼付!D100&データ貼付!E100 -> 小学男子ｼﾞｬﾍﾞﾘｯｸﾎﾞｰﾙ投 | E102: =データ貼付!G100+ROW()/1000000 -> 2523.000102 | F102: 31 | G102: =データ貼付!A100 -> 選手権 | H102: =データ貼付!B100 -> 北見 | I102: =データ貼付!C100 -> 43596 | J102: =データ貼付!F100 -> 上原佑葵 | K102: =データ貼付!G100 -> 2523 | L102: =データ貼付!H100 -> 決 | M102: =データ貼付!I100 -> ｵﾎｰﾂｸSS | N102: =データ貼付!J100 -> 4 | O102: =データ貼付!K100 -> 0
A103: 100 | B103: 小学男子ｼﾞｬﾍﾞﾘｯｸﾎﾞｰﾙ投46 | C103: =J103&COUNTIF($J$4:J103,J103) -> 新谷一真1 | D103: =データ貼付!D101&データ貼付!E101 -> 小学男子ｼﾞｬﾍﾞﾘｯｸﾎﾞｰﾙ投 | E103: =データ貼付!G101+ROW()/1000000 -> 1744.000103 | F103: 46 | G103: =データ貼付!A101 -> 小学生ｵﾎｰﾂｸ | H103: =データ貼付!B101 -> 北見 | I103: =データ貼付!C101 -> 43632 | J103: =データ貼付!F101 -> 新谷一真 | K103: =データ貼付!G101 -> 1744 | L103: =データ貼付!H101 -> 決 | M103: =データ貼付!I101 -> ｵﾎｰﾂｸｷｯｽﾞ | N103: =データ貼付!J101 -> 3 | O103: =データ貼付!K101 -> 0
A104: 101 | B104: 小学男子ｼﾞｬﾍﾞﾘｯｸﾎﾞｰﾙ投32 | C104: =J104&COUNTIF($J$4:J104,J104) -> 森谷翔1 | D104: =データ貼付!D102&データ貼付!E102 -> 小学男子ｼﾞｬﾍﾞﾘｯｸﾎﾞｰﾙ投 | E104: =データ貼付!G102+ROW()/1000000 -> 2508.000104 | F104: 32 | G104: =データ貼付!A102 -> 小学生ｵﾎｰﾂｸ | H104: =データ貼付!B102 -> 北見 | I104: =データ貼付!C102 -> 43632 | J104: =データ貼付!F102 -> 森谷翔 | K104: =データ貼付!G102 -> 2508 | L104: =データ貼付!H102 -> 決 | M104: =データ貼付!I102 -> 訓子府陸上少年団 | N104: =データ貼付!J102 -> 3 | O104: =データ貼付!K102 -> 0
A105: 102 | B105: 小学男子ｼﾞｬﾍﾞﾘｯｸﾎﾞｰﾙ投29 | C105: =J105&COUNTIF($J$4:J105,J105) -> 須藤陸都1 | D105: =データ貼付!D103&データ貼付!E103 -> 小学男子ｼﾞｬﾍﾞﾘｯｸﾎﾞｰﾙ投 | E105: =データ貼付!G103+ROW()/1000000 -> 2685.000105 | F105: 29 | G105: =データ貼付!A103 -> 小学生ｵﾎｰﾂｸ | H105: =データ貼付!B103 -> 北見 | I105: =データ貼付!C103 -> 43632 | J105: =データ貼付!F103 -> 須藤陸都 | K105: =データ貼付!G103 -> 2685 | L105: =データ貼付!H103 -> 決 | M105: =データ貼付!I103 -> 北見美山小 | N105: =データ貼付!J103 -> 3 | O105: =データ貼付!K103 -> 0
A106: 103 | B106: 小学男子ｼﾞｬﾍﾞﾘｯｸﾎﾞｰﾙ投22 | C106: =J106&COUNTIF($J$4:J106,J106) -> 成ヶ澤隼人1 | D106: =データ貼付!D104&データ貼付!E104 -> 小学男子ｼﾞｬﾍﾞﾘｯｸﾎﾞｰﾙ投 | E106: =データ貼付!G104+ROW()/1000000 -> 2997.000106 | F106: 22 | G106: =データ貼付!A104 -> 全道小学 | H106: =データ貼付!B104 -> 札幌 | I106: =データ貼付!C104 -> 43660 | J106: =データ貼付!F104 -> 成ヶ澤隼人 | K106: =データ貼付!G104 -> 2997 | L106: =データ貼付!H104 -> 決 | M106: =データ貼付!I104 -> ｵﾎｰﾂｸSS | N106: =データ貼付!J104 -> 3 | O106: =データ貼付!K104 -> 0
A107: 104 | B107: 小学女子ｼﾞｬﾍﾞﾘｯｸﾎﾞｰﾙ投13 | C107: =J107&COUNTIF($J$4:J107,J107) -> 石川知優1 | D107: =データ貼付!D105&データ貼付!E105 -> 小学女子ｼﾞｬﾍﾞﾘｯｸﾎﾞｰﾙ投 | E107: =データ貼付!G105+ROW()/1000000 -> 1022.000107 | F107: 13 | G107: =データ貼付!A105 -> 選手権 | H107: =データ貼付!B105 -> 北見 | I107: =データ貼付!C105 -> 43596 | J107: =データ貼付!F105 -> 石川知優 | K107: =データ貼付!G105 -> 1022 | L107: =データ貼付!H105 -> 決 | M107: =データ貼付!I105 -> 美幌RC | N107: =データ貼付!J105 -> 3 | O107: =データ貼付!K105 -> 0
A108: 105 | B108: 小学女子ｼﾞｬﾍﾞﾘｯｸﾎﾞｰﾙ投11 | C108: =J108&COUNTIF($J$4:J108,J108) -> 相馬羽夏1 | D108: =データ貼付!D106&データ貼付!E106 -> 小学女子ｼﾞｬﾍﾞﾘｯｸﾎﾞｰﾙ投 | E108: =データ貼付!G106+ROW()/1000000 -> 1397.000108 | F108: 11 | G108: =データ貼付!A106 -> 小学生ｵﾎｰﾂｸ | H108: =データ貼付!B106 -> 北見 | I108: =データ貼付!C106 -> 43632 | J108: =データ貼付!F106 -> 相馬羽夏 | K108: =データ貼付!G106 -> 1397 | L108: =データ貼付!H106 -> 決 | M108: =データ貼付!I106 -> ｵﾎｰﾂｸｷｯｽﾞ | N108: =データ貼付!J106 -> 3 | O108: =データ貼付!K106 -> 0
A109: 106 | B109: 小学男子ｼﾞｬﾍﾞﾘｯｸﾎﾞｰﾙ投45 | C109: =J109&COUNTIF($J$4:J109,J109) -> 大東啓1 | D109: =データ貼付!D107&データ貼付!E107 -> 小学男子ｼﾞｬﾍﾞﾘｯｸﾎﾞｰﾙ投 | E109: =データ貼付!G107+ROW()/1000000 -> 1883.000109 | F109: 45 | G109: =データ貼付!A107 -> 選手権 | H109: =データ貼付!B107 -> 北見 | I109: =データ貼付!C107 -> 43596 | J109: =データ貼付!F107 -> 大東啓 | K109: =データ貼付!G107 -> 1883 | L109: =データ貼付!H107 -> 決 | M109: =データ貼付!I107 -> 美幌RC | N109: =データ貼付!J107 -> 5 | O109: =データ貼付!K107 -> 0
A110: 107 | B110: 小学男子ｼﾞｬﾍﾞﾘｯｸﾎﾞｰﾙ投49 | C110: =J110&COUNTIF($J$4:J110,J110) -> 大木駿徹1 | D110: =データ貼付!D108&データ貼付!E108 -> 小学男子ｼﾞｬﾍﾞﾘｯｸﾎﾞｰﾙ投 | E110: =データ貼付!G108+ROW()/1000000 -> 1228.00011 | F110: 49 | G110: =データ貼付!A108 -> 小学生ｵﾎｰﾂｸ | H110: =データ貼付!B108 -> 北見 | I110: =データ貼付!C108 -> 43632 | J110: =データ貼付!F108 -> 大木駿徹 | K110: =データ貼付!G108 -> 1228 | L110: =データ貼付!H108 -> 決 | M110: =データ貼付!I108 -> ｵﾎｰﾂｸｷｯｽﾞ | N110: =データ貼付!J108 -> 3 | O110: =データ貼付!K108 -> 0
A111: 108 | B111: 小学男子ｼﾞｬﾍﾞﾘｯｸﾎﾞｰﾙ投44 | C111: =J111&COUNTIF($J$4:J111,J111) -> 大友優雅1 | D111: =データ貼付!D109&データ貼付!E109 -> 小学男子ｼﾞｬﾍﾞﾘｯｸﾎﾞｰﾙ投 | E111: =データ貼付!G109+ROW()/1000000 -> 1983.000111 | F111: 44 | G111: =データ貼付!A109 -> フィールド記録会 | H111: =データ貼付!B109 -> 網走 | I111: =データ貼付!C109 -> 43624 | J111: =データ貼付!F109 -> 大友優雅 | K111: =データ貼付!G109 -> 1983 | L111: =データ貼付!H109 -> 決 | M111: =データ貼付!I109 -> 知床斜里RC | N111: =データ貼付!J109 -> 6 | O111: =データ貼付!K109 -> 0
A112: 109 | B112: 小学男子ｼﾞｬﾍﾞﾘｯｸﾎﾞｰﾙ投19 | C112: =J112&COUNTIF($J$4:J112,J112) -> 谷浦晴磨1 | D112: =データ貼付!D110&データ貼付!E110 -> 小学男子ｼﾞｬﾍﾞﾘｯｸﾎﾞｰﾙ投 | E112: =データ貼付!G110+ROW()/1000000 -> 3160.000112 | F112: 19 | G112: =データ貼付!A110 -> フィールド記録会 | H112: =データ貼付!B110 -> 網走 | I112: =データ貼付!C110 -> 43624 | J112: =データ貼付!F110 -> 谷浦晴磨 | K112: =データ貼付!G110 -> 3160 | L112: =データ貼付!H110 -> 決 | M112: =データ貼付!I110 -> 美幌RC | N112: =データ貼付!J110 -> 4 | O112: =データ貼付!K110 -> 0
A113: 110 | B113: 小学女子ｼﾞｬﾍﾞﾘｯｸﾎﾞｰﾙ投9 | C113: =J113&COUNTIF($J$4:J113,J113) -> 谷脇那由多1 | D113: =データ貼付!D111&データ貼付!E111 -> 小学女子ｼﾞｬﾍﾞﾘｯｸﾎﾞｰﾙ投 | E113: =データ貼付!G111+ROW()/1000000 -> 1824.000113 | F113: 9 | G113: =データ貼付!A111 -> 全道小学 | H113: =データ貼付!B111 -> 札幌 | I113: =データ貼付!C111 -> 43660 | J113: =データ貼付!F111 -> 谷脇那由多 | K113: =データ貼付!G111 -> 1824 | L113: =データ貼付!H111 -> 決 | M113: =データ貼付!I111 -> ｵﾎｰﾂｸｷｯｽﾞ | N113: =データ貼付!J111 -> 3 | O113: =データ貼付!K111 -> 0
A114: 111 | B114: 小学男子ｼﾞｬﾍﾞﾘｯｸﾎﾞｰﾙ投16 | C114: =J114&COUNTIF($J$4:J114,J114) -> 中村海杜1 | D114: =データ貼付!D112&データ貼付!E112 -> 小学男子ｼﾞｬﾍﾞﾘｯｸﾎﾞｰﾙ投 | E114: =データ貼付!G112+ROW()/1000000 -> 3315.000114 | F114: 16 | G114: =データ貼付!A112 -> 小学生ｵﾎｰﾂｸ | H114: =データ貼付!B112 -> 北見 | I114: =データ貼付!C112 -> 43632 | J114: =データ貼付!F112 -> 中村海杜 | K114: =データ貼付!G112 -> 3315 | L114: =データ貼付!H112 -> 決 | M114: =データ貼付!I112 -> 知床斜里RC | N114: =データ貼付!J112 -> 6 | O114: =データ貼付!K112 -> 0
A115: 112 | B115: 小学男子ｼﾞｬﾍﾞﾘｯｸﾎﾞｰﾙ投18 | C115: =J115&COUNTIF($J$4:J115,J115) -> 中村星汰1 | D115: =データ貼付!D113&データ貼付!E113 -> 小学男子ｼﾞｬﾍﾞﾘｯｸﾎﾞｰﾙ投 | E115: =データ貼付!G113+ROW()/1000000 -> 3229.000115 | F115: 18 | G115: =データ貼付!A113 -> フィールド記録会 | H115: =データ貼付!B113 -> 網走 | I115: =データ貼付!C113 -> 43624 | J115: =データ貼付!F113 -> 中村星汰 | K115: =データ貼付!G113 -> 3229 | L115: =データ貼付!H113 -> 決 | M115: =データ貼付!I113 -> 知床斜里RC | N115: =データ貼付!J113 -> 6 | O115: =データ貼付!K113 -> 0
A116: 113 | B116: 小学男子ｼﾞｬﾍﾞﾘｯｸﾎﾞｰﾙ投8 | C116: =J116&COUNTIF($J$4:J116,J116) -> 中村直1 | D116: =データ貼付!D114&データ貼付!E114 -> 小学男子ｼﾞｬﾍﾞﾘｯｸﾎﾞｰﾙ投 | E116: =データ貼付!G114+ROW()/1000000 -> 3844.000116 | F116: 8 | G116: =データ貼付!A114 -> 選手権 | H116: =データ貼付!B114 -> 北見 | I116: =データ貼付!C114 -> 43596 | J116: =データ貼付!F114 -> 中村直 | K116: =データ貼付!G114 -> 3844 | L116: =データ貼付!H114 -> 決 | M116: =データ貼付!I114 -> 常呂陸上少年団 | N116: =データ貼付!J114 -> 6 | O116: =データ貼付!K114 -> 0
A117: 114 | B117: 小学男子ｼﾞｬﾍﾞﾘｯｸﾎﾞｰﾙ投24 | C117: =J117&COUNTIF($J$4:J117,J117) -> 長谷川大巧1 | D117: =データ貼付!D115&データ貼付!E115 -> 小学男子ｼﾞｬﾍﾞﾘｯｸﾎﾞｰﾙ投 | E117: =データ貼付!G115+ROW()/1000000 -> 2873.000117 | F117: 24 | G117: =データ貼付!A115 -> 選手権 | H117: =データ貼付!B115 -> 北見 | I117: =データ貼付!C115 -> 43596 | J117: =データ貼付!F115 -> 長谷川大巧 | K117: =データ貼付!G115 -> 2873 | L117: =データ貼付!H115 -> 決 | M117: =データ貼付!I115 -> 美幌RC | N117: =データ貼付!J115 -> 3 | O117: =データ貼付!K115 -> 0
A118: 115 | B118: 小学女子ｼﾞｬﾍﾞﾘｯｸﾎﾞｰﾙ投3 | C118: =J118&COUNTIF($J$4:J118,J118) -> 田辺采子1 | D118: =データ貼付!D116&データ貼付!E116 -> 小学女子ｼﾞｬﾍﾞﾘｯｸﾎﾞｰﾙ投 | E118: =データ貼付!G116+ROW()/1000000 -> 3611.000118 | F118: 3 | G118: =データ貼付!A116 -> 全道小学 | H118: =データ貼付!B116 -> 札幌 | I118: =データ貼付!C116 -> 43661 | J118: =データ貼付!F116 -> 田辺采子 | K118: =データ貼付!G116 -> 3611 | L118: =データ貼付!H116 -> 決 | M118: =データ貼付!I116 -> ｵﾎｰﾂｸｷｯｽﾞ | N118: =データ貼付!J116 -> 5 | O118: =データ貼付!K116 -> 0
A119: 116 | B119: 小学男子ｼﾞｬﾍﾞﾘｯｸﾎﾞｰﾙ投21 | C119: =J119&COUNTIF($J$4:J119,J119) -> 梅田彪牙1 | D119: =データ貼付!D117&データ貼付!E117 -> 小学男子ｼﾞｬﾍﾞﾘｯｸﾎﾞｰﾙ投 | E119: =データ貼付!G117+ROW()/1000000 -> 3101.000119 | F119: 21 | G119: =データ貼付!A117 -> 小学生ｵﾎｰﾂｸ | H119: =データ貼付!B117 -> 北見 | I119: =データ貼付!C117 -> 43632 | J119: =データ貼付!F117 -> 梅田彪牙 | K119: =データ貼付!G117 -> 3101 | L119: =データ貼付!H117 -> 決 | M119: =データ貼付!I117 -> 美幌RC | N119: =データ貼付!J117 -> 5 | O119: =データ貼付!K117 -> 0
A120: 117 | B120: 小学男子ｼﾞｬﾍﾞﾘｯｸﾎﾞｰﾙ投3 | C120: =J120&COUNTIF($J$4:J120,J120) -> 白石大和1 | D120: =データ貼付!D118&データ貼付!E118 -> 小学男子ｼﾞｬﾍﾞﾘｯｸﾎﾞｰﾙ投 | E120: =データ貼付!G118+ROW()/1000000 -> 4443.00012 | F120: 3 | G120: =データ貼付!A118 -> 全道小学 | H120: =データ貼付!B118 -> 札幌 | I120: =データ貼付!C118 -> 43661 | J120: =データ貼付!F118 -> 白石大和 | K120: =データ貼付!G118 -> 4443 | L120: =データ貼付!H118 -> 決 | M120: =データ貼付!I118 -> ｵﾎｰﾂｸｷｯｽﾞ | N120: =データ貼付!J118 -> 5 | O120: =データ貼付!K118 -> 0
A121: 118 | B121: 小学男子ｼﾞｬﾍﾞﾘｯｸﾎﾞｰﾙ投37 | C121: =J121&COUNTIF($J$4:J121,J121) -> 畑谷颯樹1 | D121: =データ貼付!D119&データ貼付!E119 -> 小学男子ｼﾞｬﾍﾞﾘｯｸﾎﾞｰﾙ投 | E121: =データ貼付!G119+ROW()/1000000 -> 2182.000121 | F121: 37 | G121: =データ貼付!A119 -> フィールド記録会 | H121: =データ貼付!B119 -> 網走 | I121: =データ貼付!C119 -> 43624 | J121: =データ貼付!F119 -> 畑谷颯樹 | K121: =データ貼付!G119 -> 2182 | L121: =データ貼付!H119 -> 決 | M121: =データ貼付!I119 -> 知床アスリートクラブ | N121: =データ貼付!J119 -> 3 | O121: =データ貼付!K119 -> 0
A122: 119 | B122: 小学女子ｼﾞｬﾍﾞﾘｯｸﾎﾞｰﾙ投8 | C122: =J122&COUNTIF($J$4:J122,J122) -> 尾中ふたば1 | D122: =データ貼付!D120&データ貼付!E120 -> 小学女子ｼﾞｬﾍﾞﾘｯｸﾎﾞｰﾙ投 | E122: =データ貼付!G120+ROW()/1000000 -> 2263.000122 | F122: 8 | G122: =データ貼付!A120 -> 全道小学 | H122: =データ貼付!B120 -> 札幌 | I122: =データ貼付!C120 -> 43660 | J122: =データ貼付!F120 -> 尾中ふたば | K122: =データ貼付!G120 -> 2263 | L122: =データ貼付!H120 -> 決 | M122: =データ貼付!I120 -> 美幌RC | N122: =データ貼付!J120 -> 4 | O122: =データ貼付!K120 -> 0
A123: 120 | B123: 小学男子ｼﾞｬﾍﾞﾘｯｸﾎﾞｰﾙ投34 | C123: =J123&COUNTIF($J$4:J123,J123) -> 武田航太朗1 | D123: =データ貼付!D121&データ貼付!E121 -> 小学男子ｼﾞｬﾍﾞﾘｯｸﾎﾞｰﾙ投 | E123: =データ貼付!G121+ROW()/1000000 -> 2409.000123 | F123: 34 | G123: =データ貼付!A121 -> 小学生ｵﾎｰﾂｸ | H123: =データ貼付!B121 -> 北見 | I123: =データ貼付!C121 -> 43632 | J123: =データ貼付!F121 -> 武田航太朗 | K123: =データ貼付!G121 -> 2409 | L123: =データ貼付!H121 -> 決 | M123: =データ貼付!I121 -> 常呂陸上少年団 | N123: =データ貼付!J121 -> 4 | O123: =データ貼付!K121 -> 0
A124: 121 | B124: 小学男子ｼﾞｬﾍﾞﾘｯｸﾎﾞｰﾙ投35 | C124: =J124&COUNTIF($J$4:J124,J124) -> 武田航太郎1 | D124: =データ貼付!D122&データ貼付!E122 -> 小学男子ｼﾞｬﾍﾞﾘｯｸﾎﾞｰﾙ投 | E124: =データ貼付!G122+ROW()/1000000 -> 2308.000124 | F124: 35 | G124: =データ貼付!A122 -> 選手権 | H124: =データ貼付!B122 -> 北見 | I124: =データ貼付!C122 -> 43596 | J124: =データ貼付!F122 -> 武田航太郎 | K124: =データ貼付!G122 -> 2308 | L124: =データ貼付!H122 -> 決 | M124: =データ貼付!I122 -> 常呂陸上少年団 | N124: =データ貼付!J122 -> 4 | O124: =データ貼付!K122 -> 0
A125: 122 | B125: 小学男子ｼﾞｬﾍﾞﾘｯｸﾎﾞｰﾙ投17 | C125: =J125&COUNTIF($J$4:J125,J125) -> 福井慶太1 | D125: =データ貼付!D123&データ貼付!E123 -> 小学男子ｼﾞｬﾍﾞﾘｯｸﾎﾞｰﾙ投 | E125: =データ貼付!G123+ROW()/1000000 -> 3268.000125 | F125: 17 | G125: =データ貼付!A123 -> 選手権 | H125: =データ貼付!B123 -> 北見 | I125: =データ貼付!C123 -> 43596 | J125: =データ貼付!F123 -> 福井慶太 | K125: =データ貼付!G123 -> 3268 | L125: =データ貼付!H123 -> 決 | M125: =データ貼付!I123 -> ｵﾎｰﾂｸｷｯｽﾞ | N125: =データ貼付!J123 -> 3 | O125: =データ貼付!K123 -> 0
A126: 123 | B126: 小学男子ｼﾞｬﾍﾞﾘｯｸﾎﾞｰﾙ投48 | C126: =J126&COUNTIF($J$4:J126,J126) -> 平沢敦斗1 | D126: =データ貼付!D124&データ貼付!E124 -> 小学男子ｼﾞｬﾍﾞﾘｯｸﾎﾞｰﾙ投 | E126: =データ貼付!G124+ROW()/1000000 -> 1586.000126 | F126: 48 | G126: =データ貼付!A124 -> 選手権 | H126: =データ貼付!B124 -> 北見 | I126: =データ貼付!C124 -> 43596 | J126: =データ貼付!F124 -> 平沢敦斗 | K126: =データ貼付!G124 -> 1586 | L126: =データ貼付!H124 -> 決 | M126: =データ貼付!I124 -> ｵﾎｰﾂｸｷｯｽﾞ | N126: =データ貼付!J124 -> 3 | O126: =データ貼付!K124 -> 0
A127: 124 | B127: 小学男子ｼﾞｬﾍﾞﾘｯｸﾎﾞｰﾙ投39 | C127: =J127&COUNTIF($J$4:J127,J127) -> 堀田侑希1 | D127: =データ貼付!D125&データ貼付!E125 -> 小学男子ｼﾞｬﾍﾞﾘｯｸﾎﾞｰﾙ投 | E127: =データ貼付!G125+ROW()/1000000 -> 2087.000127 | F127: 39 | G127: =データ貼付!A125 -> 小学生ｵﾎｰﾂｸ | H127: =データ貼付!B125 -> 北見 | I127: =データ貼付!C125 -> 43632 | J127: =データ貼付!F125 -> 堀田侑希 | K127: =データ貼付!G125 -> 2087 | L127: =データ貼付!H125 -> 決 | M127: =データ貼付!I125 -> ｵﾎｰﾂｸｷｯｽﾞ | N127: =データ貼付!J125 -> 3 | O127: =データ貼付!K125 -> 0
A128: 125 | B128: 小学男子ｼﾞｬﾍﾞﾘｯｸﾎﾞｰﾙ投5 | C128: =J128&COUNTIF($J$4:J128,J128) -> 本田櫂晴1 | D128: =データ貼付!D126&データ貼付!E126 -> 小学男子ｼﾞｬﾍﾞﾘｯｸﾎﾞｰﾙ投 | E128: =データ貼付!G126+ROW()/1000000 -> 3971.000128 | F128: 5 | G128: =データ貼付!A126 -> フィールド記録会 | H128: =データ貼付!B126 -> 網走 | I128: =データ貼付!C126 -> 43624 | J128: =データ貼付!F126 -> 本田櫂晴 | K128: =データ貼付!G126 -> 3971 | L128: =データ貼付!H126 -> 決 | M128: =データ貼付!I126 -> ｵﾎｰﾂｸｷｯｽﾞ | N128: =データ貼付!J126 -> 5 | O128: =データ貼付!K126 -> 0
A129: 126 | B129: 小学女子ｼﾞｬﾍﾞﾘｯｸﾎﾞｰﾙ投6 | C129: =J129&COUNTIF($J$4:J129,J129) -> 木村美桜1 | D129: =データ貼付!D127&データ貼付!E127 -> 小学女子ｼﾞｬﾍﾞﾘｯｸﾎﾞｰﾙ投 | E129: =データ貼付!G127+ROW()/1000000 -> 2463.000129 | F129: 6 | G129: =データ貼付!A127 -> 小学生ｵﾎｰﾂｸ | H129: =データ貼付!B127 -> 北見 | I129: =データ貼付!C127 -> 43632 | J129: =データ貼付!F127 -> 木村美桜 | K129: =データ貼付!G127 -> 2463 | L129: =データ貼付!H127 -> 決 | M129: =データ貼付!I127 -> 常呂陸上少年団 | N129: =データ貼付!J127 -> 3 | O129: =データ貼付!K127 -> 0
A130: 127 | B130: 小学男子ｼﾞｬﾍﾞﾘｯｸﾎﾞｰﾙ投30 | C130: =J130&COUNTIF($J$4:J130,J130) -> 澤田涼1 | D130: =データ貼付!D128&データ貼付!E128 -> 小学男子ｼﾞｬﾍﾞﾘｯｸﾎﾞｰﾙ投 | E130: =データ貼付!G128+ROW()/1000000 -> 2617.00013 | F130: 30 | G130: =データ貼付!A128 -> 選手権 | H130: =データ貼付!B128 -> 北見 | I130: =データ貼付!C128 -> 43596 | J130: =データ貼付!F128 -> 澤田涼 | K130: =データ貼付!G128 -> 2617 | L130: =データ貼付!H128 -> 決 | M130: =データ貼付!I128 -> 知床斜里RC | N130: =データ貼付!J128 -> 5 | O130: =データ貼付!K128 -> 0
A131: 128 | B131: 小学男子ｼﾞｬﾍﾞﾘｯｸﾎﾞｰﾙ投26 | C131: =J131&COUNTIF($J$4:J131,J131) -> 齋藤匡樹1 | D131: =データ貼付!D129&データ貼付!E129 -> 小学男子ｼﾞｬﾍﾞﾘｯｸﾎﾞｰﾙ投 | E131: =データ貼付!G129+ROW()/1000000 -> 2779.000131 | F131: 26 | G131: =データ貼付!A129 -> 小学生ｵﾎｰﾂｸ | H131: =データ貼付!B129 -> 北見 | I131: =データ貼付!C129 -> 43632 | J131: =データ貼付!F129 -> 齋藤匡樹 | K131: =データ貼付!G129 -> 2779 | L131: =データ貼付!H129 -> 決 | M131: =データ貼付!I129 -> 網走陸上少年団 | N131: =データ貼付!J129 -> 5 | O131: =データ貼付!K129 -> 0
A132: 129 | B132: 小学男子ｼﾞｬﾍﾞﾘｯｸﾎﾞｰﾙ投28 | C132: =J132&COUNTIF($J$4:J132,J132) -> 髙橋信宗1 | D132: =データ貼付!D130&データ貼付!E130 -> 小学男子ｼﾞｬﾍﾞﾘｯｸﾎﾞｰﾙ投 | E132: =データ貼付!G130+ROW()/1000000 -> 2727.000132 | F132: 28 | G132: =データ貼付!A130 -> 選手権 | H132: =データ貼付!B130 -> 北見 | I132: =データ貼付!C130 -> 43596 | J132: =データ貼付!F130 -> 髙橋信宗 | K132: =データ貼付!G130 -> 2727 | L132: =データ貼付!H130 -> 決 | M132: =データ貼付!I130 -> 知床斜里RC | N132: =データ貼付!J130 -> 5 | O132: =データ貼付!K130 -> 0
A133: 130 | B133: =D133&F133 -> 一般女子ハンマー投1 | C133: =J133&COUNTIF($J$4:J133,J133) -> 阿部冬彩1 | D133: =データ貼付!D131&データ貼付!E131 -> 一般女子ハンマー投 | E133: =データ貼付!G131+ROW()/1000000 -> 4443.000133 | F133: =SUMPRODUCT(($D$4:$D$903=D133)*($E$4:$E$903>E133))+1 -> 1 | G133: =データ貼付!A131 -> 道選手権 | H133: =データ貼付!B131 -> 網走 | I133: =データ貼付!C131 -> 43687 | J133: =データ貼付!F131 -> 阿部冬彩 | K133: =データ貼付!G131 -> 4443 | L133: =データ貼付!H131 -> 決 | M133: =データ貼付!I131 -> 順天堂大 | N133: =データ貼付!J131 -> 2 | O133: =データ貼付!K131 -> 0
A134: 131 | B134: 高校男子ハンマー投10 | C134: =J134&COUNTIF($J$4:J134,J134) -> 夏野克規1 | D134: =データ貼付!D132&データ貼付!E132 -> 高校男子ハンマー投 | E134: =データ貼付!G132+ROW()/1000000 -> 1878.000134 | F134: 10 | G134: =データ貼付!A132 -> 高体連支部 | H134: =データ貼付!B132 -> 北見 | I134: =データ貼付!C132 -> 43608 | J134: =データ貼付!F132 -> 夏野克規 | K134: =データ貼付!G132 -> 1878 | L134: =データ貼付!H132 -> 決 | M134: =データ貼付!I132 -> 遠軽高 | N134: =データ貼付!J132 -> 1 | O134: =データ貼付!K132 -> 0
A135: 132 | B135: 一般男子ハンマー投1 | C135: =J135&COUNTIF($J$4:J135,J135) -> 岩越健太1 | D135: =データ貼付!D133&データ貼付!E133 -> 一般男子ハンマー投 | E135: =データ貼付!G133+ROW()/1000000 -> 4636.000135 | F135: 1 | G135: =データ貼付!A133 -> 道選手権 | H135: =データ貼付!B133 -> 網走 | I135: =データ貼付!C133 -> 43687 | J135: =データ貼付!F133 -> 岩越健太 | K135: =データ貼付!G133 -> 4636 | L135: =データ貼付!H133 -> 決 | M135: =データ貼付!I133 -> オホーツクAC | N135: =データ貼付!J133 -> 0 | O135: =データ貼付!K133 -> 0
A136: 133 | B136: 高校女子ハンマー投2 | C136: =J136&COUNTIF($J$4:J136,J136) -> 金澤茉梨亜1 | D136: =データ貼付!D134&データ貼付!E134 -> 高校女子ハンマー投 | E136: =データ貼付!G134+ROW()/1000000 -> 3941.000136 | F136: 2 | G136: =データ貼付!A134 -> フィールド記録会 | H136: =データ貼付!B134 -> 網走 | I136: =データ貼付!C134 -> 43624 | J136: =データ貼付!F134 -> 金澤茉梨亜 | K136: =データ貼付!G134 -> 3941 | L136: =データ貼付!H134 -> 決 | M136: =データ貼付!I134 -> 遠軽高 | N136: =データ貼付!J134 -> 3 | O136: =データ貼付!K134 -> 0
A137: 134 | B137: 高校男子ハンマー投7 | C137: =J137&COUNTIF($J$4:J137,J137) -> 工藤颯斗1 | D137: =データ貼付!D135&データ貼付!E135 -> 高校男子ハンマー投 | E137: =データ貼付!G135+ROW()/1000000 -> 3036.000137 | F137: 7 | G137: =データ貼付!A135 -> 高体連支部 | H137: =データ貼付!B135 -> 北見 | I137: =データ貼付!C135 -> 43608 | J137: =データ貼付!F135 -> 工藤颯斗 | K137: =データ貼付!G135 -> 3036 | L137: =データ貼付!H135 -> 決 | M137: =データ貼付!I135 -> 網走南ヶ丘高 | N137: =データ貼付!J135 -> 3 | O137: =データ貼付!K135 -> 0
A138: 135 | B138: 高校男子ハンマー投8 | C138: =J138&COUNTIF($J$4:J138,J138) -> 高宮魁1 | D138: =データ貼付!D136&データ貼付!E136 -> 高校男子ハンマー投 | E138: =データ貼付!G136+ROW()/1000000 -> 2658.000138 | F138: 8 | G138: =データ貼付!A136 -> 記録会４戦 | H138: =データ貼付!B136 -> 北見 | I138: =データ貼付!C136 -> 43681 | J138: =データ貼付!F136 -> 高宮魁 | K138: =データ貼付!G136 -> 2658 | L138: =データ貼付!H136 -> 決 | M138: =データ貼付!I136 -> 雄武高 | N138: =データ貼付!J136 -> 1 | O138: =データ貼付!K136 -> 0
A139: 136 | B139: 高校女子ハンマー投6 | C139: =J139&COUNTIF($J$4:J139,J139) -> 高橋愛唯1 | D139: =データ貼付!D137&データ貼付!E137 -> 高校女子ハンマー投 | E139: =データ貼付!G137+ROW()/1000000 -> 2259.000139 | F139: 6 | G139: =データ貼付!A137 -> 全道高校新人 | H139: =データ貼付!B137 -> 函館 | I139: =データ貼付!C137 -> 9/18 | J139: =データ貼付!F137 -> 高橋愛唯 | K139: =データ貼付!G137 -> 2259 | L139: =データ貼付!H137 -> 決 | M139: =データ貼付!I137 -> 遠軽高 | N139: =データ貼付!J137 -> 2 | O139: =データ貼付!K137 -> 0
A140: 137 | B140: 高校男子ハンマー投5 | C140: =J140&COUNTIF($J$4:J140,J140) -> 高嶋祐太1 | D140: =データ貼付!D138&データ貼付!E138 -> 高校男子ハンマー投 | E140: =データ貼付!G138+ROW()/1000000 -> 3780.00014 | F140: 5 | G140: =データ貼付!A138 -> 記録会４戦 | H140: =データ貼付!B138 -> 北見 | I140: =データ貼付!C138 -> 43681 | J140: =データ貼付!F138 -> 高嶋祐太 | K140: =データ貼付!G138 -> 3780 | L140: =データ貼付!H138 -> 決 | M140: =データ貼付!I138 -> 遠軽高 | N140: =データ貼付!J138 -> 2 | O140: =データ貼付!K138 -> 0
A141: 138 | B141: 高校男子ハンマー投3 | C141: =J141&COUNTIF($J$4:J141,J141) -> 佐川翔流1 | D141: =データ貼付!D139&データ貼付!E139 -> 高校男子ハンマー投 | E141: =データ貼付!G139+ROW()/1000000 -> 3888.000141 | F141: 3 | G141: =データ貼付!A139 -> 秋季陸上 | H141: =データ貼付!B139 -> 網走 | I141: =データ貼付!C139 -> 43715 | J141: =データ貼付!F139 -> 佐川翔流 | K141: =データ貼付!G139 -> 3888 | L141: =データ貼付!H139 -> 決 | M141: =データ貼付!I139 -> 遠軽高 | N141: =データ貼付!J139 -> 2 | O141: =データ貼付!K139 -> 0
A142: 139 | B142: 高校男子ハンマー投1 | C142: =J142&COUNTIF($J$4:J142,J142) -> 佐川翔琉1 | D142: =データ貼付!D140&データ貼付!E140 -> 高校男子ハンマー投 | E142: =データ貼付!G140+ROW()/1000000 -> 4035.000142 | F142: 1 | G142: =データ貼付!A140 -> 高体連支部 | H142: =データ貼付!B140 -> 北見 | I142: =データ貼付!C140 -> 43608 | J142: =データ貼付!F140 -> 佐川翔琉 | K142: =データ貼付!G140 -> 4035 | L142: =データ貼付!H140 -> 決 | M142: =データ貼付!I140 -> 遠軽高 | N142: =データ貼付!J140 -> 2 | O142: =データ貼付!K140 -> 0
A143: 140 | B143: 高校男子ハンマー投6 | C143: =J143&COUNTIF($J$4:J143,J143) -> 佐藤汰希1 | D143: =データ貼付!D141&データ貼付!E141 -> 高校男子ハンマー投 | E143: =データ貼付!G141+ROW()/1000000 -> 3577.000143 | F143: 6 | G143: =データ貼付!A141 -> 高校新人 | H143: =データ貼付!B141 -> 網走 | I143: =データ貼付!C141 -> 43701 | J143: =データ貼付!F141 -> 佐藤汰希 | K143: =データ貼付!G141 -> 3577 | L143: =データ貼付!H141 -> 決 | M143: =データ貼付!I141 -> 興部高 | N143: =データ貼付!J141 -> 2 | O143: =データ貼付!K141 -> 0
A144: 141 | B144: 一般男子ハンマー投2 | C144: =J144&COUNTIF($J$4:J144,J144) -> 山下大輔1 | D144: =データ貼付!D142&データ貼付!E142 -> 一般男子ハンマー投 | E144: =データ貼付!G142+ROW()/1000000 -> 4302.000144 | F144: 2 | G144: =データ貼付!A142 -> フィールド記録会 | H144: =データ貼付!B142 -> 網走 | I144: =データ貼付!C142 -> 43624 | J144: =データ貼付!F142 -> 山下大輔 | K144: =データ貼付!G142 -> 4302 | L144: =データ貼付!H142 -> 決 | M144: =データ貼付!I142 -> 釧路地方陸協 | N144: =データ貼付!J142 -> 般 | O144: =データ貼付!K142 -> 0
A145: 142 | B145: 高校女子ハンマー投5 | C145: =J145&COUNTIF($J$4:J145,J145) -> 山田幸奈1 | D145: =データ貼付!D143&データ貼付!E143 -> 高校女子ハンマー投 | E145: =データ貼付!G143+ROW()/1000000 -> 2420.000145 | F145: 5 | G145: =データ貼付!A143 -> 高体連支部 | H145: =データ貼付!B143 -> 北見 | I145: =データ貼付!C143 -> 43608 | J145: =データ貼付!F143 -> 山田幸奈 | K145: =データ貼付!G143 -> 2420 | L145: =データ貼付!H143 -> 決 | M145: =データ貼付!I143 -> 網走桂陽高 | N145: =データ貼付!J143 -> 3 | O145: =データ貼付!K143 -> 0
A146: 143 | B146: 高校女子ハンマー投3 | C146: =J146&COUNTIF($J$4:J146,J146) -> 舟木愛公1 | D146: =データ貼付!D144&データ貼付!E144 -> 高校女子ハンマー投 | E146: =データ貼付!G144+ROW()/1000000 -> 2602.000146 | F146: 3 | G146: =データ貼付!A144 -> 秋季陸上 | H146: =データ貼付!B144 -> 網走 | I146: =データ貼付!C144 -> 43715 | J146: =データ貼付!F144 -> 舟木愛公 | K146: =データ貼付!G144 -> 2602 | L146: =データ貼付!H144 -> 決 | M146: =データ貼付!I144 -> 遠軽高 | N146: =データ貼付!J144 -> 1 | O146: =データ貼付!K144 -> 0
A147: 144 | B147: 高校女子ハンマー投1 | C147: =J147&COUNTIF($J$4:J147,J147) -> 植村菜々1 | D147: =データ貼付!D145&データ貼付!E145 -> 高校女子ハンマー投 | E147: =データ貼付!G145+ROW()/1000000 -> 4211.000147 | F147: 1 | G147: =データ貼付!A145 -> 高体連支部 | H147: =データ貼付!B145 -> 北見 | I147: =データ貼付!C145 -> 43608 | J147: =データ貼付!F145 -> 植村菜々 | K147: =データ貼付!G145 -> 4211 | L147: =データ貼付!H145 -> 決 | M147: =データ貼付!I145 -> 遠軽高 | N147: =データ貼付!J145 -> 3 | O147: =データ貼付!K145 -> 0
A148: 145 | B148: 高校女子ハンマー投4 | C148: =J148&COUNTIF($J$4:J148,J148) -> 植村葉月1 | D148: =データ貼付!D146&データ貼付!E146 -> 高校女子ハンマー投 | E148: =データ貼付!G146+ROW()/1000000 -> 2514.000148 | F148: 4 | G148: =データ貼付!A146 -> フィールド記録会 | H148: =データ貼付!B146 -> 網走 | I148: =データ貼付!C146 -> 43624 | J148: =データ貼付!F146 -> 植村葉月 | K148: =データ貼付!G146 -> 2514 | L148: =データ貼付!H146 -> 決 | M148: =データ貼付!I146 -> 湧別高 | N148: =データ貼付!J146 -> 3 | O148: =データ貼付!K146 -> 0
A149: 146 | B149: 一般男子ハンマー投3 | C149: =J149&COUNTIF($J$4:J149,J149) -> 川田恒1 | D149: =データ貼付!D147&データ貼付!E147 -> 一般男子ハンマー投 | E149: =データ貼付!G147+ROW()/1000000 -> 3898.000149 | F149: 3 | G149: =データ貼付!A147 -> 秋季陸上 | H149: =データ貼付!B147 -> 網走 | I149: =データ貼付!C147 -> 43715 | J149: =データ貼付!F147 -> 川田恒 | K149: =データ貼付!G147 -> 3898 | L149: =データ貼付!H147 -> 決 | M149: =データ貼付!I147 -> ｵﾎｰﾂｸ陸協(川田) | N149: =データ貼付!J147 -> 般 | O149: =データ貼付!K147 -> 0
A150: 147 | B150: 高校男子ハンマー投11 | C150: =J150&COUNTIF($J$4:J150,J150) -> 中村拓斗1 | D150: =データ貼付!D148&データ貼付!E148 -> 高校男子ハンマー投 | E150: =データ貼付!G148+ROW()/1000000 -> 1693.00015 | F150: 11 | G150: =データ貼付!A148 -> フィールド記録会 | H150: =データ貼付!B148 -> 網走 | I150: =データ貼付!C148 -> 43624 | J150: =データ貼付!F148 -> 中村拓斗 | K150: =データ貼付!G148 -> 1693 | L150: =データ貼付!H148 -> 決 | M150: =データ貼付!I148 -> 美幌高 | N150: =データ貼付!J148 -> 3 | O150: =データ貼付!K148 -> 0
A151: 148 | B151: 高校男子ハンマー投9 | C151: =J151&COUNTIF($J$4:J151,J151) -> 長谷部岳斗1 | D151: =データ貼付!D149&データ貼付!E149 -> 高校男子ハンマー投 | E151: =データ貼付!G149+ROW()/1000000 -> 2452.000151 | F151: 9 | G151: =データ貼付!A149 -> 選手権 | H151: =データ貼付!B149 -> 北見 | I151: =データ貼付!C149 -> 43597 | J151: =データ貼付!F149 -> 長谷部岳斗 | K151: =データ貼付!G149 -> 2452 | L151: =データ貼付!H149 -> 決 | M151: =データ貼付!I149 -> 北見工業高 | N151: =データ貼付!J149 -> 3 | O151: =データ貼付!K149 -> 0
A152: 149 | B152: 一般女子ハンマー投2 | C152: =J152&COUNTIF($J$4:J152,J152) -> 尾崎京子1 | D152: =データ貼付!D150&データ貼付!E150 -> 一般女子ハンマー投 | E152: =データ貼付!G150+ROW()/1000000 -> 4265.000152 | F152: 2 | G152: =データ貼付!A150 -> 道選手権 | H152: =データ貼付!B150 -> 網走 | I152: =データ貼付!C150 -> 43687 | J152: =データ貼付!F150 -> 尾崎京子 | K152: =データ貼付!G150 -> 4265 | L152: =データ貼付!H150 -> 決 | M152: =データ貼付!I150 -> 東海大 | N152: =データ貼付!J150 -> 2 | O152: =データ貼付!K150 -> 0
A153: 150 | B153: 高校男子ハンマー投2 | C153: =J153&COUNTIF($J$4:J153,J153) -> 目黒智也1 | D153: =データ貼付!D151&データ貼付!E151 -> 高校男子ハンマー投 | E153: =データ貼付!G151+ROW()/1000000 -> 3894.000153 | F153: 2 | G153: =データ貼付!A151 -> 国体予選 | H153: =データ貼付!B151 -> 室蘭 | I153: =データ貼付!C151 -> 43666 | J153: =データ貼付!F151 -> 目黒智也 | K153: =データ貼付!G151 -> 3894 | L153: =データ貼付!H151 -> 決 | M153: =データ貼付!I151 -> 斜里高 | N153: =データ貼付!J151 -> 2 | O153: =データ貼付!K151 -> 0
A154: 151 | B154: 高校女子ハンマー投7 | C154: =J154&COUNTIF($J$4:J154,J154) -> 髙橋愛唯1 | D154: =データ貼付!D152&データ貼付!E152 -> 高校女子ハンマー投 | E154: =データ貼付!G152+ROW()/1000000 -> 2111.000154 | F154: 7 | G154: =データ貼付!A152 -> 秋季陸上 | H154: =データ貼付!B152 -> 網走 | I154: =データ貼付!C152 -> 43715 | J154: =データ貼付!F152 -> 髙橋愛唯 | K154: =データ貼付!G152 -> 2111 | L154: =データ貼付!H152 -> 決 | M154: =データ貼付!I152 -> 遠軽高 | N154: =データ貼付!J152 -> 2 | O154: =データ貼付!K152 -> 0
A155: 152 | B155: 高校男子ハンマー投4 | C155: =J155&COUNTIF($J$4:J155,J155) -> 髙嶋祐太1 | D155: =データ貼付!D153&データ貼付!E153 -> 高校男子ハンマー投 | E155: =データ貼付!G153+ROW()/1000000 -> 3816.000155 | F155: 4 | G155: =データ貼付!A153 -> 高校新人 | H155: =データ貼付!B153 -> 網走 | I155: =データ貼付!C153 -> 43701 | J155: =データ貼付!F153 -> 髙嶋祐太 | K155: =データ貼付!G153 -> 3816 | L155: =データ貼付!H153 -> 決 | M155: =データ貼付!I153 -> 遠軽高 | N155: =データ貼付!J153 -> 2 | O155: =データ貼付!K153 -> 0
A156: 153 | B156: 小学女子ﾎﾞｰﾃｯｸｽｽﾛｰ投2 | C156: =J156&COUNTIF($J$4:J156,J156) -> 安藤和2 | D156: =データ貼付!D154&データ貼付!E154 -> 小学女子ﾎﾞｰﾃｯｸｽｽﾛｰ投 | E156: =データ貼付!G154+ROW()/1000000 -> 3691.000156 | F156: 2 | G156: =データ貼付!A154 -> 小学記録会 | H156: =データ貼付!B154 -> 北見 | I156: =データ貼付!C154 -> 43736 | J156: =データ貼付!F154 -> 安藤和 | K156: =データ貼付!G154 -> 3691 | L156: =データ貼付!H154 -> 決 | M156: =データ貼付!I154 -> 清里陸上少年団 | N156: =データ貼付!J154 -> 6 | O156: =データ貼付!K154 -> 0
A157: 154 | B157: 小学男子ﾎﾞｰﾃｯｸｽｽﾛｰ投29 | C157: =J157&COUNTIF($J$4:J157,J157) -> 井田悠仁1 | D157: =データ貼付!D155&データ貼付!E155 -> 小学男子ﾎﾞｰﾃｯｸｽｽﾛｰ投 | E157: =データ貼付!G155+ROW()/1000000 -> 2151.000157 | F157: 29 | G157: =データ貼付!A155 -> 小学記録会 | H157: =データ貼付!B155 -> 北見 | I157: =データ貼付!C155 -> 43736 | J157: =データ貼付!F155 -> 井田悠仁 | K157: =データ貼付!G155 -> 2151 | L157: =データ貼付!H155 -> 決 | M157: =データ貼付!I155 -> ｵﾎｰﾂｸｷｯｽﾞ | N157: =データ貼付!J155 -> 5 | O157: =データ貼付!K155 -> 0
A158: 155 | B158: 小学男子ﾎﾞｰﾃｯｸｽｽﾛｰ投26 | C158: =J158&COUNTIF($J$4:J158,J158) -> 刈屋柊晴2 | D158: =データ貼付!D156&データ貼付!E156 -> 小学男子ﾎﾞｰﾃｯｸｽｽﾛｰ投 | E158: =データ貼付!G156+ROW()/1000000 -> 2272.000158 | F158: 26 | G158: =データ貼付!A156 -> 小学記録会 | H158: =データ貼付!B156 -> 北見 | I158: =データ貼付!C156 -> 43736 | J158: =データ貼付!F156 -> 刈屋柊晴 | K158: =データ貼付!G156 -> 2272 | L158: =データ貼付!H156 -> 決 | M158: =データ貼付!I156 -> ｵﾎｰﾂｸｷｯｽﾞ | N158: =データ貼付!J156 -> 4 | O158: =データ貼付!K156 -> 0
A159: 156 | B159: 小学女子ﾎﾞｰﾃｯｸｽｽﾛｰ投4 | C159: =J159&COUNTIF($J$4:J159,J159) -> 関谷楓花2 | D159: =データ貼付!D157&データ貼付!E157 -> 小学女子ﾎﾞｰﾃｯｸｽｽﾛｰ投 | E159: =データ貼付!G157+ROW()/1000000 -> 3075.000159 | F159: 4 | G159: =データ貼付!A157 -> 小学記録会 | H159: =データ貼付!B157 -> 北見 | I159: =データ貼付!C157 -> 43736 | J159: =データ貼付!F157 -> 関谷楓花 | K159: =データ貼付!G157 -> 3075 | L159: =データ貼付!H157 -> 決 | M159: =データ貼付!I157 -> 常呂陸上少年団 | N159: =データ貼付!J157 -> 6 | O159: =データ貼付!K157 -> 0
A160: 157 | B160: 小学男子ﾎﾞｰﾃｯｸｽｽﾛｰ投13 | C160: =J160&COUNTIF($J$4:J160,J160) -> 館日々輝1 | D160: =データ貼付!D158&データ貼付!E158 -> 小学男子ﾎﾞｰﾃｯｸｽｽﾛｰ投 | E160: =データ貼付!G158+ROW()/1000000 -> 3013.00016 | F160: 13 | G160: =データ貼付!A158 -> 小学記録会 | H160: =データ貼付!B158 -> 北見 | I160: =データ貼付!C158 -> 43736 | J160: =データ貼付!F158 -> 館日々輝 | K160: =データ貼付!G158 -> 3013 | L160: =データ貼付!H158 -> 決 | M160: =データ貼付!I158 -> 美幌RC | N160: =データ貼付!J158 -> 5 | O160: =データ貼付!K158 -> 0
A161: 158 | B161: 小学男子ﾎﾞｰﾃｯｸｽｽﾛｰ投12 | C161: =J161&COUNTIF($J$4:J161,J161) -> 吉田仙太2 | D161: =データ貼付!D159&データ貼付!E159 -> 小学男子ﾎﾞｰﾃｯｸｽｽﾛｰ投 | E161: =データ貼付!G159+ROW()/1000000 -> 3060.000161 | F161: 12 | G161: =データ貼付!A159 -> 小学記録会 | H161: =データ貼付!B159 -> 北見 | I161: =データ貼付!C159 -> 43736 | J161: =データ貼付!F159 -> 吉田仙太 | K161: =データ貼付!G159 -> 3060 | L161: =データ貼付!H159 -> 決 | M161: =データ貼付!I159 -> 美幌RC | N161: =データ貼付!J159 -> 5 | O161: =データ貼付!K159 -> 0
A162: 159 | B162: 小学女子ﾎﾞｰﾃｯｸｽｽﾛｰ投7 | C162: =J162&COUNTIF($J$4:J162,J162) -> 久保田颯歩2 | D162: =データ貼付!D160&データ貼付!E160 -> 小学女子ﾎﾞｰﾃｯｸｽｽﾛｰ投 | E162: =データ貼付!G160+ROW()/1000000 -> 1740.000162 | F162: 7 | G162: =データ貼付!A160 -> 小学記録会 | H162: =データ貼付!B160 -> 北見 | I162: =データ貼付!C160 -> 43736 | J162: =データ貼付!F160 -> 久保田颯歩 | K162: =データ貼付!G160 -> 1740 | L162: =データ貼付!H160 -> 決 | M162: =データ貼付!I160 -> 知床斜里RC | N162: =データ貼付!J160 -> 5 | O162: =データ貼付!K160 -> 0
A163: 160 | B163: 小学男子ﾎﾞｰﾃｯｸｽｽﾛｰ投7 | C163: =J163&COUNTIF($J$4:J163,J163) -> 宮下琉汰1 | D163: =データ貼付!D161&データ貼付!E161 -> 小学男子ﾎﾞｰﾃｯｸｽｽﾛｰ投 | E163: =データ貼付!G161+ROW()/1000000 -> 3505.000163 | F163: 7 | G163: =データ貼付!A161 -> 小学記録会 | H163: =データ貼付!B161 -> 北見 | I163: =データ貼付!C161 -> 43736 | J163: =データ貼付!F161 -> 宮下琉汰 | K163: =データ貼付!G161 -> 3505 | L163: =データ貼付!H161 -> 決 | M163: =データ貼付!I161 -> ｵﾎｰﾂｸｷｯｽﾞ | N163: =データ貼付!J161 -> 6 | O163: =データ貼付!K161 -> 0
A164: 161 | B164: 小学男子ﾎﾞｰﾃｯｸｽｽﾛｰ投27 | C164: =J164&COUNTIF($J$4:J164,J164) -> 桐山晴良2 | D164: =データ貼付!D162&データ貼付!E162 -> 小学男子ﾎﾞｰﾃｯｸｽｽﾛｰ投 | E164: =データ貼付!G162+ROW()/1000000 -> 2221.000164 | F164: 27 | G164: =データ貼付!A162 -> 小学記録会 | H164: =データ貼付!B162 -> 北見 | I164: =データ貼付!C162 -> 43736 | J164: =データ貼付!F162 -> 桐山晴良 | K164: =データ貼付!G162 -> 2221 | L164: =データ貼付!H162 -> 決 | M164: =データ貼付!I162 -> 美幌XC少年団 | N164: =データ貼付!J162 -> 0 | O164: =データ貼付!K162 -> 0
A165: 162 | B165: 小学女子ﾎﾞｰﾃｯｸｽｽﾛｰ投5 | C165: =J165&COUNTIF($J$4:J165,J165) -> 金子心乃1 | D165: =データ貼付!D163&データ貼付!E163 -> 小学女子ﾎﾞｰﾃｯｸｽｽﾛｰ投 | E165: =データ貼付!G163+ROW()/1000000 -> 2927.000165 | F165: 5 | G165: =データ貼付!A163 -> 小学記録会 | H165: =データ貼付!B163 -> 北見 | I165: =データ貼付!C163 -> 43736 | J165: =データ貼付!F163 -> 金子心乃 | K165: =データ貼付!G163 -> 2927 | L165: =データ貼付!H163 -> 決 | M165: =データ貼付!I163 -> 遠軽陸上ｸﾗﾌﾞ | N165: =データ貼付!J163 -> 5 | O165: =データ貼付!K163 -> 0
A166: 163 | B166: 小学男子ﾎﾞｰﾃｯｸｽｽﾛｰ投8 | C166: =J166&COUNTIF($J$4:J166,J166) -> 工藤龍祈2 | D166: =データ貼付!D164&データ貼付!E164 -> 小学男子ﾎﾞｰﾃｯｸｽｽﾛｰ投 | E166: =データ貼付!G164+ROW()/1000000 -> 3403.000166 | F166: 8 | G166: =データ貼付!A164 -> 小学記録会 | H166: =データ貼付!B164 -> 北見 | I166: =データ貼付!C164 -> 43736 | J166: =データ貼付!F164 -> 工藤龍祈 | K166: =データ貼付!G164 -> 3403 | L166: =データ貼付!H164 -> 決 | M166: =データ貼付!I164 -> ｵﾎｰﾂｸｷｯｽﾞ | N166: =データ貼付!J164 -> 4 | O166: =データ貼付!K164 -> 0
A167: 164 | B167: 小学男子ﾎﾞｰﾃｯｸｽｽﾛｰ投2 | C167: =J167&COUNTIF($J$4:J167,J167) -> 荒木碧巴2 | D167: =データ貼付!D165&データ貼付!E165 -> 小学男子ﾎﾞｰﾃｯｸｽｽﾛｰ投 | E167: =データ貼付!G165+ROW()/1000000 -> 4377.000167 | F167: 2 | G167: =データ貼付!A165 -> 小学記録会 | H167: =データ貼付!B165 -> 北見 | I167: =データ貼付!C165 -> 43736 | J167: =データ貼付!F165 -> 荒木碧巴 | K167: =データ貼付!G165 -> 4377 | L167: =データ貼付!H165 -> 決 | M167: =データ貼付!I165 -> 知床斜里RC | N167: =データ貼付!J165 -> 6 | O167: =データ貼付!K165 -> 0
A168: 165 | B168: 小学男子ﾎﾞｰﾃｯｸｽｽﾛｰ投18 | C168: =J168&COUNTIF($J$4:J168,J168) -> 高橋信宗1 | D168: =データ貼付!D166&データ貼付!E166 -> 小学男子ﾎﾞｰﾃｯｸｽｽﾛｰ投 | E168: =データ貼付!G166+ROW()/1000000 -> 2720.000168 | F168: 18 | G168: =データ貼付!A166 -> 小学記録会 | H168: =データ貼付!B166 -> 北見 | I168: =データ貼付!C166 -> 43736 | J168: =データ貼付!F166 -> 高橋信宗 | K168: =データ貼付!G166 -> 2720 | L168: =データ貼付!H166 -> 決 | M168: =データ貼付!I166 -> 知床斜里RC | N168: =データ貼付!J166 -> 5 | O168: =データ貼付!K166 -> 0
A169: 166 | B169: 小学男子ﾎﾞｰﾃｯｸｽｽﾛｰ投11 | C169: =J169&COUNTIF($J$4:J169,J169) -> 高瀬生楓1 | D169: =データ貼付!D167&データ貼付!E167 -> 小学男子ﾎﾞｰﾃｯｸｽｽﾛｰ投 | E169: =データ貼付!G167+ROW()/1000000 -> 3081.000169 | F169: 11 | G169: =データ貼付!A167 -> 小学記録会 | H169: =データ貼付!B167 -> 北見 | I169: =データ貼付!C167 -> 43736 | J169: =データ貼付!F167 -> 高瀬生楓 | K169: =データ貼付!G167 -> 3081 | L169: =データ貼付!H167 -> 決 | M169: =データ貼付!I167 -> ｵﾎｰﾂｸｷｯｽﾞ | N169: =データ貼付!J167 -> 3 | O169: =データ貼付!K167 -> 0
A170: 167 | B170: 小学男子ﾎﾞｰﾃｯｸｽｽﾛｰ投23 | C170: =J170&COUNTIF($J$4:J170,J170) -> 佐々木進之介2 | D170: =データ貼付!D168&データ貼付!E168 -> 小学男子ﾎﾞｰﾃｯｸｽｽﾛｰ投 | E170: =データ貼付!G168+ROW()/1000000 -> 2487.00017 | F170: 23 | G170: =データ貼付!A168 -> 小学記録会 | H170: =データ貼付!B168 -> 北見 | I170: =データ貼付!C168 -> 43736 | J170: =データ貼付!F168 -> 佐々木進之介 | K170: =データ貼付!G168 -> 2487 | L170: =データ貼付!H168 -> 決 | M170: =データ貼付!I168 -> 知床斜里RC | N170: =データ貼付!J168 -> 5 | O170: =データ貼付!K168 -> 0
A171: 168 | B171: 小学女子ﾎﾞｰﾃｯｸｽｽﾛｰ投9 | C171: =J171&COUNTIF($J$4:J171,J171) -> 妻鳥実和1 | D171: =データ貼付!D169&データ貼付!E169 -> 小学女子ﾎﾞｰﾃｯｸｽｽﾛｰ投 | E171: =データ貼付!G169+ROW()/1000000 -> 1448.000171 | F171: 9 | G171: =データ貼付!A169 -> 小学記録会 | H171: =データ貼付!B169 -> 北見 | I171: =データ貼付!C169 -> 43736 | J171: =データ貼付!F169 -> 妻鳥実和 | K171: =データ貼付!G169 -> 1448 | L171: =データ貼付!H169 -> 決 | M171: =データ貼付!I169 -> ｵﾎｰﾂｸｷｯｽﾞ | N171: =データ貼付!J169 -> 3 | O171: =データ貼付!K169 -> 0
A172: 169 | B172: 小学男子ﾎﾞｰﾃｯｸｽｽﾛｰ投24 | C172: =J172&COUNTIF($J$4:J172,J172) -> 斎藤青空1 | D172: =データ貼付!D170&データ貼付!E170 -> 小学男子ﾎﾞｰﾃｯｸｽｽﾛｰ投 | E172: =データ貼付!G170+ROW()/1000000 -> 2384.000172 | F172: 24 | G172: =データ貼付!A170 -> 小学記録会 | H172: =データ貼付!B170 -> 北見 | I172: =データ貼付!C170 -> 43736 | J172: =データ貼付!F170 -> 斎藤青空 | K172: =データ貼付!G170 -> 2384 | L172: =データ貼付!H170 -> 決 | M172: =データ貼付!I170 -> ｵﾎｰﾂｸｷｯｽﾞ | N172: =データ貼付!J170 -> 4 | O172: =データ貼付!K170 -> 0
A173: 170 | B173: 小学男子ﾎﾞｰﾃｯｸｽｽﾛｰ投3 | C173: =J173&COUNTIF($J$4:J173,J173) -> 阪口智洋2 | D173: =データ貼付!D171&データ貼付!E171 -> 小学男子ﾎﾞｰﾃｯｸｽｽﾛｰ投 | E173: =データ貼付!G171+ROW()/1000000 -> 3947.000173 | F173: 3 | G173: =データ貼付!A171 -> 小学記録会 | H173: =データ貼付!B171 -> 北見 | I173: =データ貼付!C171 -> 43736 | J173: =データ貼付!F171 -> 阪口智洋 | K173: =データ貼付!G171 -> 3947 | L173: =データ貼付!H171 -> 決 | M173: =データ貼付!I171 -> 常呂陸上少年団 | N173: =データ貼付!J171 -> 6 | O173: =データ貼付!K171 -> 0
A174: 171 | B174: 小学男子ﾎﾞｰﾃｯｸｽｽﾛｰ投21 | C174: =J174&COUNTIF($J$4:J174,J174) -> 三浦正史2 | D174: =データ貼付!D172&データ貼付!E172 -> 小学男子ﾎﾞｰﾃｯｸｽｽﾛｰ投 | E174: =データ貼付!G172+ROW()/1000000 -> 2558.000174 | F174: 21 | G174: =データ貼付!A172 -> 小学記録会 | H174: =データ貼付!B172 -> 北見 | I174: =データ貼付!C172 -> 43736 | J174: =データ貼付!F172 -> 三浦正史 | K174: =データ貼付!G172 -> 2558 | L174: =データ貼付!H172 -> 決 | M174: =データ貼付!I172 -> 美幌RC | N174: =データ貼付!J172 -> 3 | O174: =データ貼付!K172 -> 0
A175: 172 | B175: 小学女子ﾎﾞｰﾃｯｸｽｽﾛｰ投1 | C175: =J175&COUNTIF($J$4:J175,J175) -> 室田心愛2 | D175: =データ貼付!D173&データ貼付!E173 -> 小学女子ﾎﾞｰﾃｯｸｽｽﾛｰ投 | E175: =データ貼付!G173+ROW()/1000000 -> 3729.000175 | F175: 1 | G175: =データ貼付!A173 -> 小学記録会 | H175: =データ貼付!B173 -> 北見 | I175: =データ貼付!C173 -> 43736 | J175: =データ貼付!F173 -> 室田心愛 | K175: =データ貼付!G173 -> 3729 | L175: =データ貼付!H173 -> 決 | M175: =データ貼付!I173 -> 常呂陸上少年団 | N175: =データ貼付!J173 -> 6 | O175: =データ貼付!K173 -> 0
A176: 173 | B176: 小学男子ﾎﾞｰﾃｯｸｽｽﾛｰ投15 | C176: =J176&COUNTIF($J$4:J176,J176) -> 柴田遥斗2 | D176: =データ貼付!D174&データ貼付!E174 -> 小学男子ﾎﾞｰﾃｯｸｽｽﾛｰ投 | E176: =データ貼付!G174+ROW()/1000000 -> 2889.000176 | F176: 15 | G176: =データ貼付!A174 -> 小学記録会 | H176: =データ貼付!B174 -> 北見 | I176: =データ貼付!C174 -> 43736 | J176: =データ貼付!F174 -> 柴田遥斗 | K176: =データ貼付!G174 -> 2889 | L176: =データ貼付!H174 -> 決 | M176: =データ貼付!I174 -> ｵﾎｰﾂｸｷｯｽﾞ | N176: =データ貼付!J174 -> 3 | O176: =データ貼付!K174 -> 0
A177: 174 | B177: 小学男子ﾎﾞｰﾃｯｸｽｽﾛｰ投4 | C177: =J177&COUNTIF($J$4:J177,J177) -> 若月柚樹2 | D177: =データ貼付!D175&データ貼付!E175 -> 小学男子ﾎﾞｰﾃｯｸｽｽﾛｰ投 | E177: =データ貼付!G175+ROW()/1000000 -> 3834.000177 | F177: 4 | G177: =データ貼付!A175 -> 小学記録会 | H177: =データ貼付!B175 -> 北見 | I177: =データ貼付!C175 -> 43736 | J177: =データ貼付!F175 -> 若月柚樹 | K177: =データ貼付!G175 -> 3834 | L177: =データ貼付!H175 -> 決 | M177: =データ貼付!I175 -> 美幌RC | N177: =データ貼付!J175 -> 4 | O177: =データ貼付!K175 -> 0
A178: 175 | B178: 小学男子ﾎﾞｰﾃｯｸｽｽﾛｰ投6 | C178: =J178&COUNTIF($J$4:J178,J178) -> 小笠原昊2 | D178: =データ貼付!D176&データ貼付!E176 -> 小学男子ﾎﾞｰﾃｯｸｽｽﾛｰ投 | E178: =データ貼付!G176+ROW()/1000000 -> 3530.000178 | F178: 6 | G178: =データ貼付!A176 -> 小学記録会 | H178: =データ貼付!B176 -> 北見 | I178: =データ貼付!C176 -> 43736 | J178: =データ貼付!F176 -> 小笠原昊 | K178: =データ貼付!G176 -> 3530 | L178: =データ貼付!H176 -> 決 | M178: =データ貼付!I176 -> 清里陸上少年団 | N178: =データ貼付!J176 -> 6 | O178: =データ貼付!K176 -> 0
A179: 176 | B179: 小学男子ﾎﾞｰﾃｯｸｽｽﾛｰ投25 | C179: =J179&COUNTIF($J$4:J179,J179) -> 小畠正宗1 | D179: =データ貼付!D177&データ貼付!E177 -> 小学男子ﾎﾞｰﾃｯｸｽｽﾛｰ投 | E179: =データ貼付!G177+ROW()/1000000 -> 2300.000179 | F179: 25 | G179: =データ貼付!A177 -> 小学記録会 | H179: =データ貼付!B177 -> 北見 | I179: =データ貼付!C177 -> 43736 | J179: =データ貼付!F177 -> 小畠正宗 | K179: =データ貼付!G177 -> 2300 | L179: =データ貼付!H177 -> 決 | M179: =データ貼付!I177 -> ｵﾎｰﾂｸｷｯｽﾞ | N179: =データ貼付!J177 -> 4 | O179: =データ貼付!K177 -> 0
A180: 177 | B180: 小学男子ﾎﾞｰﾃｯｸｽｽﾛｰ投17 | C180: =J180&COUNTIF($J$4:J180,J180) -> 上原優人1 | D180: =データ貼付!D178&データ貼付!E178 -> 小学男子ﾎﾞｰﾃｯｸｽｽﾛｰ投 | E180: =データ貼付!G178+ROW()/1000000 -> 2737.00018 | F180: 17 | G180: =データ貼付!A178 -> 小学記録会 | H180: =データ貼付!B178 -> 北見 | I180: =データ貼付!C178 -> 43736 | J180: =データ貼付!F178 -> 上原優人 | K180: =データ貼付!G178 -> 2737 | L180: =データ貼付!H178 -> 決 | M180: =データ貼付!I178 -> 訓子府陸上少年団 | N180: =データ貼付!J178 -> 4 | O180: =データ貼付!K178 -> 0
A181: 178 | B181: 小学男子ﾎﾞｰﾃｯｸｽｽﾛｰ投28 | C181: =J181&COUNTIF($J$4:J181,J181) -> 新谷一真2 | D181: =データ貼付!D179&データ貼付!E179 -> 小学男子ﾎﾞｰﾃｯｸｽｽﾛｰ投 | E181: =データ貼付!G179+ROW()/1000000 -> 2191.000181 | F181: 28 | G181: =データ貼付!A179 -> 小学記録会 | H181: =データ貼付!B179 -> 北見 | I181: =データ貼付!C179 -> 43736 | J181: =データ貼付!F179 -> 新谷一真 | K181: =データ貼付!G179 -> 2191 | L181: =データ貼付!H179 -> 決 | M181: =データ貼付!I179 -> ｵﾎｰﾂｸｷｯｽﾞ | N181: =データ貼付!J179 -> 3 | O181: =データ貼付!K179 -> 0
A182: 179 | B182: 小学男子ﾎﾞｰﾃｯｸｽｽﾛｰ投19 | C182: =J182&COUNTIF($J$4:J182,J182) -> 森谷翔2 | D182: =データ貼付!D180&データ貼付!E180 -> 小学男子ﾎﾞｰﾃｯｸｽｽﾛｰ投 | E182: =データ貼付!G180+ROW()/1000000 -> 2701.000182 | F182: 19 | G182: =データ貼付!A180 -> 小学記録会 | H182: =データ貼付!B180 -> 北見 | I182: =データ貼付!C180 -> 43736 | J182: =データ貼付!F180 -> 森谷翔 | K182: =データ貼付!G180 -> 2701 | L182: =データ貼付!H180 -> 決 | M182: =データ貼付!I180 -> 訓子府陸上少年団 | N182: =データ貼付!J180 -> 3 | O182: =データ貼付!K180 -> 0
A183: 180 | B183: 小学男子ﾎﾞｰﾃｯｸｽｽﾛｰ投22 | C183: =J183&COUNTIF($J$4:J183,J183) -> 須藤陸都2 | D183: =データ貼付!D181&データ貼付!E181 -> 小学男子ﾎﾞｰﾃｯｸｽｽﾛｰ投 | E183: =データ貼付!G181+ROW()/1000000 -> 2539.000183 | F183: 22 | G183: =データ貼付!A181 -> 小学記録会 | H183: =データ貼付!B181 -> 北見 | I183: =データ貼付!C181 -> 43736 | J183: =データ貼付!F181 -> 須藤陸都 | K183: =データ貼付!G181 -> 2539 | L183: =データ貼付!H181 -> 決 | M183: =データ貼付!I181 -> 北見美山小 | N183: =データ貼付!J181 -> 3 | O183: =データ貼付!K181 -> 0
A184: 181 | B184: 小学男子ﾎﾞｰﾃｯｸｽｽﾛｰ投32 | C184: =J184&COUNTIF($J$4:J184,J184) -> 石橋伸悠1 | D184: =データ貼付!D182&データ貼付!E182 -> 小学男子ﾎﾞｰﾃｯｸｽｽﾛｰ投 | E184: =データ貼付!G182+ROW()/1000000 -> 941.000184 | F184: 32 | G184: =データ貼付!A182 -> 小学記録会 | H184: =データ貼付!B182 -> 北見 | I184: =データ貼付!C182 -> 43736 | J184: =データ貼付!F182 -> 石橋伸悠 | K184: =データ貼付!G182 -> 941 | L184: =データ貼付!H182 -> 決 | M184: =データ貼付!I182 -> 美幌RC | N184: =データ貼付!J182 -> 5 | O184: =データ貼付!K182 -> 0
A185: 182 | B185: 小学女子ﾎﾞｰﾃｯｸｽｽﾛｰ投8 | C185: =J185&COUNTIF($J$4:J185,J185) -> 大野凜1 | D185: =データ貼付!D183&データ貼付!E183 -> 小学女子ﾎﾞｰﾃｯｸｽｽﾛｰ投 | E185: =データ貼付!G183+ROW()/1000000 -> 1514.000185 | F185: 8 | G185: =データ貼付!A183 -> 小学記録会 | H185: =データ貼付!B183 -> 北見 | I185: =データ貼付!C183 -> 43736 | J185: =データ貼付!F183 -> 大野凜 | K185: =データ貼付!G183 -> 1514 | L185: =データ貼付!H183 -> 決 | M185: =データ貼付!I183 -> ｵﾎｰﾂｸｷｯｽﾞ | N185: =データ貼付!J183 -> 3 | O185: =データ貼付!K183 -> 0
A186: 183 | B186: 小学男子ﾎﾞｰﾃｯｸｽｽﾛｰ投5 | C186: =J186&COUNTIF($J$4:J186,J186) -> 中村直2 | D186: =データ貼付!D184&データ貼付!E184 -> 小学男子ﾎﾞｰﾃｯｸｽｽﾛｰ投 | E186: =データ貼付!G184+ROW()/1000000 -> 3675.000186 | F186: 5 | G186: =データ貼付!A184 -> 小学記録会 | H186: =データ貼付!B184 -> 北見 | I186: =データ貼付!C184 -> 43736 | J186: =データ貼付!F184 -> 中村直 | K186: =データ貼付!G184 -> 3675 | L186: =データ貼付!H184 -> 決 | M186: =データ貼付!I184 -> 常呂陸上少年団 | N186: =データ貼付!J184 -> 6 | O186: =データ貼付!K184 -> 0
A187: 184 | B187: 小学男子ﾎﾞｰﾃｯｸｽｽﾛｰ投14 | C187: =J187&COUNTIF($J$4:J187,J187) -> 長谷川大巧2 | D187: =データ貼付!D185&データ貼付!E185 -> 小学男子ﾎﾞｰﾃｯｸｽｽﾛｰ投 | E187: =データ貼付!G185+ROW()/1000000 -> 2894.000187 | F187: 14 | G187: =データ貼付!A185 -> 小学記録会 | H187: =データ貼付!B185 -> 北見 | I187: =データ貼付!C185 -> 43736 | J187: =データ貼付!F185 -> 長谷川大巧 | K187: =データ貼付!G185 -> 2894 | L187: =データ貼付!H185 -> 決 | M187: =データ貼付!I185 -> 美幌RC | N187: =データ貼付!J185 -> 3 | O187: =データ貼付!K185 -> 0
A188: 185 | B188: 小学女子ﾎﾞｰﾃｯｸｽｽﾛｰ投3 | C188: =J188&COUNTIF($J$4:J188,J188) -> 田辺采子2 | D188: =データ貼付!D186&データ貼付!E186 -> 小学女子ﾎﾞｰﾃｯｸｽｽﾛｰ投 | E188: =データ貼付!G186+ROW()/1000000 -> 3298.000188 | F188: 3 | G188: =データ貼付!A186 -> 小学記録会 | H188: =データ貼付!B186 -> 北見 | I188: =データ貼付!C186 -> 43736 | J188: =データ貼付!F186 -> 田辺采子 | K188: =データ貼付!G186 -> 3298 | L188: =データ貼付!H186 -> 決 | M188: =データ貼付!I186 -> ｵﾎｰﾂｸｷｯｽﾞ | N188: =データ貼付!J186 -> 5 | O188: =データ貼付!K186 -> 0
A189: 186 | B189: 小学男子ﾎﾞｰﾃｯｸｽｽﾛｰ投9 | C189: =J189&COUNTIF($J$4:J189,J189) -> 梅田彪牙2 | D189: =データ貼付!D187&データ貼付!E187 -> 小学男子ﾎﾞｰﾃｯｸｽｽﾛｰ投 | E189: =データ貼付!G187+ROW()/1000000 -> 3246.000189 | F189: 9 | G189: =データ貼付!A187 -> 小学記録会 | H189: =データ貼付!B187 -> 北見 | I189: =データ貼付!C187 -> 43736 | J189: =データ貼付!F187 -> 梅田彪牙 | K189: =データ貼付!G187 -> 3246 | L189: =データ貼付!H187 -> 決 | M189: =データ貼付!I187 -> 美幌RC | N189: =データ貼付!J187 -> 5 | O189: =データ貼付!K187 -> 0
A190: 187 | B190: 小学男子ﾎﾞｰﾃｯｸｽｽﾛｰ投1 | C190: =J190&COUNTIF($J$4:J190,J190) -> 白石大和2 | D190: =データ貼付!D188&データ貼付!E188 -> 小学男子ﾎﾞｰﾃｯｸｽｽﾛｰ投 | E190: =データ貼付!G188+ROW()/1000000 -> 4774.00019 | F190: 1 | G190: =データ貼付!A188 -> 小学記録会 | H190: =データ貼付!B188 -> 北見 | I190: =データ貼付!C188 -> 43736 | J190: =データ貼付!F188 -> 白石大和 | K190: =データ貼付!G188 -> 4774 | L190: =データ貼付!H188 -> 決 | M190: =データ貼付!I188 -> ｵﾎｰﾂｸｷｯｽﾞ | N190: =データ貼付!J188 -> 5 | O190: =データ貼付!K188 -> 0
A191: 188 | B191: 小学男子ﾎﾞｰﾃｯｸｽｽﾛｰ投16 | C191: =J191&COUNTIF($J$4:J191,J191) -> 武田航太朗2 | D191: =データ貼付!D189&データ貼付!E189 -> 小学男子ﾎﾞｰﾃｯｸｽｽﾛｰ投 | E191: =データ貼付!G189+ROW()/1000000 -> 2887.000191 | F191: 16 | G191: =データ貼付!A189 -> 小学記録会 | H191: =データ貼付!B189 -> 北見 | I191: =データ貼付!C189 -> 43736 | J191: =データ貼付!F189 -> 武田航太朗 | K191: =データ貼付!G189 -> 2887 | L191: =データ貼付!H189 -> 決 | M191: =データ貼付!I189 -> 常呂陸上少年団 | N191: =データ貼付!J189 -> 4 | O191: =データ貼付!K189 -> 0
A192: 189 | B192: 小学男子ﾎﾞｰﾃｯｸｽｽﾛｰ投31 | C192: =J192&COUNTIF($J$4:J192,J192) -> 平沢敦斗2 | D192: =データ貼付!D190&データ貼付!E190 -> 小学男子ﾎﾞｰﾃｯｸｽｽﾛｰ投 | E192: =データ貼付!G190+ROW()/1000000 -> 1324.000192 | F192: 31 | G192: =データ貼付!A190 -> 小学記録会 | H192: =データ貼付!B190 -> 北見 | I192: =データ貼付!C190 -> 43736 | J192: =データ貼付!F190 -> 平沢敦斗 | K192: =データ貼付!G190 -> 1324 | L192: =データ貼付!H190 -> 決 | M192: =データ貼付!I190 -> ｵﾎｰﾂｸｷｯｽﾞ | N192: =データ貼付!J190 -> 3 | O192: =データ貼付!K190 -> 0
A193: 190 | B193: 小学男子ﾎﾞｰﾃｯｸｽｽﾛｰ投30 | C193: =J193&COUNTIF($J$4:J193,J193) -> 堀田侑希2 | D193: =データ貼付!D191&データ貼付!E191 -> 小学男子ﾎﾞｰﾃｯｸｽｽﾛｰ投 | E193: =データ貼付!G191+ROW()/1000000 -> 1579.000193 | F193: 30 | G193: =データ貼付!A191 -> 小学記録会 | H193: =データ貼付!B191 -> 北見 | I193: =データ貼付!C191 -> 43736 | J193: =データ貼付!F191 -> 堀田侑希 | K193: =データ貼付!G191 -> 1579 | L193: =データ貼付!H191 -> 決 | M193: =データ貼付!I191 -> ｵﾎｰﾂｸｷｯｽﾞ | N193: =データ貼付!J191 -> 3 | O193: =データ貼付!K191 -> 0
A194: 191 | B194: 小学女子ﾎﾞｰﾃｯｸｽｽﾛｰ投6 | C194: =J194&COUNTIF($J$4:J194,J194) -> 木村美桜2 | D194: =データ貼付!D192&データ貼付!E192 -> 小学女子ﾎﾞｰﾃｯｸｽｽﾛｰ投 | E194: =データ貼付!G192+ROW()/1000000 -> 2363.000194 | F194: 6 | G194: =データ貼付!A192 -> 小学記録会 | H194: =データ貼付!B192 -> 北見 | I194: =データ貼付!C192 -> 43736 | J194: =データ貼付!F192 -> 木村美桜 | K194: =データ貼付!G192 -> 2363 | L194: =データ貼付!H192 -> 決 | M194: =データ貼付!I192 -> 常呂陸上少年団 | N194: =データ貼付!J192 -> 3 | O194: =データ貼付!K192 -> 0
A195: 192 | B195: 小学男子ﾎﾞｰﾃｯｸｽｽﾛｰ投20 | C195: =J195&COUNTIF($J$4:J195,J195) -> 澤田涼2 | D195: =データ貼付!D193&データ貼付!E193 -> 小学男子ﾎﾞｰﾃｯｸｽｽﾛｰ投 | E195: =データ貼付!G193+ROW()/1000000 -> 2577.000195 | F195: 20 | G195: =データ貼付!A193 -> 小学記録会 | H195: =データ貼付!B193 -> 北見 | I195: =データ貼付!C193 -> 43736 | J195: =データ貼付!F193 -> 澤田涼 | K195: =データ貼付!G193 -> 2577 | L195: =データ貼付!H193 -> 決 | M195: =データ貼付!I193 -> 知床斜里RC | N195: =データ貼付!J193 -> 5 | O195: =データ貼付!K193 -> 0
A196: 193 | B196: 小学男子ﾎﾞｰﾃｯｸｽｽﾛｰ投10 | C196: =J196&COUNTIF($J$4:J196,J196) -> 齋藤匡樹2 | D196: =データ貼付!D194&データ貼付!E194 -> 小学男子ﾎﾞｰﾃｯｸｽｽﾛｰ投 | E196: =データ貼付!G194+ROW()/1000000 -> 3119.000196 | F196: 10 | G196: =データ貼付!A194 -> 小学記録会 | H196: =データ貼付!B194 -> 北見 | I196: =データ貼付!C194 -> 43736 | J196: =データ貼付!F194 -> 齋藤匡樹 | K196: =データ貼付!G194 -> 3119 | L196: =データ貼付!H194 -> 決 | M196: =データ貼付!I194 -> 網走陸上少年団 | N196: =データ貼付!J194 -> 5 | O196: =データ貼付!K194 -> 0
A197: 194 | B197: =D197&F197 -> 高校男子やり投17 | C197: =J197&COUNTIF($J$4:J197,J197) -> 阿部優斗1 | D197: =データ貼付!D195&データ貼付!E195 -> 高校男子やり投 | E197: =データ貼付!G195+ROW()/1000000 -> 3716.000197 | F197: =SUMPRODUCT(($D$4:$D$903=D197)*($E$4:$E$903>E197))+1 -> 17 | G197: =データ貼付!A195 -> 高体連支部 | H197: =データ貼付!B195 -> 北見 | I197: =データ貼付!C195 -> 43608 | J197: =データ貼付!F195 -> 阿部優斗 | K197: =データ貼付!G195 -> 3716 | L197: =データ貼付!H195 -> 決 | M197: =データ貼付!I195 -> 遠軽高 | N197: =データ貼付!J195 -> 2 | O197: =データ貼付!K195 -> 0
A198: 195 | B198: 高校男子やり投28 | C198: =J198&COUNTIF($J$4:J198,J198) -> 伊奈翔大1 | D198: =データ貼付!D196&データ貼付!E196 -> 高校男子やり投 | E198: =データ貼付!G196+ROW()/1000000 -> 2952.000198 | F198: 28 | G198: =データ貼付!A196 -> 記録会４戦 | H198: =データ貼付!B196 -> 北見 | I198: =データ貼付!C196 -> 43681 | J198: =データ貼付!F196 -> 伊奈翔大 | K198: =データ貼付!G196 -> 2952 | L198: =データ貼付!H196 -> 決 | M198: =データ貼付!I196 -> 北見柏陽高 | N198: =データ貼付!J196 -> 1 | O198: =データ貼付!K196 -> 0
A199: 196 | B199: 高校男子やり投21 | C199: =J199&COUNTIF($J$4:J199,J199) -> 臼井貴将1 | D199: =データ貼付!D197&データ貼付!E197 -> 高校男子やり投 | E199: =データ貼付!G197+ROW()/1000000 -> 3448.000199 | F199: 21 | G199: =データ貼付!A197 -> 高校新人 | H199: =データ貼付!B197 -> 網走 | I199: =データ貼付!C197 -> 43700 | J199: =データ貼付!F197 -> 臼井貴将 | K199: =データ貼付!G197 -> 3448 | L199: =データ貼付!H197 -> 決 | M199: =データ貼付!I197 -> 網走南ヶ丘高 | N199: =データ貼付!J197 -> 2 | O199: =データ貼付!K197 -> 0
A200: 197 | B200: 高校男子やり投33 | C200: =J200&COUNTIF($J$4:J200,J200) -> 横山陸翔1 | D200: =データ貼付!D198&データ貼付!E198 -> 高校男子やり投 | E200: =データ貼付!G198+ROW()/1000000 -> 2611.0002 | F200: 33 | G200: =データ貼付!A198 -> 秋季陸上 | H200: =データ貼付!B198 -> 網走 | I200: =データ貼付!C198 -> 43715 | J200: =データ貼付!F198 -> 横山陸翔 | K200: =データ貼付!G198 -> 2611 | L200: =データ貼付!H198 -> 決 | M200: =データ貼付!I198 -> 日体大附属高 | N200: =データ貼付!J198 -> 1 | O200: =データ貼付!K198 -> 0
A201: 198 | B201: 高校女子やり投10 | C201: =J201&COUNTIF($J$4:J201,J201) -> 横山倫花1 | D201: =データ貼付!D199&データ貼付!E199 -> 高校女子やり投 | E201: =データ貼付!G199+ROW()/1000000 -> 2300.000201 | F201: 10 | G201: =データ貼付!A199 -> 全道高校新人 | H201: =データ貼付!B199 -> 函館 | I201: =データ貼付!C199 -> 9/18 | J201: =データ貼付!F199 -> 横山倫花 | K201: =データ貼付!G199 -> 2300 | L201: =データ貼付!H199 -> 予 | M201: =データ貼付!I199 -> 北見緑陵高 | N201: =データ貼付!J199 -> 1 | O201: =データ貼付!K199 -> 0
... 703 more rows

Sheet Sheet2 (hidden)

Sheet Sheet3 (hidden)

Sheet Sheet4 (hidden)

Sheet Sheet5 (hidden)

Sheet Sheet6 (hidden)
C1: 60m
C2: 100m
C3: 200m
C4: 300m
C5: 400m
C6: 800m
C7: 1000m
C8: 1500m
C9: 3000m
C10: 5000m
C11: 80mH
C12: 100mH
C13: 110mH
C14: 100mYH
C15: 110mJH
C16: 400mH
C17: 3000mSC
C18: 5000mW
